Price Eff Date,Charge Category,Department,HCPCS Alt Code,Mnemonic,Name, Price , Self Price 
7/1/2022,276,6730,V2632,675.030893,INTRAOC LENS 18.0  LI61AOR1800, 656.00 , 459.20 
7/1/2022,276,6730,V2632,675.030898,INTRAOC LENS 20.5  LI61AOR2050, 656.00 , 459.20 
7/1/2022,276,6730,V2632,675.030902,INTRAOC LENS 22.5  LI61AOR2250, 656.00 , 459.20 
7/1/2022,276,6730,V2632,675.030896,INTRAOC LENS 19.5  LI61AOR1950, 656.00 , 459.20 
7/1/2022,276,6730,V2632,675.030903,INTRAOC LENS 23.0  LI61AOR2300, 656.00 , 459.20 
7/1/2022,276,6730,V2632,675.030900,INTRAOC LENS 21.5  LI61AOR2150, 656.00 , 459.20 
7/1/2022,276,6730,V2632,675.030886,INTRAOC LENS 14.5  LI61AOR1450, 656.00 , 459.20 
7/1/2022,276,6730,V2632,675.030882,INTRAOC LENS 12.5  LI61AOR1250, 656.00 , 459.20 
7/1/2022,276,6730,V2632,675.030908,INTRAOC LENS 25.5  LI61AOR2550, 656.00 , 459.20 
7/1/2022,276,6730,V2632,675.030897,INTRAOC LENS 20.0  LI61AOR2000, 656.00 , 459.20 
7/1/2022,276,6730,V2632,675.82041,LENS ALCON SN60AT 10.0-34.0, 656.00 , 459.20 
7/1/2022,276,6730,V2632,675.030884,INTRAOC LENS 13.5  LI61AOR1350, 656.00 , 459.20 
7/1/2022,276,6730,V2632,675.030883,INTRAOC LENS 13.0  LI61AOR1300, 656.00 , 459.20 
7/1/2022,276,6730,V2632,675.030904,INTRAOC LENS 23.5  LI61AOR2350, 656.00 , 459.20 
7/1/2022,276,6730,V2632,675.030895,INTRAOC LENS 19.0  LI61AOR1900, 656.00 , 459.20 
7/1/2022,276,6730,V2632,675.030899,INTRAOC LENS 21.0  LI61AOR2100, 656.00 , 459.20 
7/1/2022,276,6730,V2632,675.030888,INTRAOC LENS 15.5  LI61AOR1550, 656.00 , 459.20 
7/1/2022,276,6730,V2632,675.030890,INTRAOC LENS 16.5  LI61AOR1650, 656.00 , 459.20 
7/1/2022,276,6730,V2632,675.030887,INTRAOC LENS 15.0  LI61AOR1500, 656.00 , 459.20 
7/1/2022,276,6750,V2632,675.031247,INTRAOC LENS 26.5  LI61AOR2650, 656.00 , 459.20 
7/1/2022,276,6730,V2632,675.030885,INTRAOC LENS 14.0  LI61AOR1400, 656.00 , 459.20 
7/1/2022,276,6730,V2632,675.030880,INTRAOC LENS 11.5  LI61AOR1150, 656.00 , 459.20 
7/1/2022,276,6730,V2632,675.030894,INTRAOC LENS 18.5  LI61AOR1850, 656.00 , 459.20 
7/1/2022,276,6730,V2632,675.030905,INTRAOC LENS 24.0  LI61AOR2400, 656.00 , 459.20 
7/1/2022,276,6730,V2632,675.030912,INTRAOC LENS 28.0  LI61AOR2800, 656.00 , 459.20 
7/1/2022,276,6730,V2632,675.030877,INTRAOC LENS 10.0  LI61AOR1000, 656.00 , 459.20 
7/1/2022,276,6730,V2632,675.030901,INTRAOC LENS 22.0  LI61AOR2200, 656.00 , 459.20 
7/1/2022,276,6730,V2632,675.030867,INTRAOC LENS 5.5   LI61AOR0550, 656.00 , 459.20 
7/1/2022,276,7240,V2632,675.031031,ACRYSOF STER 14.0   MA60AC.140, 559.00 , 391.30 
7/1/2022,276,6730,V2632,675.031034,ACRYSOF STER 20.5   MA60AC.205, 559.00 , 391.30 
7/1/2022,276,6730,V2632,675.030892,INTRAOC LENS 17.5  LI61AOR1750, 656.00 , 459.20 
7/1/2022,276,6730,V2632,675.85571,LENS B&L 7.5-28         LI61AO, 656.00 , 459.20 
7/1/2022,276,6730,V2632,675.035024,LENS SENSAR IOL 5.5 AR40MN0055, 431.00 , 301.70 
7/1/2022,276,6730,V2632,675.031039,ACRYSOF STER 19.5   MA60AC.195, 559.00 , 391.30 
7/1/2022,276,6730,V2632,675.030874,INTRAOC LENS 9.0   LI61AOR0900, 656.00 , 459.20 
7/1/2022,276,6730,V2632,675.030879,INTRAOC LENS 11.0  LI61AOR1100, 656.00 , 459.20 
7/1/2022,276,6730,V2632,675.030871,INTRAOC LENS 7.5   LI61AOR0750, 656.00 , 459.20 
7/1/2022,276,6730,V2632,675.030873,INTRAOC LENS 8.5   LI61AOR0850, 656.00 , 459.20 
7/1/2022,276,6730,V2632,675.030878,INTRAOC LENS 10.5  LI61AOR1050, 656.00 , 459.20 
7/1/2022,276,6730,V2632,675.030906,INTRAOC LENS 24.5  LI61AOR2450, 656.00 , 459.20 
7/1/2022,276,6730,V2632,675.030865,INTRAOC LENS 4.0   LI61AOR0400, 656.00 , 459.20 
7/1/2022,276,6730,V2632,675.030864,INTRAOC LENS 3.0   LI61AOR0300, 656.00 , 459.20 
7/1/2022,276,6730,V2632,675.030907,INTRAOC LENS 25.0  LI61AOR2500, 656.00 , 459.20 
7/1/2022,276,6730,V2632,675.030870,INTRAOC LENS 7.0   LI61AOR0700, 656.00 , 459.20 
7/1/2022,276,6730,V2632,675.030868,INTRAOC LENS 6.0   LI61AOR0600, 656.00 , 459.20 
7/1/2022,276,6730,V2632,675.035848,LENS SENSAR IOL -10 AR40MN0100, 431.00 , 301.70 
7/1/2022,276,6730,V2632,675.030891,INTRAOC LENS 17.0  LI61AOR1700, 656.00 , 459.20 
7/1/2022,276,6730,V2632,675.030889,INTRAOC LENS 16.0  LI61AOR1600, 656.00 , 459.20 
7/1/2022,276,6730,V2630,675.034491,MULTIFLEX STER 19.0 MTA4U0.190, 319.00 , 223.30 
7/1/2022,276,6730,V2630,675.034671,MULTIFLEX STER 20.5 MTA4U0.205, 319.00 , 223.30 
7/1/2022,276,6730,V2630,675.035857,MULTIFLEX STER 10.5, 318.75 , 223.13 
7/1/2022,276,6730,V2630,675.035819,MULTIFLEX STER 8.0 MTA4U0.080, 319.00 , 223.30 
7/1/2022,300,7100,U0003,710.000213,SARS COVID19 AMP PRB HI THRPT, 212.00 , 148.40 
7/1/2022,636,7300,Q9968,730.4101,LYMPHAZURIN 1% SDV," 2,442.00 "," 1,709.40 "
7/1/2022,636,7300,Q9968,730.2333,METHYLENE BLUE 1% 1ML INJ, 59.00 , 41.30 
7/1/2022,636,7300,Q9968,730.23330,METHYLENE BLUE 1% 10MG/1ML SDV, 502.00 , 351.40 
7/1/2022,255,7300,Q9967,730.4655,Visipaque-320 50ml, 155.75 , 109.03 
7/1/2022,255,7300,Q9967,730.4552,OMNIPAQUE-350 100ML INJ, 287.00 , 200.90 
7/1/2022,255,7300,Q9967,730.4547,OMNIPAQUE-300 30ML INJ, 124.00 , 86.80 
7/1/2022,255,7300,Q9967,730.4548,OMNIPAQUE-300   100ML INJ, 259.00 , 181.30 
7/1/2022,636,7240,Q9967,724.15455,VISIPAQUE 320/PER ML V564, 67.00 , 46.90 
7/1/2022,255,7300,Q9967,730.4579,OMNIPAQUE-300 10ML INJ, 120.00 , 84.00 
7/1/2022,255,7300,Q9967,730.4546,OMNIPAQUE 50ML INJ, 137.00 , 95.90 
7/1/2022,636,7240,Q9966,724.15441,OMNIPAQUE Y307 PER ML, 16.00 , 11.20 
7/1/2022,255,7300,Q9966,730.4550,OMNIPAQUE-240 50ML INJ, 117.00 , 81.90 
7/1/2022,636,7200,Q9966,720.15440,OMNIPAQUE 240 PER ML (LOW), 22.00 , 15.40 
7/1/2022,255,7300,Q9966,730.4578,OMNIPAQUE-240 100ML INJ, 129.00 , 90.30 
7/1/2022,636,7200,Q9963,720.8017,"""GASTROGRAFIN 30ML,PER BOTTLE""", 66.00 , 46.20 
7/1/2022,255,7300,Q9963,730.4569,Gastrograffin Sol 120ml, 193.00 , 135.10 
7/1/2022,636,7200,Q9963,720.13921,"GASTROGRAFIN 120ML,PER BOTTLE", 49.00 , 34.30 
7/1/2022,255,7300,Q9963,730.4570,MD-Gastroview Sol 30ml, 25.00 , 17.50 
7/1/2022,636,7300,Q9950,730.4601,LUMASON 25MG VIAL, 488.00 , 341.60 
7/1/2022,636,7300,Q5119,730.4597,RUXIENCE 500MG INJ," 8,214.00 "," 5,749.80 "
7/1/2022,636,7300,Q5119,730.4596,RUXIENCE 100MG INJ," 1,763.00 "," 1,234.10 "
7/1/2022,636,7300,q5115,730.4575,Truxima 500mg inj," 11,636.00 "," 8,145.20 "
7/1/2022,636,7300,Q5103,730.4469,INFLECTRA 100MG INJ," 2,613.00 "," 1,829.10 "
7/1/2022,636,7420,Q4196,742.5076,PURAPLY AM 1 SQ CM, 596.00 , 417.20 
7/1/2022,636,6730,Q4125,675.31622,DERMIS AFLEX301," 10,588.00 "," 7,411.60 "
7/1/2022,636,6730,Q4125,675.034145,ALLOGRAFT             AFLEX101," 10,598.00 "," 7,418.60 "
7/1/2022,278,6730,Q4125,675.035437,PATCH ARTHOFLEX AFLEX403," 4,500.00 "," 3,150.00 "
7/1/2022,636,6730,Q4122,675.032222,DERMACELL/SQ CM DCELL232," 19,020.00 "," 13,314.00 "
7/1/2022,636,6730,Q4116,675.034986,TISSUE CONTOUR MED      CM1518," 23,055.00 "," 16,138.50 "
7/1/2022,636,6730,Q4116,675.034987,TISSUE ALLODERM 8X16   1518128," 22,335.00 "," 15,634.50 "
7/1/2022,278,6730,Q4116,675.035902,GRAFT ALLODERM 12X12   1418144," 25,129.00 "," 17,590.30 "
7/1/2022,278,6730,Q4116,675.035829,TISSUE ALLODERM 12x12 1419144," 25,129.00 "," 17,590.30 "
7/1/2022,636,6730,Q4106,675.034183,DEMAGRAFT        NI-DERM," 4,406.00 "," 3,084.20 "
7/1/2022,635,7300,Q4081,730.20180,"EPOETIN ALFA 20,000U ESRD"," 1,425.00 ", 997.50 
7/1/2022,636,7300,Q3027,730.4102,AVONEX 30MCG SDV," 4,678.00 "," 3,274.60 "
7/1/2022,780,6200,Q3014,620.1002,TELEHEALTH - INF DIS, 142.00 , 99.40 
7/1/2022,780,6200,Q3014,620.1001,TELEHEALTH - STROKE, 142.00 , 99.40 
7/1/2022,780,6200,Q3014,620.1004,TELEHEALTH ORIGINAT SITE FEE, 142.00 , 99.40 
7/1/2022,780,6200,Q3014,620.1003,TELEHEALTH - PULM, 134.00 , 93.80 
7/1/2022,780,6200,Q3014,620.1000,TELEHEALTH - PSYCH, 134.00 , 93.80 
7/1/2022,250,7300,Q2009,730.0352,CEREBYX 50MG/ML 10ML, 284.00 , 198.80 
7/1/2022,250,7300,Q2009,730.0351,CEREBYX 50MG/ML 2ML, 23.00 , 16.10 
7/1/2022,636,7300,Q0245,730.4618,Bamlan/Etes Inj 2100 mg, -   , -   
7/1/2022,636,7300,Q0243,730.4607,CASIRIVIMAB AND IMDEVIMAB, -   , -   
7/1/2022,636,7300,Q0222,730.5052,Bebtelovimab 175 mg, -   , -   
7/1/2022,637,7300,Q0144,730.3749,ZITHROMAX 250MG CAP, 4.00 , 2.80 
7/1/2022,636,7300,Q0138,730.4315,FERAHEME 510MG INJ NON-ESRD," 2,527.00 "," 1,768.90 "
7/1/2022,300,6460,P9612,646.0022,CATH URINE SPECIMEN, 167.48 , 117.24 
7/1/2022,300,6780,P9612,678.2102,CATH/COLLECTION SPECIMEN-P9612, 167.48 , 117.24 
7/1/2022,300,7100,P9100,710.9100,PATH TEST FOR PLATELETS, 105.00 , 73.50 
7/1/2022,636,7300,P9047,730.3355,ALBUMIN 25% 100ML, 453.00 , 317.10 
7/1/2022,636,7300,P9047,730.0603,ALBUMIN 25% 50ML, 226.00 , 158.20 
7/1/2022,390,7100,P9044,710.0909,POOLED CRYOPRECIPITATE/UNIT, 449.00 , 314.30 
7/1/2022,636,7300,P9041,730.4461,ALBUMIN 5% (HUMAN) 500 ML, 527.00 , 368.90 
7/1/2022,390,7100,P9040,710.0910,RBC FILTERED/IRRADIATED," 1,000.00 ", 700.00 
7/1/2022,390,7100,P9037,710.0905,PLT PHERESIS LEUKO/IRR," 2,596.32 "," 1,817.42 "
7/1/2022,390,7100,P9035,710.2011,PLATELET PHERESIS LEUKO/RED," 2,277.72 "," 1,594.40 "
7/1/2022,390,7100,P9023,710.0906,FRESH FROZEN PLASMA/UNIT, 256.52 , 179.56 
7/1/2022,390,7100,P9016,710.0918,RED BLOOD CELLS-LEU/DEPL, 756.00 , 529.20 
7/1/2022,390,7100,P9010,710.0900,WHOLE BLD FOR TRANS/UNIT, 600.00 , 420.00 
7/1/2022,771,7510,M0245,751.3108,BAMLAN AND ETESEV INFUSION, 869.20 , 608.44 
7/1/2022,771,7510,M0243,751.3107,CASIRIVIMAB/IMDEVIMAB INFUSION, 885.60 , 619.92 
7/1/2022,771,7510,M0222,751.3110,Bebtelovimab Infusion, 820.00 , 574.00 
7/1/2022,278,6730,L8699,675.30709,TUBE BEVELED GROMMET 1014242 0, 52.00 , 36.40 
7/1/2022,278,6750,L8606,675.30211,SYNTHETIC IMPLNT URINARY 1ML," 1,389.00 ", 972.30 
7/1/2022,274,6750,L8000,675.0309,SOFTEE FORM MEDIUM 12-14 562, 135.00 , 94.50 
7/1/2022,274,6750,L8000,675.0310,SOFTEE FORM SM 8-10 561, 135.00 , 94.50 
7/1/2022,274,6750,L4360,675.0245,BOOT WALK BLKMED7995415 000175, 109.00 , 76.30 
7/1/2022,274,6750,L4360,675.02451,BOOT BLEDSOE SP15470002, 202.00 , 141.40 
7/1/2022,274,6750,L4360,675.0247,BOOT WALK BLKLG7995417 0001761, 109.00 , 76.30 
7/1/2022,274,6750,L3924,675.27422,SPLINT FINGER GUTTER MD 310MED, -   , -   
7/1/2022,274,6750,L3924,675.27418,SPLINT FINGER BB MED 79-72095, -   , -   
7/1/2022,274,6750,L3906,675.2120,SUPPORT WRIST LT 43646-120, -   , -   
7/1/2022,274,6750,L2200,675.83514,AFO KNEE/ANKLE ORTHO L2200, 203.00 , 142.10 
7/1/2022,274,6750,L1940,675.0472,BRACE ANKLE AIR UN 79-81327, 50.00 , 35.00 
7/1/2022,274,6750,L1830,675.0825,IMMOBILIZER KNEE 20 0000668, 49.00 , 34.30 
7/1/2022,274,6750,L1830,675.0827,IMMOBILIZER KNEE 24 0000669, 52.00 , 36.40 
7/1/2022,274,6750,L1830,675.0826,IMMOBILIZER KNEE 22 0000667, 59.00 , 41.30 
7/1/2022,274,6750,L1830,675.0824,IMMOBILIZER KNEE 16 0000684, -   , -   
7/1/2022,636,7300,J9370,730.16420,ONCOVIN 2MG/2ML SDV, 174.00 , 121.80 
7/1/2022,636,7300,J9312,730.0487,RITUXAN 10MG INJ," 10,720.00 "," 7,504.00 "
7/1/2022,636,7300,J9305,730.4513,Alimta 500mg Inj," 7,913.00 "," 5,539.10 "
7/1/2022,636,7300,J9280,730.2764,MUTAMYCIN 5MG INJ, 698.00 , 488.60 
7/1/2022,636,7300,J9271,730.4458,KEYTRUDA 100MG INJ," 10,769.00 "," 7,538.30 "
7/1/2022,636,7300,J9267,730.39160,TAXOL 30MG/5ML SDV, 179.00 , 125.30 
7/1/2022,636,7300,J9267,730.4651,Taxol 300mg inj, 310.50 , 217.35 
7/1/2022,636,7300,J9267,730.1681,TAXOL 100MG INJ, 227.00 , 158.90 
7/1/2022,636,7300,J9263,730.4287,ELOXATIN 50MG INJ, 375.00 , 262.50 
7/1/2022,636,7300,J9263,730.4013,ELOXATIN 100MG VIAL sdv, 398.00 , 278.60 
7/1/2022,636,7300,J9250,730.28360,METHOTREXATE 25MG/1ML MDV, 159.00 , 111.30 
7/1/2022,636,7300,J9217,730.0554,LUPRON 7.5MG INJ," 4,023.00 "," 2,816.10 "
7/1/2022,636,7300,J9217,730.05971,LUPRON 22.5MG SYRINGE," 12,048.00 "," 8,433.60 "
7/1/2022,636,7300,J9217,730.4510,ELIGARD 22.5MG INJ," 3,737.00 "," 2,615.90 "
7/1/2022,636,7300,J9190,730.1147,FLUOROURACIL 500MG/10ML INJ, 18.00 , 12.60 
7/1/2022,636,7300,J9181,730.3019,VEPESID 20MG/ML INJ, 171.00 , 119.70 
7/1/2022,636,7300,J9171,730.4678,DOCETAXEL 160MG INJ," 1,394.50 ", 976.15 
7/1/2022,636,7300,J9155,730.4628,Firmagon 120mg vial," 2,105.75 "," 1,474.03 "
7/1/2022,636,7300,J9145,730.4662,Darzalex 400mg inj," 5,674.25 "," 3,971.98 "
7/1/2022,636,7300,J9070,730.0914,CYTOXAN 500MG INJ, 974.00 , 681.80 
7/1/2022,636,7300,J9070,730.2913,CYTOXAN 1GM INJ," 1,798.00 "," 1,258.60 "
7/1/2022,636,7300,J9045,730.3224,PARAPLATIN 50MG INJ, 180.00 , 126.00 
7/1/2022,636,7300,J9045,730.3225,PARAPLATIN 50MG INJ, 202.00 , 141.40 
7/1/2022,636,7300,J9045,730.4459,CARBOPLATIN 600 MG INJ, 299.00 , 209.30 
7/1/2022,636,7300,J9045,730.3226,PARAPLATIN 450MG INJ, 267.00 , 186.90 
7/1/2022,636,7300,J9035,730.40650,AVASTIN 400MG/16ML," 7,323.00 "," 5,126.10 "
7/1/2022,636,7300,J9034,730.4355,TREANDA 100MG INJ," 5,716.00 "," 4,001.20 "
7/1/2022,636,7300,J9000,730.0589,ADRIAMYCIN 50MG PFS VIAL, 205.00 , 143.50 
7/1/2022,250,7300,J8610,730.2836,METHOTREXATE 2.5MG TAB, 4.00 , 2.80 
7/1/2022,250,7300,J8540,730.4549,DEXAMETHASONE 6MG TAB, 1.00 , 0.70 
7/1/2022,250,7300,J8540,730.0493,DECADRON 1MG TAB, -   , -   
7/1/2022,637,7300,J7517,730.4681,CELLCEPT 500MG TAB, 1.25 , 0.88 
7/1/2022,250,7300,J7517,730.0363,CELLCEPT 250MG CAP, 1.00 , 0.70 
7/1/2022,636,7300,J7515,730.4174,CYCLOSPORINE 25MG CAP, 3.00 , 2.10 
7/1/2022,250,7300,J7512,730.1762,PREDNISONE 20MG TAB, -   , -   
7/1/2022,250,7300,J7512,730.2719,PREDNISONE 1MG TAB, -   , -   
7/1/2022,250,7300,J7512,730.1760,PREDNISONE 5MG TAB, -   , -   
7/1/2022,250,7300,J7512,730.1761,PREDNISONE 10MG TAB, -   , -   
7/1/2022,250,7300,J7510,730.3755,PRELONE 3MG/1ML U/D SYRUP, 1.00 , 0.70 
7/1/2022,250,7300,J7509,730.1446,MEDROL 4GM TAB, 1.00 , 0.70 
7/1/2022,250,7300,J7507,730.04750,PROGRAF 0.5MG CAP, 2.00 , 1.40 
7/1/2022,250,7300,J7500,730.1262,IMURAN 50MG TAB, 1.00 , 0.70 
7/1/2022,636,7300,J7195,730.4602,BENEFIX 3000 UNITS INJ," 11,972.00 "," 8,380.40 "
7/1/2022,636,7300,J7187,730.4609,HUMATE-P 2400 UNIT," 5,820.00 "," 4,074.00 "
7/1/2022,636,7300,J7178,730.4599,RIASTAP 1 GM VIAL," 2,976.00 "," 2,083.20 "
7/1/2022,636,7300,J7177,730.4611,INJ FIBRYGA 1 MG," 3,035.00 "," 2,124.50 "
7/1/2022,636,7300,J7168,730.4432,KCENTRA 1000 I.U. KIT, 17.00 , 11.90 
7/1/2022,636,7300,J7168,730.4429,KCENTRA 500 I.U. KIT, 17.00 , 11.90 
7/1/2022,636,6770,J7131,677.5027,HYPERTONIC SALINE 3% 500ML, 94.00 , 65.80 
7/1/2022,258,6770,J7121,677.5017,D-5-LRS 500ML, 94.00 , 65.80 
7/1/2022,258,6770,J7121,677.5016,D-5 LRS 1000ML, 109.00 , 76.30 
7/1/2022,258,7300,J7120,677.5106,LR 250ml, 91.50 , 64.05 
7/1/2022,258,6770,J7120,677.5104,LRS 500ML BAG, 94.00 , 65.80 
7/1/2022,258,6770,J7120,677.5023,LRS 1000ML, 109.00 , 76.30 
7/1/2022,258,7300,J7100,730.3718,DEXTRAN 40 (10%) D5W 500ML, 163.00 , 114.10 
7/1/2022,258,6770,J7060,677.5008,D-5-W 500ML, 94.00 , 65.80 
7/1/2022,258,6770,J7060,677.5007,D-5-W 1000ML, 109.00 , 76.30 
7/1/2022,258,6770,J7060,677.5009,D-5-W 250ML, 100.00 , 70.00 
7/1/2022,258,6770,J7050,677.5031,NS 0.9% 250ML, 94.00 , 65.80 
7/1/2022,258,6770,J7042,677.5014,D-5-NS 0.9% 1000ML, 109.00 , 76.30 
7/1/2022,258,6770,J7042,677.5015,D-5-NS 0.9% 500ML, 94.00 , 65.80 
7/1/2022,258,6770,J7040,677.5030,NS 0.9 500ML, 93.00 , 65.10 
7/1/2022,258,6770,J7030,677.5029,NS 0.9 1000ML, 109.00 , 76.30 
7/1/2022,636,7300,J3590,730.4654,Vyvgart 400mg inj," 16,372.50 "," 11,460.75 "
7/1/2022,250,7300,J3490,730.30730,NAFCILLIN 2GM SDV, 73.00 , 51.10 
7/1/2022,250,7300,J3490,730.4388,NAFCILLIN 10GM INJ, 317.00 , 221.90 
7/1/2022,636,7300,J3489,730.4148,RECLAST 5MG/100ML INJ," 1,052.00 ", 736.40 
7/1/2022,636,7300,J3489,730.4351,ZOMETA 4MG/100ML PM, 779.00 , 545.30 
7/1/2022,636,7300,J3486,730.4062,GEODON 20MG/ML VIAL, 147.00 , 102.90 
7/1/2022,636,7300,J3480,730.3714,D-5 1/2NS KCL 10MEQ, 109.00 , 76.30 
7/1/2022,636,7300,J3480,730.3717,D-5 1/2NS KCL 40MEQ, 109.00 , 76.30 
7/1/2022,636,7300,J3480,730.0378,POTASSIUM 10mEq PREMIX INJ, 88.00 , 61.60 
7/1/2022,636,7300,J3480,730.2698,POT CL 10MEQ INJ, 21.00 , 14.70 
7/1/2022,636,7300,J3480,730.0532,POT CL 40MEQ INJ, 22.00 , 15.40 
7/1/2022,636,7300,J3480,730.40730,NS W/40 mEq KCL 1000ML BAG, 109.00 , 76.30 
7/1/2022,636,7300,J3480,730.3716,D-5 1/2NS KCL 30MEQ, 109.00 , 76.30 
7/1/2022,636,7300,J3480,730.3715,D-5 1/2NS KCL 20MEQ, 109.00 , 76.30 
7/1/2022,636,7300,J3480,730.1750,POT CL 20MEQ INJ, 18.00 , 12.60 
7/1/2022,636,7300,J3480,730.4073,NS W/20mEq KCL 1000ML BAG, 109.00 , 76.30 
7/1/2022,636,7300,J3475,730.4063,MAGNESIUM SULF 10MG/ML 100ML, 101.00 , 70.70 
7/1/2022,636,7300,J3475,730.3673,MAGNESIUM SULF 40GM/1000ML, 109.00 , 76.30 
7/1/2022,636,7300,J3475,730.40630,MAGNESIUM SULF 40MG/ML 100ML, 100.00 , 70.00 
7/1/2022,636,7300,J3475,730.1425,MAGNESIUM SULF 50% 2ML INJ, 15.00 , 10.50 
7/1/2022,636,7300,J3465,730.40940,VFEND 200MG IV SDV, 502.33 , 351.63 
7/1/2022,636,7300,J3430,730.0686,AQUAMEPHYTON 10MG/1ML, 143.00 , 100.10 
7/1/2022,636,7300,J3430,730.0685,AQUAMEPHYTON NEO 1MG INJ, 22.00 , 15.40 
7/1/2022,636,7300,J3420,730.0730,B12 1000MCG/ML INJ, 29.00 , 20.30 
7/1/2022,636,7290,J3420,729.3468,B12 1000MCG/ML INJ, 29.00 , 20.30 
7/1/2022,636,7300,J3411,730.2061,THIAMINE 100MG INJ, 34.00 , 23.80 
7/1/2022,636,7300,J3410,730.2339,VISTARIL 50MG/1ML VIAL, 21.00 , 14.70 
7/1/2022,636,7300,J3380,730.4456,ENTYVIO 300MG INJ," 13,870.00 "," 9,709.00 "
7/1/2022,636,7300,J3370,730.4555,VANCOMYCIN 1.5GM SDV, 76.00 , 53.20 
7/1/2022,636,7300,J3370,730.4380,VANCOMYCIN 500MG PREMIX, 98.00 , 68.60 
7/1/2022,636,7300,J3370,730.4557,VANCOMYCIN 2GM PREMIX, 261.00 , 182.70 
7/1/2022,636,7300,J3370,730.4382,VANCOMYCIN 1GM PREMIX, 174.00 , 121.80 
7/1/2022,636,7300,J3370,730.4509,VANCOMYCIN 750MG SDV, 37.00 , 25.90 
7/1/2022,636,7300,J3370,730.24690,VANCOMYCIN 500MG SDV, 32.00 , 22.40 
7/1/2022,636,7300,J3370,730.4558,VANCOMYCIN 1.75GM PREMIX, 233.00 , 163.10 
7/1/2022,636,7300,J3370,730.4554,VANCOMYCIN 1.25GM sdv, 65.00 , 45.50 
7/1/2022,636,7300,J3370,730.30700,VANCOMYCIN 1GM SDV, 54.00 , 37.80 
7/1/2022,636,7300,J3360,730.02310,VALIUM 10MG/2ML SYRINGE, 85.00 , 59.50 
7/1/2022,636,7300,J3358,730.4523,STELARA 130MG INJ," 4,410.00 "," 3,087.00 "
7/1/2022,636,7300,J3301,730.3485,KENALOG 40MG/ML INJ, 36.00 , 25.20 
7/1/2022,636,7300,J3300,730.4250,TRIESENCE 40MG/1ML OPHTH INJ, 424.00 , 296.80 
7/1/2022,636,7300,J3262,730.4244,ACTEMRA 400MG/20ML," 6,016.00 "," 4,211.20 "
7/1/2022,636,7300,J3262,730.4653,ACTEMRA 200MG INJ," 3,386.75 "," 2,370.73 "
7/1/2022,636,7300,J3260,730.1566,TOBRAMYCIN 80MG/2ML INJ, 16.00 , 11.20 
7/1/2022,636,7300,J3260,730.0391,NEBCIN 1.2GM 40ML DRY POWDER, 491.00 , 343.70 
7/1/2022,636,7300,J3240,730.4660,THYROGEN 0.9MG INJ," 5,062.25 "," 3,543.58 "
7/1/2022,636,7300,J3230,730.2077,THORAZINE 25MG 1ML INJ, 79.00 , 55.30 
7/1/2022,636,7300,J3111,730.4535,Evenity 210mg(2syringe dose)," 5,028.00 "," 3,519.60 "
7/1/2022,636,7300,J3105,730.3876,BRETHINE 1MG/ML AMP, 21.00 , 14.70 
7/1/2022,636,7300,J3101,730.3449,TNKase 50MG INJ," 16,130.00 "," 11,291.00 "
7/1/2022,636,7300,J3032,730.4643,Vyepti 100mg inj," 4,437.50 "," 3,106.25 "
7/1/2022,637,7300,J3030,730.0448,IMITREX 0.5ML VIAL, 31.00 , 21.70 
7/1/2022,636,7300,J3010,730.02330,FENTANYL 100MCG/2ML AMP, 14.00 , 9.80 
7/1/2022,636,7300,J3010,730.0247,FENTANYL 250MCG/5ML, 15.00 , 10.50 
7/1/2022,636,7300,J2997,730.3832,ACTIVASE 2MG/CATHFLO, 431.00 , 301.70 
7/1/2022,636,7300,J2997,730.0980,ACTIVASE 100MG," 24,211.00 "," 16,947.70 "
7/1/2022,636,7300,J2997,730.3241,ACTIVASE 50MG VIAL," 12,111.00 "," 8,477.70 "
7/1/2022,636,7300,J2930,730.0551,SOLU-MEDROL 125MG INJ, 37.00 , 25.90 
7/1/2022,636,7300,J2930,730.1939,SOLU-MEDROL 500MG INJ, 74.00 , 51.80 
7/1/2022,636,7300,J2930,730.0552,SOLU-MEDROL 1000MG INJ, 125.00 , 87.50 
7/1/2022,636,7300,J2920,730.1937,SOLU-MEDROL 40MG INJ, 27.00 , 18.90 
7/1/2022,636,7300,J2916,730.4018,FERRLECIT 62.5MG AMP, 98.00 , 68.60 
7/1/2022,636,7300,J2800,730.1855,ROBAXIN 10ML INJ, 192.00 , 134.40 
7/1/2022,636,7300,J2795,730.41150,FENTANYL 2MCG/ML/ROPIVACAINE, 187.00 , 130.90 
7/1/2022,636,7300,J2795,730.34301,NAROPIN 0.5% 30ML SDV, 70.00 , 49.00 
7/1/2022,636,7300,J2795,730.34302,NAROPIN 0.5% 20ML SDV, 50.00 , 35.00 
7/1/2022,636,7300,J2795,730.3437,NAROPIN 200MG/100ML SDV, 209.00 , 146.30 
7/1/2022,636,7300,J2791,730.34130,RHOPHYLAC 300MCG 1500IU SYRG, 451.00 , 315.70 
7/1/2022,636,7300,J2785,730.4171,LEXISCAN 0.4MG/5ML SYRINGE, 678.00 , 474.60 
7/1/2022,636,7300,J2765,730.2380,REGLAN 10MG/2ML INJ, 13.00 , 9.10 
7/1/2022,636,7300,J2760,730.0547,REGITINE 5MG/2ML," 1,179.00 ", 825.30 
7/1/2022,637,7300,J2720,730.0544,PROTAMINE 50MG/5ML INJ, 44.00 , 30.80 
7/1/2022,636,7300,J2710,730.3931,NEOSTIGMINE 1:1000 1 ML INJ, 32.00 , 22.40 
7/1/2022,636,7300,J2704,730.3230,DIPRIVAN 20ML VIAL, 26.00 , 18.20 
7/1/2022,636,7300,J2704,730.4236,DIPRIVAN 50ML SDV, 123.00 , 86.10 
7/1/2022,636,7300,J2700,730.2438,PROSTAPHLIN 2GM VIAL, 72.00 , 50.40 
7/1/2022,636,7300,J2700,730.1808,PROSTAPHLIN 1GM ADD-V IV, 41.00 , 28.70 
7/1/2022,636,7300,J2700,730.0311,OXACILLIN 10GM VIAL, 315.00 , 220.50 
7/1/2022,636,7300,J2597,730.2843,DDAVP 4MCG/ML 1ML AMP, 39.00 , 27.30 
7/1/2022,636,7300,J2590,730.0542,PITOCIN 10U/ML, 14.00 , 9.80 
7/1/2022,636,7300,J2590,730.05422,OXYTOCIN 30U/500ML NS, 113.00 , 79.10 
7/1/2022,636,7300,J2560,730.0197,PHENOBARB 65MG INJ, 67.00 , 46.90 
7/1/2022,636,7300,J2560,730.0148,PHENOBARB 130MG INJ, 159.00 , 111.30 
7/1/2022,636,7300,J2550,730.0543,PHENERGAN 25MG INJ, 15.00 , 10.50 
7/1/2022,636,7300,J2543,730.39320,ZOSYN 4.5GM SDV, 48.00 , 33.60 
7/1/2022,636,7300,J2543,730.4384,ZOSYN 3.375GM PREMIX, 142.00 , 99.40 
7/1/2022,636,7300,J2543,730.4374,ZOSYN 4.5GM PREMIX, 158.00 , 110.60 
7/1/2022,636,7300,J2543,730.3932,ZOSYN 3.375GM, 39.00 , 27.30 
7/1/2022,636,7300,J2543,730.0566,ZOSYN 2.25GM VIAL, 29.00 , 20.30 
7/1/2022,636,7300,J2540,730.0510,"PEN G POT 5,000,000 U/INJ", 45.00 , 31.50 
7/1/2022,636,7300,J2540,730.4379,PENICILLIN G POT 3MU PREMIX, 106.00 , 74.20 
7/1/2022,636,7300,J2506,730.4671,NEULASTA 6MG INJ," 17,146.00 "," 12,002.20 "
7/1/2022,636,7300,J2506,730.3891,Neulasta Onpro 6mg," 17,146.00 "," 12,002.20 "
7/1/2022,636,7300,J2469,730.4484,ALOXI 0.25MG INJ, 758.00 , 530.60 
7/1/2022,636,7300,J2440,730.2317,PAPAVERINE 60MG/2ML AMP, 105.00 , 73.50 
7/1/2022,636,7300,J2430,730.0514,AREDIA 30MG VIAL, 233.00 , 163.10 
7/1/2022,636,7300,J2407,730.4367,ORBACTIV 400MG INJ," 2,748.00 "," 1,923.60 "
7/1/2022,636,7300,J2405,730.3538,ZOFRAN 2MG/ML 2ML INJ, 11.00 , 7.70 
7/1/2022,636,7300,J2370,730.4673,PHENYLEPHRINE 50MG/NS 250ML PM, 303.00 , 212.10 
7/1/2022,636,7300,J2370,730.4672,PHENYLEPHRINE 25MG/NS 250ML PM, 229.75 , 160.83 
7/1/2022,636,7300,J2370,730.0541,NEO-SYNEPH 1% 1ML INJ, 27.00 , 18.90 
7/1/2022,636,7300,J2370,730.4659,Phenylephrine 1000mcg/10ml inj, 27.25 , 19.08 
7/1/2022,636,7300,J2358,730.04840,ZYPREXA 10MG SDV, 128.00 , 89.60 
7/1/2022,636,7300,J2357,730.4511,XOLAIN 75MG SYR," 1,502.00 "," 1,051.40 "
7/1/2022,636,7300,J2357,730.4104,XOLAIR 150MG SDV," 2,935.00 "," 2,054.50 "
7/1/2022,637,7300,J2354,730.3635,SANDOSTATIN 50MCG INJ, 23.00 , 16.10 
7/1/2022,637,7300,J2354,730.35291,SANDOSTATIN 500MCG/1ML AMP, 147.00 , 102.90 
7/1/2022,637,7300,J2354,730.3529,SANDOSTATIN 100MCG/ML INJ, 84.00 , 58.80 
7/1/2022,636,7300,J2353,730.4439,SANDOSTATIN LAR DEPOT 30MG INJ," 16,816.00 "," 11,771.20 "
7/1/2022,636,7300,J2350,730.4463,OCREVUS 300 MG INJ," 36,713.00 "," 25,699.10 "
7/1/2022,636,7300,J2323,730.4223,TYSABRI 300MG/15ML," 17,005.00 "," 11,903.50 "
7/1/2022,636,7300,J2310,730.0540,NARCAN 0.4MG/1ML ADULT INJ, 54.00 , 37.80 
7/1/2022,636,7300,J2310,730.2967,NARCAN 1MG/1ML 2ML AMP, 101.00 , 70.70 
7/1/2022,636,7300,J2300,730.3274,NUBAIN 20MG AMP, 20.00 , 14.00 
7/1/2022,636,7300,J2274,730.0190,DURAMORPH 5MG/10ML, 79.00 , 55.30 
7/1/2022,636,7300,J2274,730.01900,DURAMORPH 10MG/10ML SDV, 58.00 , 40.60 
7/1/2022,636,7300,J2270,730.0007,MORPHINE 10MG INJ, 16.00 , 11.20 
7/1/2022,636,7300,J2270,730.0240,MORPHINE SULF 2MG/1ML, 15.00 , 10.50 
7/1/2022,636,7300,J2270,730.0021,MORPHINE 4MG TUBEX INJ, 15.00 , 10.50 
7/1/2022,636,7300,J2260,730.3470,PRIMACOR 20MG 100ML PREMIX, 128.00 , 89.60 
7/1/2022,636,7300,J2250,730.0237,VERSED 2MG/2ML VIAL, 13.00 , 9.10 
7/1/2022,636,7300,J2250,730.0228,VERSED 5MG/1ML VIAL, 13.00 , 9.10 
7/1/2022,636,7300,J2250,730.4261,MIDAZOLAM 10MG/2ML, 14.00 , 9.80 
7/1/2022,636,7300,J2248,730.4206,MYCAMINE SODIUM 100MG SDV, 524.00 , 366.80 
7/1/2022,636,7300,J2210,730.1483,METHERGINE 0.2MG/1ML INJ, 65.00 , 45.50 
7/1/2022,636,7300,J2185,730.3895,MERREM 30ML VIALS, 50.00 , 35.00 
7/1/2022,636,7300,J2185,730.4373,MERREM 1 GM/NS 50ML PREMIX, 148.00 , 103.60 
7/1/2022,636,7300,J2185,730.4375,MERREM 500MG/NS 50 ML PREMIX, 130.00 , 91.00 
7/1/2022,636,7300,J2175,730.0002,MEPERIDINE 25MG INJ, 13.00 , 9.10 
7/1/2022,636,7300,J2150,730.3720,MANNITOL IV 20% 500ML, 139.00 , 97.30 
7/1/2022,636,7300,J2060,730.0302,ATIVAN 2MG/ML 10ML, 34.00 , 23.80 
7/1/2022,636,7300,J2060,730.0232,ATIVAN 2MG/1ML, 13.00 , 9.10 
7/1/2022,636,7300,J2020,730.3473,ZYVOX 600MG/300MG PREMIX, 337.00 , 235.90 
7/1/2022,636,7300,J2001,730.0556,LIDOCAINE 100MG/5ML IV SYRG, 19.00 , 13.30 
7/1/2022,636,7300,J2001,730.2285,LIDOCAINE 0.5% 50ML, 21.00 , 14.70 
7/1/2022,636,7300,J2001,730.2653,LIDOCAINE 2GM/500ML BAG, 96.00 , 67.20 
7/1/2022,636,7300,J2001,730.3971,LIDOCAINE HCL 40MG/50ML, 120.00 , 84.00 
7/1/2022,636,7300,J1956,730.0379,LEVAQUIN 500MG PREMIX, 114.00 , 79.80 
7/1/2022,636,7300,J1956,730.3829,LEVAQUIN 250MG/50MG PREMIX, 100.00 , 70.00 
7/1/2022,636,7300,J1956,730.03790,LEVAQUIN 750MG PREMIX IVPB, 125.00 , 87.50 
7/1/2022,636,7300,J1953,730.38673,KEPPRA 1000MG/100ML PREMIX, 194.00 , 135.80 
7/1/2022,636,7300,J1940,730.4553,LASIX 100MG/10ML INJ, 19.00 , 13.30 
7/1/2022,636,7300,J1940,730.2560,LASIX 40MG/4ML INJ, 18.00 , 12.60 
7/1/2022,636,7300,J1885,730.3339,TORADOL 60MG SYRINGE, 18.00 , 12.60 
7/1/2022,636,7290,J1885,729.3455,TORADOL 60MG SYRINGE, 18.00 , 12.60 
7/1/2022,636,7290,J1885,729.3449,TORADOL 30MG SYRINGE, 26.00 , 18.20 
7/1/2022,636,7300,J1885,730.3338,TORADOL 30MG SYRINGE, 26.00 , 18.20 
7/1/2022,637,7300,J1815,730.27951,HUMULIN N 3ML VIAL, 56.00 , 39.20 
7/1/2022,637,7300,J1815,730.04980,HUMALOG 3ML BTL, 91.00 , 63.70 
7/1/2022,637,7300,J1815,730.04981,HUMALOG 75/25 3ML PEN, 133.00 , 93.10 
7/1/2022,637,7300,J1815,730.4527,MYXREDLIN 100U/100ML PREMIX, 190.00 , 133.00 
7/1/2022,637,7300,J1815,730.2796,HUMULIN N 100U/ML 10ML MDV, 34.75 , 24.33 
7/1/2022,637,7300,J1815,730.4238,APIDRA SoloStar 100U/ML 3ML, 130.00 , 91.00 
7/1/2022,636,7300,J1800,730.1267,INDERAL 1MG/1ML INJ, 30.00 , 21.00 
7/1/2022,636,7300,J1790,730.0524,INAPSINE 5MG/2ML INJ, 20.00 , 14.00 
7/1/2022,636,7300,J1756,730.12600,VENOFER 100MG/5ML SDV, 142.00 , 99.40 
7/1/2022,636,7300,J1745,730.2035,REMICADE 100MG/20ML," 3,222.00 "," 2,255.40 "
7/1/2022,636,7300,J1741,730.4264,CALDOLOR 800MG/8ML SDV, 129.00 , 90.30 
7/1/2022,636,7300,J1720,730.1936,SOLU-CORTEF 500MG INJ, 147.00 , 102.90 
7/1/2022,636,7300,J1720,730.2331,SOLU-CORTEF 100MG INJ, 47.00 , 32.90 
7/1/2022,636,7300,J1670,730.4056,TETANUS IMMUNE GLOB 250/BAYTET," 1,467.00 "," 1,026.90 "
7/1/2022,636,7300,J1652,730.38710,ARIXTRA 10MG/0.8ML SDV, 171.00 , 119.70 
7/1/2022,636,7300,J1652,730.38711,ATRIXTRA 5MG/0.4ML SYRINGE, 159.50 , 111.65 
7/1/2022,250,7300,J1652,730.4657,Arixtra 7.5mg/0.6ml syringe, 159.50 , 111.65 
7/1/2022,636,7300,J1652,730.3871,ARIXTRA 2.5MG/0.5ML INJ, 79.00 , 55.30 
7/1/2022,636,7300,J1650,730.3816,LOVENOX 100MG/1ML SYR, 51.00 , 35.70 
7/1/2022,636,7300,J1650,730.3843,LOVENOX 150MG INJ, 72.00 , 50.40 
7/1/2022,636,7300,J1650,730.0733,LOVENOX 30MG/0.3ML, 78.00 , 54.60 
7/1/2022,636,7300,J1650,730.3842,LOVENOX 120MG INJ, 60.00 , 42.00 
7/1/2022,636,7300,J1650,730.1774,LOVENOX 80MG SYRINGE, 43.00 , 30.10 
7/1/2022,636,7300,J1650,730.0705,LOVENOX 40MG INJ, 92.00 , 64.40 
7/1/2022,636,7300,J1650,730.3817,LOVENOX 60MG/0.6ML SYRINGE, 35.00 , 24.50 
7/1/2022,636,7300,J1644,730.12180,"HEPARIN 5,000U/ML MDV", 17.00 , 11.90 
7/1/2022,636,7300,J1644,730.3500,HEPARIN 1000U/NS 500ML, 93.00 , 65.10 
7/1/2022,636,7300,J1644,730.05300,HEPARIN 1000U/1ML SDV, 17.00 , 11.90 
7/1/2022,636,7300,J1644,730.0530,HEPARIN 1000U 1ML 10ML, 18.00 , 12.60 
7/1/2022,636,7300,J1644,730.4441,HEPARIN 2000 U/1000 ML, 109.00 , 76.30 
7/1/2022,636,7300,J1644,730.2058,HEPARIN 40U/ML DEXTROSE 500ML, 105.00 , 73.50 
7/1/2022,636,7300,J1642,730.29911,HEPARIN LOCK FLUSH 5ML SYRINGE, 13.00 , 9.10 
7/1/2022,636,7300,J1630,730.1201,HALDOL 5MG/1ML INJ, 27.00 , 18.90 
7/1/2022,636,7300,J1626,730.40034,KYTRIL 1MG/1ML SDV, 62.00 , 43.40 
7/1/2022,636,7300,J1610,730.1183,GLUCAGON 1MG/1ML INJ, 482.00 , 337.40 
7/1/2022,636,7300,J1602,730.4641,Simponi Aria 50mg inj," 5,508.00 "," 3,855.60 "
7/1/2022,636,7300,J1580,730.0503,GARAMYCIN 80MG/2ML INJ, 19.00 , 13.30 
7/1/2022,636,7300,J1580,730.2933,GENTAMICIN 80MG RTU BAN, -   , -   
7/1/2022,636,7300,J1580,730.2381,GARAMYCIN PEDI 20MG INJ, 21.00 , 14.70 
7/1/2022,636,7300,J1571,730.40450,HYPERHEP B 5ML SDV," 2,210.00 "," 1,547.00 "
7/1/2022,636,7300,J1568,730.7095,OCTAGAM 10% 30GM/300ML SDV," 8,851.00 "," 6,195.70 "
7/1/2022,636,7300,J1459,730.4300,PRIVIGEN 40GM VIAL," 16,977.00 "," 11,883.90 "
7/1/2022,636,7300,J1459,730.40951,PRIVIGEN 10GM SDV," 4,302.00 "," 3,011.40 "
7/1/2022,636,7300,J1453,730.4483,EMEND 150MG INJ, 930.00 , 651.00 
7/1/2022,636,7300,J1450,730.3696,DIFLUCAN 200MG/100ML PREMIX, 101.00 , 70.70 
7/1/2022,636,7300,J1442,730.3630,NEUPOGEN 480MCG/1.6ML," 1,472.00 "," 1,030.40 "
7/1/2022,636,7300,J1442,730.3744,NEUPOGEN 300MCG/1ML, 928.00 , 649.60 
7/1/2022,636,7300,J1439,730.4313,INJ FERRIC CARBOXYMALTOSE," 2,740.00 "," 1,918.00 "
7/1/2022,636,7300,J1410,730.3544,PREMARIN 25MG INJ, 826.00 , 578.20 
7/1/2022,636,7300,J1364,730.1105,ERYTHROMYCIN 500MG VIAL, 215.00 , 150.50 
7/1/2022,636,7300,J1335,730.3860,INVANZ 1 GM SDV, 364.00 , 254.80 
7/1/2022,636,7300,J1327,730.4055,INTEGRILIN 10ML VIAL/BOLUS, 488.00 , 341.60 
7/1/2022,636,7300,J1327,730.40550,INTEGRILIN 0.75MG/ML 100ML," 1,845.00 "," 1,291.50 "
7/1/2022,636,7300,J1301,730.4474,RADICAVA 1 MG INJ," 1,877.00 "," 1,313.90 "
7/1/2022,636,7300,J1265,730.3075,DOPAMINE 400MG/250ML PREMIX, 116.00 , 81.20 
7/1/2022,636,7300,J1250,730.0425,DOBUTREX 250MG/250ML BAG, 103.00 , 72.10 
7/1/2022,636,7300,J1205,730.3886,DIURIL SODIUM 500MG SDV, 450.00 , 315.00 
7/1/2022,636,7300,J1200,730.2600,BENADRYL 50MG/1ML INJ, 18.00 , 12.60 
7/1/2022,636,7300,J1190,730.4656,Dexrazoxane 500mg inj," 1,107.25 ", 775.08 
7/1/2022,636,7300,J1170,730.0203,DILAUDID 2MG/ML INJ, 18.00 , 12.60 
7/1/2022,636,7300,J1165,730.0998,DILANTIN SOD 250MG INJ, 18.00 , 12.60 
7/1/2022,636,7300,J1165,730.0997,DILANTIN SOD 100MG INJ, 16.00 , 11.20 
7/1/2022,636,7300,J1160,730.0533,LANOXIN 0.5MG/2ML INJ, 287.00 , 200.90 
7/1/2022,636,7300,J1120,730.0978,DIAMOX 500MG INJ, 124.00 , 86.80 
7/1/2022,636,7300,J1100,730.4330,DECADRON PF 10MG INJ, 25.00 , 17.50 
7/1/2022,636,7300,J1100,730.0522,DECADRON 4MG/1ML INJ, 16.00 , 11.20 
7/1/2022,636,7300,J1100,730.0928,DECADRON 4MG/ML 5ML MDV, 27.00 , 18.90 
7/1/2022,636,7290,J1100,729.3447,DECADRON 4MG/1ML INJ, 16.00 , 11.20 
7/1/2022,636,7300,J1071,730.41300,TESTOSTERONE 200MG/ML 1ML SDV, 25.00 , 17.50 
7/1/2022,636,7300,J1050,730.1098,DEPO-PROVERA 150MG/ML, 234.00 , 163.80 
7/1/2022,636,7300,J1040,730.0954,DEPO-MEDROL 80MG/1ML, 61.00 , 42.70 
7/1/2022,636,7290,J1030,729.3450,DEPO-MEDROL 40MG INJ, 39.00 , 27.30 
7/1/2022,636,7300,J1030,730.2361,DEPO-MEDROL 40MG INJ, 39.00 , 27.30 
7/1/2022,636,7300,J0897,730.4227,PROLIA 60MG/1ML SYRINGE," 3,265.00 "," 2,285.50 "
7/1/2022,636,7300,J0885,730.2018,"EPOGEN 20,000U/ML VIAL"," 1,425.00 ", 997.50 
7/1/2022,636,7300,J0883,730.4003,ARGATROBAN 250MG/2.5ML VIAL," 1,413.00 ", 989.10 
7/1/2022,636,7300,J0882,730.4616,ARANESP 40MCG/0.4ML INJ, 861.50 , 603.05 
7/1/2022,636,7300,J0881,730.3908,ARANESP 25MCG/ML SDV, 542.00 , 379.40 
7/1/2022,636,7300,J0881,730.4620,ARANESP 40MCG/0.4ML IN NO ESRD, 861.50 , 603.05 
7/1/2022,636,7300,J0881,730.4049,ARANESP 200MCG 0.4ML PFS," 4,267.00 "," 2,986.90 "
7/1/2022,636,7300,J0878,730.4533,CUBICIN 350MG SDV, 285.00 , 199.50 
7/1/2022,636,7300,J0878,730.4093,CUBICIN 500MG SDV," 1,235.00 ", 864.50 
7/1/2022,636,7300,J0875,730.4669,Dalvance 500mg Inj," 4,621.75 "," 3,235.23 "
7/1/2022,636,7300,J0841,730.4648,ANAVIP 1VIAL INJ," 3,365.00 "," 2,355.50 "
7/1/2022,636,7300,J0840,730.4001,CROFAB VIAL VACCINE," 8,805.00 "," 6,163.50 "
7/1/2022,636,7300,J0834,730.0895,CORTROSYN .25MG AMP, 253.00 , 177.10 
7/1/2022,636,7300,J0780,730.0876,COMPAZINE 10MG/2ML INJ, 61.00 , 42.70 
7/1/2022,636,7300,J0770,730.4156,COLISTIN 150MG SDV, 87.00 , 60.90 
7/1/2022,636,7300,j0735,730.4539,Clonidine 1000mg/10ml inj, 78.00 , 54.60 
7/1/2022,636,7300,J0717,730.4296,CIMZIA 400MG INJ," 11,132.00 "," 7,792.40 "
7/1/2022,636,7300,J0714,730.4595,AVYCAZ 2G/0.5GM INJ," 1,242.00 ", 869.40 
7/1/2022,636,7300,J0713,730.2998,CEFTAZIDIME 1GM ADD-V IV, 25.00 , 17.50 
7/1/2022,250,7300,J0713,730.3060,CEFTAZIDIME 2GM, 47.00 , 32.90 
7/1/2022,636,7300,J0713,730.2990,CEFTAZIDIME 1GM VIAL, 22.00 , 15.40 
7/1/2022,636,7300,J0712,730.4237,TEFLARO 600MG SDV, 493.00 , 345.10 
7/1/2022,636,7300,J0702,730.0820,CELESTONE 6MG/1ML 5ML VIAL, 37.00 , 25.90 
7/1/2022,636,7300,J0697,730.0663,ZINACEF 1500MG INJ, 23.00 , 16.10 
7/1/2022,636,7300,J0696,730.3155,ROCEPHIN 250MG VIAL, 12.00 , 8.40 
7/1/2022,636,7300,J0696,730.29550,ROCEPHIN 1GM PREMIX, 128.00 , 89.60 
7/1/2022,636,7300,J0696,730.29551,ROCEPHIN 2GM PREMIX, 186.00 , 130.20 
7/1/2022,636,7300,J0696,730.3143,ROCEPHIN 2GM, 18.00 , 12.60 
7/1/2022,636,7300,J0696,730.3188,ROCEPHIN 500MG VIAL, 13.00 , 9.10 
7/1/2022,636,7290,J0696,729.3437,ROCEPHIN 1GM VIAL, 14.00 , 9.80 
7/1/2022,636,7300,J0696,730.2955,ROCEPHIN 1GM VIAL, 14.00 , 9.80 
7/1/2022,636,7300,J0695,730.4667,Zerbaxa 1.5gm inj, 371.25 , 259.88 
7/1/2022,636,7300,J0694,730.3050,MEFOXIN 1GM VIAL, 27.00 , 18.90 
7/1/2022,636,7300,J0694,730.2408,MEFOXIN 2GM INJ, 38.00 , 26.60 
7/1/2022,636,7300,J0692,730.2528,MAXIPIME 1GM VIAL, 27.00 , 18.90 
7/1/2022,636,7300,J0692,730.23080,CEFEPIME 2GM SDV, 35.00 , 24.50 
7/1/2022,636,7300,J0692,730.4362,MAXIPIME 1 GM PREMIX, 163.00 , 114.10 
7/1/2022,636,7300,J0692,730.4361,MAXIPIME 2GM PREMIX, 215.00 , 150.50 
7/1/2022,636,7300,J0690,730.29780,KEFZOL 2GM PREMIX, 107.00 , 74.90 
7/1/2022,636,7300,J0690,730.29781,KEFZOL 1GM PREMIX, 91.00 , 63.70 
7/1/2022,636,7300,J0690,730.4492,KEFZOL 500MG SDV, 16.00 , 11.20 
7/1/2022,636,7300,J0690,730.29782,KEFZOL 1GM SDV, 13.00 , 9.10 
7/1/2022,636,7300,J0670,730.4594,POLOCAINE MPF 2% 20ML INJ, 32.00 , 22.40 
7/1/2022,636,7300,J0641,730.2650,LEUCOVORIN 50MG VIAL, 148.00 , 103.60 
7/1/2022,636,7300,J0640,730.3497,LEUCOVORIN 350MG VIAL, 62.00 , 43.40 
7/1/2022,636,7300,J0636,730.4155,CALCITRIOL 1MCG/1ML SDV, 31.00 , 21.70 
7/1/2022,637,7300,J0630,730.32360,MIACALCIN 400IU/2ML MDV," 7,444.00 "," 5,210.80 "
7/1/2022,636,7300,J0610,730.0798,CALCIUM GLUCONATE 10% 10ML INJ, 30.00 , 21.00 
7/1/2022,636,7300,J0610,730.4637,CalciumGluconate 1gm/100ml PMX, 117.75 , 82.43 
7/1/2022,636,7300,J0595,730.05530,BUTORPHANOL 4MG/2ML SDV, 31.00 , 21.70 
7/1/2022,636,7300,J0595,730.0553,STADOL 2MG/1ML INJ, 24.00 , 16.80 
7/1/2022,636,7300,J0585,730.4005,BOTOX 100U SDV VIAL," 1,663.00 "," 1,164.10 "
7/1/2022,636,7300,J0583,730.4082,ANGIOMAX 250MG SDV," 1,523.00 "," 1,066.10 "
7/1/2022,636,7300,J0565,730.4633,Zinplava 1000mg/40ml," 10,460.00 "," 7,322.00 "
7/1/2022,636,7300,J0561,730.0770,"BICILLIN LA 1,200,000U/2ML INJ", 443.00 , 310.10 
7/1/2022,636,7300,J0517,730.4488,FASENRA 1 MG INJ," 13,275.00 "," 9,292.50 "
7/1/2022,636,7300,J0515,730.0853,COGENTIN 1MG/2ML AMP, 139.00 , 97.30 
7/1/2022,636,7300,J0500,730.2346,BENTYL 10MG/ML 2ML INJ, 231.00 , 161.70 
7/1/2022,636,7300,J0491,730.4623,Saphnelo 300mg inj," 12,661.50 "," 8,863.05 "
7/1/2022,636,7300,J0490,730.4629,Benlysta 120mg," 1,545.25 "," 1,081.68 "
7/1/2022,636,7300,J0490,730.4630,Benlysta 400mg," 5,127.25 "," 3,589.08 "
7/1/2022,636,7300,J0461,730.0517,ATROPINE 0.4MG/ML INJ, 29.00 , 20.30 
7/1/2022,636,7300,J0461,730.3375,ATROPINE 1MG/1ML VIAL, 40.00 , 28.00 
7/1/2022,636,7300,J0461,730.0721,ATROPINE 1MG PER 10ML SYRINGE, 36.00 , 25.20 
7/1/2022,636,7300,J0456,730.0423,ZITHROMAX 500MG IV, 27.00 , 18.90 
7/1/2022,636,7300,J0360,730.0681,APRESOLINE 20MG/1ML INJ, 35.00 , 24.50 
7/1/2022,636,7300,J0330,730.0661,ANECTINE 20MG/ML 10ML, 63.00 , 44.10 
7/1/2022,636,7300,J0295,730.37350,UNASYN 3GM SDV, 28.00 , 19.60 
7/1/2022,636,7300,J0290,730.2867,AMPICILLIN 2GM INJ, 30.00 , 21.00 
7/1/2022,636,7300,J0290,730.0651,AMPICILLIN 1GM INJ, 24.00 , 16.80 
7/1/2022,636,7300,J0290,730.0650,AMPICILLIN 250MG INJ, 16.00 , 11.20 
7/1/2022,636,7300,J0290,730.0501,AMPICILLIN 500MG INJ, 18.00 , 12.60 
7/1/2022,636,7300,J0289,730.4413,AMBISOME 50 MG INJ, 706.00 , 494.20 
7/1/2022,636,7300,J0287,730.1235,ABELCET 100MG INJ, 285.00 , 199.50 
7/1/2022,250,7300,J0282,730.11593,NEXTERONE 150MG PREMIX BAG, 192.00 , 134.40 
7/1/2022,636,7300,J0282,730.4505,NEXTERONE 360MG PREMIX BAG, 227.00 , 158.90 
7/1/2022,636,7300,J0282,730.11591,CORDARONE 150MG/3ML SDV, 20.00 , 14.00 
7/1/2022,636,7300,J0280,730.0637,AMINOPHYLLIN 250MG IV, 42.00 , 29.40 
7/1/2022,636,7300,J0278,730.06310,AMIKACIN 1000MG/4ML SDV, 78.00 , 54.60 
7/1/2022,636,7300,J0256,730.09730,PROLASTIN 1GM/20ML SDV," 1,511.00 "," 1,057.70 "
7/1/2022,636,7300,J0171,730.3215,ADRENALIN 1MG/ML 30ML VIAL, 14.00 , 9.80 
7/1/2022,636,7300,J0171,730.0528,"EPINEPH 1:10,000 SYRG", 23.00 , 16.10 
7/1/2022,636,7300,J0171,730.0587,EPINEPHRINE 1ML INJ, 51.00 , 35.70 
7/1/2022,636,7300,J0153,730.3354,ADENOCARD 6MG/2ML SDV, 27.00 , 18.90 
7/1/2022,636,7300,J0153,730.33540,ADENOCARD 90MG/30ML SDV, 908.00 , 635.60 
7/1/2022,637,7300,J0135,730.4124,HUMIRA PFS 40MG/0.8ML," 3,045.00 "," 2,131.50 "
7/1/2022,636,7300,J0133,730.2865,ZOVIRAX 500MG/10ML SDV, 41.00 , 28.70 
7/1/2022,636,7300,J0132,730.4078,ACETADOTE 200MG/ML SDV, 579.00 , 405.30 
7/1/2022,636,7300,J0131,730.4245,OFIRMEV 1000MG/100ML SDV, 199.00 , 139.30 
7/1/2022,636,7300,J0129,730.4170,ORENCIA 250MG/15ML SDV," 2,887.00 "," 2,020.90 "
7/1/2022,960,7290,G2212,729.3462,PCC/PROLONG OUTPT/OFFICE VIS, 38.00 , 26.60 
7/1/2022,960,7160,G2212,716.1103,PROLONG OUTPT/OFFICE VIS, 38.00 , 26.60 
7/1/2022,960,7160,G2211,716.1105,COMPLEX E/M VISIT ADD ON, 38.00 , 26.60 
7/1/2022,960,7290,G2012,729.3467,TH BRIEF CHECK IN BY MD/QHP, 43.00 , 30.10 
7/1/2022,300,7100,G0499,710.000108,HEPB SCREEN HIGH RISK INDIV, 227.00 , 158.90 
7/1/2022,335,7510,G0498,751.31052,PROLONGED SAPPHIRE, 637.00 , 445.90 
7/1/2022,300,7100,G0482,710.000158,DRUG TEST DEF 15-21 CLASSES," 2,956.34 "," 2,069.44 "
7/1/2022,300,7100,G0481,710.000157,DRUG TEST DEF 8-14 CLASSES," 1,876.20 "," 1,313.34 "
7/1/2022,300,7100,G0480,710.000006,DRUG TEST DEF 1-7 CLASSES, 321.46 , 225.02 
7/1/2022,302,7100,G0472,710.7980,HEPATITIS C SCREEN, 206.00 , 144.20 
7/1/2022,761,7240,G0463,724.7749,CCIR MISC ROOM CHARGE MINOR, 402.84 , 281.99 
7/1/2022,760,6460,G0463,646.6005,OB TRIAGE LEVEL V 99215, 384.48 , 269.14 
7/1/2022,760,7420,G0463,742.10253,NEW PATIENT/LEVEL 3-99203, 504.36 , 353.05 
7/1/2022,760,6460,G0463,646.6003,OB TRIAGE LEVEL III 99213, 457.92 , 320.54 
7/1/2022,761,7240,G0463,724.3092,TREATMENT ROOM/SIMPLE, 180.00 , 126.00 
7/1/2022,760,7420,G0463,742.10262,ESTABLISHED LEVEL 2-99212, 402.84 , 281.99 
7/1/2022,760,7420,G0463,742.10261,ESTABLISHED LEVEL 1-99211, 212.00 , 148.40 
7/1/2022,760,6460,G0463,646.6004,OB TRIAGE LEVEL IV 99214, 613.44 , 429.41 
7/1/2022,760,7420,G0463,742.10264,ESTABLISHED LEVEL 4-99214, 613.44 , 429.41 
7/1/2022,760,6460,G0463,646.6002,OB TRIAGE LEVEL II 99212, 402.84 , 281.99 
7/1/2022,760,7420,G0463,742.2049,NEW PATIENT/LEVEL 2-99202, 379.08 , 265.36 
7/1/2022,760,6460,G0463,646.6001,OB TRIAGE LEVEL I 99211, 259.20 , 181.44 
7/1/2022,760,7420,G0463,742.2051,NEW PATIENT/LEVEL 5 99205, 761.00 , 532.70 
7/1/2022,760,7420,G0463,742.10254,NEW PATIENT/LEVEL 4-99204, 359.64 , 251.75 
7/1/2022,760,7420,G0463,742.99211,WC ESTABLISHED LEVEL 1-99211, 67.00 , 46.90 
7/1/2022,760,7420,G0463,742.10265,ESTABLISHED LEVEL 5-99215, 384.48 , 269.14 
7/1/2022,760,7420,G0463,742.10263,ESTABLISHED LEVEL 3-99213, 457.92 , 320.54 
7/1/2022,761,7510,G0463,751.3092,TREATMENT ROOM/SIMPLE, 302.40 , 211.68 
7/1/2022,510,7290,G0442,729.3427,PCC/ALCOHOL SCREEN 15 MIN, 53.00 , 37.10 
7/1/2022,770,7290,G0439,729.3358,PCC/EVAL EST PT 18-39 99395, 352.00 , 246.40 
7/1/2022,770,7290,G0439,729.3405,PCC/PPPS SUBSQ VISIT, 375.00 , 262.50 
7/1/2022,770,7290,G0439,729.3360,PCC/EVAL EST PT 65 > 99397, 403.00 , 282.10 
7/1/2022,770,7160,G0439,716.1106,EVAL EST PT 65 > 99397, 403.00 , 282.10 
7/1/2022,770,7290,G0439,729.3359,PCC/EVAL EST PT 40-64 99396, 375.00 , 262.50 
7/1/2022,770,7160,G0439,716.1107,PPPS SUBSQ VISIT, 375.00 , 262.50 
7/1/2022,770,7290,G0438,729.3425,PCC/WELLNESS VISIT INITIAL, 375.00 , 262.50 
7/1/2022,943,7140,G0422,714.1012,CAP CARDIAC REHAB W/EXERCISE, 257.00 , 179.90 
7/1/2022,943,7140,G0422,714.1003,CARDIAC REHAB W/EXERCISE, 265.00 , 185.50 
7/1/2022,770,7290,G0402,729.3380,PCC/MCR INITAL PREVENTIVE EXAM, 488.00 , 341.60 
7/1/2022,960,7290,G0396,729.3464,AUDIT/DAST 15-30 MIN, 60.00 , 42.00 
7/1/2022,684,6780,G0390,678.50016,TRAUMA RESPONS W/CRIT >30 min," 1,814.72 "," 1,270.30 "
7/1/2022,762,6160,G0379,616.5003,OBS DIRECT ADMIT," 1,516.86 "," 1,061.80 "
7/1/2022,762,6170,G0379,617.4004,OBS DIRECT ADMIT," 1,516.86 "," 1,061.80 "
7/1/2022,762,6400,G0379,640.0017,OBS DIRECT ADMIT," 1,516.86 "," 1,061.80 "
7/1/2022,762,6540,G0379,654.3096,OBS DIRECT ADMIT," 1,668.44 "," 1,167.91 "
7/1/2022,762,6700,G0379,670.4006,L&D OBS DIRECT ADMIT," 1,516.86 "," 1,061.80 "
7/1/2022,762,6130,G0379,613.5003,OBS DIRECT ADMIT," 1,516.86 "," 1,061.80 "
7/1/2022,762,6130,G0378,613.5001,OBSERVATION 1ST HOUR, 484.42 , 339.09 
7/1/2022,762,6540,G0378,654.3095,OBSERVATION EACH ADD'L HR, 91.16 , 63.81 
7/1/2022,762,6540,G0378,654.3094,OBSERVATION 1ST HR, 533.18 , 373.23 
7/1/2022,762,6160,G0378,616.5002,OBSERVATION EA ADD HR, 91.16 , 63.81 
7/1/2022,762,6700,G0378,670.4001,L&D OBSERV 1ST HOUR, 733.52 , 513.46 
7/1/2022,762,6400,G0378,640.0015,OBSERVATION 1ST HOUR, 484.42 , 339.09 
7/1/2022,762,6170,G0378,617.4003,OBSERVATION EA ADD HR, 91.16 , 63.81 
7/1/2022,762,6700,G0378,670.4004,L&D OBSERV ADDL HOUR, 91.16 , 63.81 
7/1/2022,762,6160,G0378,616.5001,OBSERVATION 1ST HOUR, 484.42 , 339.09 
7/1/2022,762,6170,G0378,617.4002,OBSERVATION 1ST HOUR, 533.18 , 373.23 
7/1/2022,762,6400,G0378,640.0016,OBSERVATION EA ADD HR, 91.16 , 63.81 
7/1/2022,762,6130,G0378,613.5002,OBSERVATION EA ADD HR, 91.16 , 63.81 
7/1/2022,300,7100,G0328,710.0715,FECAL OCCULT/MEDICARE, 42.00 , 29.40 
7/1/2022,420,7370,G0283,737.1028,PT ELECTRICAL STIMULATION, 147.00 , 102.90 
7/1/2022,430,7380,G0283,738.3057,ELECTRICAL STIMULATION, 158.00 , 110.60 
7/1/2022,401,7200,G0279,720.7808,DIGITAL BR TOMOSYNTHESIS UNIL, 327.24 , 229.07 
7/1/2022,401,7200,G0279,720.7807,DIGITAL BR TOMOSYNTHESIS BILAT, 327.24 , 229.07 
7/1/2022,481,7240,G0278,724.1300,ANGIO ILIAC ARTERY CC, 531.00 , 371.70 
7/1/2022,413,7420,G0277,742.1029,HBO TRMT 30 MIN/MEDICARE ONLY," 1,031.40 ", 721.98 
7/1/2022,942,7340,G0270,734.3410,MNT INDIV AFTR 2ND REFRL/15MIN, 52.00 , 36.40 
7/1/2022,942,7340,G0270,734.3419,TH MNT INDV AFT 2ND RFRL/15MIN, 51.94 , 36.36 
7/1/2022,481,7240,G0269,724.14890,PLACE OCCLUSIVE DEVICE VEN/ART," 3,980.00 "," 2,786.00 "
7/1/2022,360,7520,G0260,752.1006,SIJ AA/STER INJ WWO ARTH," 2,091.38 "," 1,463.97 "
7/1/2022,360,7520,G0260,752.1007,SIJ AA/STER INJ WWO ARTH BIL," 3,136.54 "," 2,195.58 "
7/1/2022,948,7140,G0239,714.1016,RESP FCN/STRENGH 2/> GROUP, 160.00 , 112.00 
7/1/2022,960,7160,G0180,716.1111,TCPC/MD CERTIFICATION HHA Pt, 110.00 , 77.00 
7/1/2022,960,7160,G0179,716.1110q,MD RECERT HHA PATIENT, 119.00 , 83.30 
7/1/2022,960,7290,G0179,729.3393,PCC/MD RECERT HHA PATIENT, 119.00 , 83.30 
7/1/2022,300,7100,G0103,710.1589,PSA SCREENING, 268.49 , 187.94 
7/1/2022,510,7290,G0101,729.3414,PCC/CA SCREEN PELVIC/BREAST EX, 116.00 , 81.20 
7/1/2022,771,6780,G0009,678.000002,ADMIN PNEU VACCINE, 143.00 , 100.10 
7/1/2022,771,6460,G0009,646.0003,ADMIN PNEU VACCINE, 143.00 , 100.10 
7/1/2022,771,6540,G0009,654.3087,OBS PNEUMO VAC ADM/CARE, 143.00 , 100.10 
7/1/2022,771,6780,G0008,678.000001,ADMIN FLU VACCINE, 135.00 , 94.50 
7/1/2022,771,6460,G0008,646.0002,ADMIN FLU VACCINE, 143.00 , 100.10 
7/1/2022,771,6540,G0008,654.3088,OBS FLU VACCINE ADM/CARE, 143.00 , 100.10 
7/1/2022,481,7240,C9607,724.7798,PERC D-E COR REVASC CHRO SIN," 24,259.00 "," 16,981.30 "
7/1/2022,481,7240,C9606,724.7796,PERC D-E COR REVASC W AMI S," 24,518.16 "," 17,162.71 "
7/1/2022,481,7240,C9604,724.7792,PERC D-E COR REVASC T CABG S," 29,660.04 "," 20,762.03 "
7/1/2022,481,7240,C9602,724.7788,PERC D-E COR STENT ATHER S," 22,429.00 "," 15,700.30 "
7/1/2022,481,7240,C9601,724.7786,PERC DRUG-EL COR STENT BRAN," 22,136.00 "," 15,495.20 "
7/1/2022,481,7240,C9600,724.7784,PERC DRUG-EL COR STENT SING," 32,033.88 "," 22,423.72 "
7/1/2022,636,7300,C9399,730.4645,Zynrelef 200mg/6mg inj, 382.75 , 267.93 
7/1/2022,278,7240,C9359,675.00991,BONE VOID FILLER 600-010," 5,625.00 "," 3,937.50 "
7/1/2022,278,6730,C9359,675.24095,PUTTY DBM 5CC P43105," 2,059.00 "," 1,441.30 "
7/1/2022,636,7300,C9290,730.4650,Exparel 1.3% 133mg 10ml, 557.00 , 389.90 
7/1/2022,636,7300,C9290,730.4282,EXPAREL 1.3% 266MG/20ML SDV, 876.00 , 613.20 
7/1/2022,636,7300,C9254,730.4207,VIMPAT 200MG/20ML SDV, 205.00 , 143.50 
7/1/2022,636,7300,C9113,730.3461,PROTONIX 40MG INJ, 24.00 , 16.80 
7/1/2022,636,7300,C9046,730.0052,COCAINE 4% 4ML SOLN 1MG, 501.00 , 350.70 
7/1/2022,610,7201,C8936,720.15271,MRI ANGIO UPPER EXTREMITY," 1,913.00 "," 1,339.10 "
7/1/2022,483,7200,C8929,720.04231,TRNSTHOR ECHO 2D W/WO CNTRST," 3,158.00 "," 2,210.60 "
7/1/2022,483,7200,C8924,720.74310,TRNSTHOR ECHO 2D W/WO CON LTD," 1,450.00 "," 1,015.00 "
7/1/2022,610,7201,C8920,720.1396,MRI ANGIO PELVIS W/WO CONT," 4,655.00 "," 3,258.50 "
7/1/2022,610,7201,C8908,720.1532,MRI BREAST BILAT W/WO CONTRAS," 4,655.00 "," 3,258.50 "
7/1/2022,610,7201,C8902,720.1398,MRI ANGIO ABDOMEN W/WO CONT," 5,432.00 "," 3,802.40 "
7/1/2022,272,7240,C2628,675.16072,CATH BALLOON BVCS6180, 495.00 , 346.50 
7/1/2022,278,7240,C2628,675.29023,BLN PUMP IAB 34 068400046901," 3,233.00 "," 2,263.10 "
7/1/2022,278,7240,C2628,675.1304,BLN PUMP IAB 40 068400047001," 2,868.00 "," 2,007.60 "
7/1/2022,278,6730,C2625,675.30634,STENT POLAR 5/26 190-123, 395.00 , 276.50 
7/1/2022,278,6730,C2625,675.83783,STENT ADVANIX RX 7X9 3458, 374.00 , 261.80 
7/1/2022,278,6730,C2625,675.30635,STENT POLAR 5/22 192-121, 395.00 , 276.50 
7/1/2022,278,6730,C2625,675.30923,STENT URET CONTOR 6/22 180-221, 278.00 , 194.60 
7/1/2022,278,6730,C2625,675.83786,STENT ADVANIX RX 10X9 3470, 654.00 , 457.80 
7/1/2022,278,6730,C2625,675.83785,STENT ADVANIX RX 10X7 3469, 374.00 , 261.80 
7/1/2022,278,6730,C2625,675.029374,STENT PANCREATIC 5FR-3CM 3754, 739.00 , 517.30 
7/1/2022,278,6730,C2625,675.12013,STENT PANCREATIC 3Fx5MM G27181, 518.00 , 362.60 
7/1/2022,278,6730,C2625,675.83784,STENT ADVANIX RX 10X5 3468, 654.00 , 457.80 
7/1/2022,278,6730,C2625,675.81051,STENT ADVANTIX RX 8.5X7 3463, 374.00 , 261.80 
7/1/2022,278,6730,C2625,675.83782,STENT ADVANIX RX 7X7 3457, 510.00 , 357.00 
7/1/2022,278,6730,C2625,675.19941,STENT URET CONTOR 6/20 180-220, 300.00 , 210.00 
7/1/2022,278,6730,C2625,675.81050,STENT ADVANTIX RX 8.5X5 3462, 654.00 , 457.80 
7/1/2022,278,6730,C2625,675.19912,STENT POLAR DURO 5/24 192-122, 395.00 , 276.50 
7/1/2022,278,6730,C2625,675.30920,STENT URET CONTOR 6/28 180-224, 278.00 , 194.60 
7/1/2022,278,6750,C2623,675.31524,BLN DCB 4X150 LX351304150," 8,288.00 "," 5,801.60 "
7/1/2022,272,6750,C2623,675.033954,INPACT AV 9X80    IAV09004008P," 5,313.00 "," 3,719.10 "
7/1/2022,272,7240,C2623,675.31533,BLN DCB 6X100 LX351306100," 7,013.00 "," 4,909.10 "
7/1/2022,272,7240,C2623,675.035364,BLN DCB 5X220    LX1813052205F," 11,900.00 "," 8,330.00 "
7/1/2022,272,7240,C2623,675.033952,INPACT AV 8X60    IAV08006008P," 5,313.00 "," 3,719.10 "
7/1/2022,272,7240,C2623,675.31529,BLN DCB 5X150 LX351305150," 6,662.00 "," 4,663.40 "
7/1/2022,272,7240,C2623,675.030425,BLN ADM DCB 4X150 ADM04015013P," 7,268.00 "," 5,087.60 "
7/1/2022,272,6750,C2623,675.31536,BLN DCB 7X60 LX35130760," 7,013.00 "," 4,909.10 "
7/1/2022,272,7240,C2623,675.030426,BLN ADM DCB 5X40  ADM05004013P," 5,993.00 "," 4,195.10 "
7/1/2022,272,6750,C2623,675.033956,INPACT AV 12X40   IAV12004008P," 5,313.00 "," 3,719.10 "
7/1/2022,272,7240,C2623,675.033945,INPACT AV 5X40    IAV05004008P," 5,313.00 "," 3,719.10 "
7/1/2022,272,6750,C2623,675.035973,BLN DCB 4X300  LX1813043005F," 8,288.00 "," 5,801.60 "
7/1/2022,272,7240,C2623,675.030423,BLN ADM DCB 4X80  ADM04008013P," 5,993.00 "," 4,195.10 "
7/1/2022,272,6750,C2623,675.033955,INPACT AV 10X40   IAV10004008P," 5,313.00 "," 3,719.10 "
7/1/2022,272,7240,C2623,675.033958,INPACT SFA 5X250  ADM05025013P," 8,266.00 "," 5,786.20 "
7/1/2022,272,6750,C2623,675.31530,BLN DCB 6X40 LX35130640," 5,687.00 "," 3,980.90 "
7/1/2022,272,6750,C2623,675.035975,BLN DCB 5X300 LX1813053005F," 8,288.00 "," 5,801.60 "
7/1/2022,272,7240,C2623,675.030428,BLN ADM DCB 5X80  ADM05008013P," 5,993.00 "," 4,195.10 "
7/1/2022,272,7240,C2623,675.030434,BLN ADM DCB 6X120  ADM0612013P," 5,993.00 "," 4,195.10 "
7/1/2022,272,6750,C2623,675.035977,BLN DCB 7X22  LX3513072205F," 8,288.00 "," 5,801.60 "
7/1/2022,272,6750,C2623,675.31522,BLN DCB 5X100 LX351305100," 7,012.50 "," 4,908.75 "
7/1/2022,272,7240,C2623,675.030431,BLN ADM DCB 6X40  ADM06004013P," 5,993.00 "," 4,195.10 "
7/1/2022,272,6750,C2623,675.035974,BLN DCB 5X220 LX3513052205F," 8,288.00 "," 5,801.60 "
7/1/2022,272,6750,C2623,675.035976,BLN DCB 6X130 LX3513062205F," 8,288.00 "," 5,801.60 "
7/1/2022,272,7240,C2623,675.034988,BLN DCB 6X80      LX181306805F," 8,075.00 "," 5,652.50 "
7/1/2022,272,7240,C2623,675.030422,BLN ADM DCB 4X60  ADM04006013P," 5,993.00 "," 4,195.10 "
7/1/2022,272,7240,C2623,675.033960,INPACT SFA 6X200  ADM06020013P," 8,266.00 "," 5,786.20 "
7/1/2022,272,6750,C2623,675.035972,BLN DCB 4X220 LX35153012205F," 8,288.00 "," 5,801.60 "
7/1/2022,272,6730,C2623,675.030429,BLN ADM DCB 5X120  ADM0512013P," 5,993.00 "," 4,195.10 "
7/1/2022,272,7240,C2623,675.033946,INPACT AV 5X80    IAV05008008P," 5,313.00 "," 3,719.10 "
7/1/2022,272,7240,C2623,675.033959,INPACT SFA 5X250  ADM05025013P," 8,266.00 "," 5,786.20 "
7/1/2022,278,7240,C2623,675.31525,BLN DCB 5X40 LX35130540," 7,013.00 "," 4,909.10 "
7/1/2022,275,7240,C2621,675.034677,MRI PERCEPTA QUAD CRT-P W4TR01," 31,687.00 "," 22,180.90 "
7/1/2022,275,7240,C2621,675.034507,PACEMAKER QUADRA ALLURE PM3562," 31,875.00 "," 22,312.50 "
7/1/2022,278,6730,C2617,675.28900,STENT LITHO 8.5/12 4568, 268.00 , 187.60 
7/1/2022,278,6730,C2617,675.30922,STENT URET CONTOR 6/24 180-222, 441.00 , 308.70 
7/1/2022,278,6730,C2617,675.035938,BILIARY ADVANIX 8.5F M00532960, 268.00 , 187.60 
7/1/2022,275,7240,C1900,675.034390,LEADS QUARTET        1458QL/86," 10,125.00 "," 7,087.50 "
7/1/2022,275,7240,C1898,675.035447,INGEVITY+ IS-1 RA/RV 45CM 7840," 2,063.00 "," 1,444.10 "
7/1/2022,278,7240,C1898,675.83224,LEAD ISOFLEX 1948/52," 1,594.00 "," 1,115.80 "
7/1/2022,275,7240,C1898,675.030270,TENDRIL LEADS        2088TC/52," 3,087.00 "," 2,160.90 "
7/1/2022,275,7240,C1898,675.031675,TENDRIL LEADS 2088TC-58," 3,087.00 "," 2,160.90 "
7/1/2022,275,7240,C1898,675.032281,LEAD STEROID BI SIL 52 5076-52," 1,878.00 "," 1,314.60 "
7/1/2022,275,7240,C1898,675.035347,LEAD INGEVITY 52CM 7841," 2,063.00 "," 1,444.10 "
7/1/2022,275,7240,C1898,675.030269,TENDRIL LEADS        2088TC/46," 3,087.00 "," 2,160.90 "
7/1/2022,275,7240,C1898,675.032282,LEAD STEROID BI SIL 58 5076-58," 1,878.00 "," 1,314.60 "
7/1/2022,275,7240,C1898,675.033216,LEAD STEROID BI SIL    5076-45," 1,878.00 "," 1,314.60 "
7/1/2022,275,7240,C1898,675.035348,LEAD INGEVITY 59 CM  7842," 2,063.00 "," 1,444.10 "
7/1/2022,275,7240,C1898,675.035448,INGEVITY MRI IS-1 RV 52CM 7731," 3,563.00 "," 2,494.10 "
7/1/2022,275,7240,C1898,675.034783,ISO FLEX OPTIMLEADS U 1944/52," 1,594.00 "," 1,115.80 "
7/1/2022,275,7240,C1898,675.83323,LEAD ISOFLEX 1944/46," 2,086.00 "," 1,460.20 "
7/1/2022,275,7240,C1898,675.020599,EP LEAD FIX VENT       1948-58," 1,806.00 "," 1,264.20 "
7/1/2022,272,6750,C1897,675.035924,KIT INTELLIS LEAD INTELTRIAL2, 900.00 , 630.00 
7/1/2022,278,6730,C1897,675.035803,LEAD KIT OCTRODE 60CM     3086," 3,750.00 "," 2,625.00 "
7/1/2022,272,6750,C1897,675.035923,KIT INTELLIS LEAD INTELTRIAL1, 450.00 , 315.00 
7/1/2022,272,6750,C1894,675.32209,SHEATH RAABE 5x55 G13009, 228.00 , 159.60 
7/1/2022,272,6750,C1894,675.07097,MICRO PUNCTURE PEELABLE 45-901, 116.00 , 81.20 
7/1/2022,272,6750,C1894,675.31707,SHEATH RAABE 6F/55 G11638, 228.00 , 159.60 
7/1/2022,272,7240,C1894,675.24322,SHEATH G11633-G11638, 239.00 , 167.30 
7/1/2022,272,7240,C1894,675.30703,SHEATH PRELUDE 5F PSS-5F-4MT, 82.00 , 57.40 
7/1/2022,272,7240,C1894,675.30947,SHEATH BRITE 5F-35 401535M, 173.00 , 121.10 
7/1/2022,272,6750,C1894,675.034822,KIT LEAD IMPLANT TINED    1801," 1,415.00 ", 990.50 
7/1/2022,272,6750,C1894,675.27383,SHEATH NAV 11/13F/46 250-204, 387.00 , 270.90 
7/1/2022,272,7240,C1894,675.032234,SHEATH PRELUDE 7X 13  PLS-1007, 255.00 , 178.50 
7/1/2022,272,7240,C1894,675.07098,MICROPUNCTURE PEELABLE 45-991, 155.00 , 108.50 
7/1/2022,272,7240,C1894,675.31706,SHEATH RAABE 6F/70 G11636, 202.00 , 141.40 
7/1/2022,272,7240,C1894,675.034675,SHEATH INTRO 10/21  506610P22G, 608.00 , 425.60 
7/1/2022,272,7240,C1894,675.31341,INTRODUCER RCFW-14.0-38-30-RB, 445.00 , 311.50 
7/1/2022,272,6750,C1894,675.24311,INTRODUCER SHEATH 15-713, 40.00 , 28.00 
7/1/2022,272,6750,C1894,675.033781,MICROINTRO KIT 4X10     45-770, 306.00 , 214.20 
7/1/2022,272,6750,C1894,675.32265,SHEATH SENSH1628W, 700.00 , 490.00 
7/1/2022,272,7240,C1894,675.32211,SHEATH RAABE 5x90 G13069, 263.00 , 184.10 
7/1/2022,272,7240,C1894,675.031568,SHEATHGLIDE SL 5F 60-1050, 563.00 , 394.10 
7/1/2022,272,6750,C1894,675.31730,SHEATH BRITE 6F/23 401-623M, 173.00 , 121.10 
7/1/2022,272,7240,C1894,675.32210,SHEATH RAABE 5x70 G13091, 263.00 , 184.10 
7/1/2022,272,7240,C1894,675.29564,SHEATH INTRO CSI10F 504-610T, 82.00 , 57.40 
7/1/2022,272,6750,C1894,675.035023,WIRE GUIDE INTRO 12F    G07601, 315.00 , 220.50 
7/1/2022,272,6750,C1894,675.32169,SHEATH APTUS STEER TG0655509," 2,444.00 "," 1,710.80 "
7/1/2022,272,7240,C1894,675.30702,SHETH PRELUDE 6F PSS-6F-4MT, 82.00 , 57.40 
7/1/2022,272,6750,C1894,675.035892,AG 9F SWAN SHEATH AK-29907-CDC," 2,325.00 "," 1,627.50 "
7/1/2022,272,7240,C1894,675.30968,SHEATH DEST 7FX90 RSC02, 368.00 , 257.60 
7/1/2022,272,6750,C1894,675.27385,SHEATH NAV 11/13F/36 250-202, 387.00 , 270.90 
7/1/2022,272,6750,C1894,675.27384,SHEATH NAV 13/15F/46 250-210, 387.00 , 270.90 
7/1/2022,272,6750,C1894,675.034685,SHEATH INTRODUCER SET G13081, 405.00 , 283.50 
7/1/2022,272,6750,C1894,675.034686,SHEATH INTRODUCER 11FR G06491, 215.00 , 150.50 
7/1/2022,272,7240,C1894,675.31724,SHEATH BRITE 6F/35 401-635M, 94.00 , 65.80 
7/1/2022,272,6750,C1894,675.30948,SHEATH BRITE 8F 401-805M, 184.00 , 128.80 
7/1/2022,272,7240,C1894,675.20540,SHEATH BRITE 6F/45 401645M, 173.00 , 121.10 
7/1/2022,272,6750,C1894,675.031567,SHEATHGLIDE SL 6F 60-1060, 563.00 , 394.10 
7/1/2022,272,6750,C1894,675.31731,SHEATH INTRO 7F/23 401-723M, 395.00 , 276.50 
7/1/2022,272,6750,C1894,675.036052,SHEATH 20F          SENSH2028W," 1,125.00 ", 787.50 
7/1/2022,272,6750,C1894,675.032337,SHEATH NAV 13/15/36    250-208, 968.00 , 677.60 
7/1/2022,272,7240,C1893,675.034388,PACK CPS DIR UNIV 47CM DS2C019, 230.00 , 161.00 
7/1/2022,272,7240,C1892,675.030050,INTRODUCER PLVW-10.0-38 G01980, 215.00 , 150.50 
7/1/2022,272,7240,C1892,675.032284,SAFESHEATH  PLI KIT   7X13 SS7, 243.00 , 170.10 
7/1/2022,272,7240,C1892,675.031677,PRELUDE SHTH PLS-1006 6FRX13CM, 255.00 , 178.50 
7/1/2022,272,7240,C1892,675.034385,SHEATH PRELUDE 10F    PLS-1010, 230.00 , 161.00 
7/1/2022,272,6750,C1892,675.035366,TKYPHOPAK TRAY    KPX153PB-CDS," 14,450.00 "," 10,115.00 "
7/1/2022,272,6750,c1892,675.035680,SHEATH         EXT-1000093-001, 230.00 , 161.00 
7/1/2022,272,6750,C1892,675.032398,RELOAD 30             SIG30AVM, 695.00 , 486.50 
7/1/2022,272,7240,C1892,675.030049,INTRODUCER PLVW-9.0-38  G01697, 215.00 , 150.50 
7/1/2022,272,7240,C1892,675.033257,SHEATH PRELUDE 8F     PLS-1008, 229.00 , 160.30 
7/1/2022,278,6750,C1889,675.035657,PALACOS MV KIT         5150635, 994.00 , 695.80 
7/1/2022,272,6750,C1887,675.033630,CATH GUIDE             LA6JR50, 214.00 , 149.80 
7/1/2022,272,6750,C1887,675.034173,CATH GUIDE            LA6AL10F, 214.00 , 149.80 
7/1/2022,272,7240,C1887,675.030502,CATH INFUSION 180X5 41066-01, 775.00 , 542.50 
7/1/2022,272,7240,C1887,675.033593,CATH GUIDE            LA6RBU40, 214.00 , 149.80 
7/1/2022,272,7240,C1887,675.034799,CATH MICRO TELEM 135  SURMC135," 1,700.00 "," 1,190.00 "
7/1/2022,272,6750,C1887,675.033811,CATH GUIDE             LA7IMAK, 556.00 , 389.20 
7/1/2022,272,7240,C1887,675.033629,CATH GUIDE             LA6JR40, 214.00 , 149.80 
7/1/2022,272,7240,C1887,675.033618,CATH GUIDE             LA6JL35, 214.00 , 149.80 
7/1/2022,272,7240,C1887,675.033617,CATH GUIDE             LA7JR40, 214.00 , 149.80 
7/1/2022,272,6750,C1887,675.033631,CATH GUIDE             LA6JR45, 238.00 , 166.60 
7/1/2022,272,6750,C1887,675.034299,SHEATH PINNACLE 8F    54-89006, 414.00 , 289.80 
7/1/2022,272,7240,C1887,675.17869,CATH GUIDE 32-139, 188.00 , 131.60 
7/1/2022,272,7240,C1887,675.033620,CATH GUIDE             LA6JL45, 214.00 , 149.80 
7/1/2022,272,7240,C1887,675.030486,TRAILBLAZER STR 018 SC-018-150, 691.00 , 483.70 
7/1/2022,272,7240,C1887,675.033712,CATH GUIDE           LA6JR40SH, 214.00 , 149.80 
7/1/2022,272,7240,C1887,675.033639,CATH GUIDE           LA6AL10SH, 214.00 , 149.80 
7/1/2022,272,7240,C1887,675.033612,CATH GUIDE             LA7AR20, 214.00 , 149.80 
7/1/2022,272,6750,C1887,675.035830,CATH OUTBACK REENTRY OTB59120A," 2,298.00 "," 1,608.60 "
7/1/2022,272,7240,C1887,675.033649,CATH GUIDE         LA6EBU375SH, 214.00 , 149.80 
7/1/2022,272,7240,C1887,675.033623,CATH GUIDE             LA6AL75, 214.00 , 149.80 
7/1/2022,272,6750,C1887,675.2225,CATH ENDO CHOLANGIO 2405-50, 455.00 , 318.50 
7/1/2022,272,7240,C1887,675.033614,CATH GUIDE             LA7AR10, 214.00 , 149.80 
7/1/2022,272,7240,C1887,675.033621,CATH GUIDE             LA6JL50, 214.00 , 149.80 
7/1/2022,272,7240,C1887,675.033700,CATHETER GUIDE EXT      TELE6F," 1,806.00 "," 1,264.20 "
7/1/2022,272,7240,C1887,675.031869,CATH GUIDE            LA6EBU45, 238.00 , 166.60 
7/1/2022,272,7240,C1887,675.030484,TRAILBLAZER STR 014 SC-014-150, 691.00 , 483.70 
7/1/2022,272,7240,C1887,675.031860,CATH GUIDE            LA5EBU30, 238.00 , 166.60 
7/1/2022,272,7240,C1887,675.030500,WIRE INFUSION 175X9 41277-01, 880.00 , 616.00 
7/1/2022,272,7240,C1887,675.031863,CATH GUIDE            LA5EBU40, 238.00 , 166.60 
7/1/2022,272,7240,C1887,675.033634,CATH GUIDE             LA6AR20, 214.00 , 149.80 
7/1/2022,272,6750,C1887,675.034092,CATH GUIDE            LA6JL35Y, 214.00 , 149.80 
7/1/2022,272,7240,C1887,675.030501,WIRE INFUSION 175X12 41278-01, 880.00 , 616.00 
7/1/2022,272,6750,C1887,675.031865,CATH GUIDE           LA6EBU325, 238.00 , 166.60 
7/1/2022,272,6750,C1887,675.034298,SHEATH PINNACLE 8F    54-84506, 369.00 , 258.30 
7/1/2022,272,7240,C1887,675.033625,CATH GUIDE             LA6AL20, 214.00 , 149.80 
7/1/2022,272,7240,C1887,675.033715,CATH GUIDE            LA6MP1SH, 214.00 , 149.80 
7/1/2022,272,6750,C1887,675.034297,SHEATH PINNACLE 8F    54-86506, 405.00 , 283.50 
7/1/2022,272,6750,C1887,675.033566,CATH GUIDE            LA7EBU40, 214.00 , 149.80 
7/1/2022,272,7240,C1887,675.032485,CATH MICRO FINECROSS   35-1450," 1,806.00 "," 1,264.20 "
7/1/2022,272,6750,C1887,675.033647,CATH GUIDE          LA6EBU40SH, 214.00 , 149.80 
7/1/2022,272,6750,C1887,675.30394,CATH GUIDE 6F JL4 39264-662, 188.00 , 131.60 
7/1/2022,272,7240,C1887,675.033565,CATH GUIDE           LA7EBU375, 214.00 , 149.80 
7/1/2022,272,7240,C1887,675.033281,CATH GUIDE              LA6IMA, 225.00 , 157.50 
7/1/2022,272,6750,C1887,675.034091,CATH GUIDE          LA6EBU375Y, 324.00 , 226.80 
7/1/2022,272,6750,C1887,675.031866,CATH GUIDE            LA6EBU35, 238.00 , 166.60 
7/1/2022,272,7240,C1887,675.033628,CATH GUIDE             LA6JR35, 214.00 , 149.80 
7/1/2022,272,7240,C1887,675.031868,CATH GUIDE            LA6EBU40, 238.00 , 166.60 
7/1/2022,272,7240,C1887,675.033624,CATH GUIDE             LA6AL10, 214.00 , 149.80 
7/1/2022,272,7240,C1887,675.033676,CATH GUIDE            LA7EBU35, 214.00 , 149.80 
7/1/2022,272,7240,C1887,675.033635,CATH GUIDE             LA63DRC, 214.00 , 149.80 
7/1/2022,272,7240,C1887,675.033627,CATH GUIDE              LA6MP1, 214.00 , 149.80 
7/1/2022,272,7240,C1887,675.031864,CATH GUIDE            LA6EBU30, 238.00 , 166.60 
7/1/2022,272,7240,C1887,675.030489,TRAILBLAZER STR 035 SC-035-135, 691.00 , 483.70 
7/1/2022,272,7240,C1887,675.030491,TRAILBLAZER ANG 014ASC-014-150, 903.00 , 632.10 
7/1/2022,272,6750,C1887,675.034094,CATH GUIDE            LA6JR40Y, 214.00 , 149.80 
7/1/2022,272,7240,C1887,675.031861,CATH GUIDE            LA5EBU35, 238.00 , 166.60 
7/1/2022,272,7240,C1887,675.033622,CATH GUIDE              LA6LCB, 214.00 , 149.80 
7/1/2022,272,7240,C1887,675.034800,CATH MICRO TELEM 150  SURMC150," 1,700.00 "," 1,190.00 "
7/1/2022,272,7240,C1887,675.031862,CATH GUIDE           LA5EBU375, 238.00 , 166.60 
7/1/2022,272,7240,C1887,675.030490,TRAILBLAZER STR 035 SC-035-150, 691.00 , 483.70 
7/1/2022,272,7240,C1887,675.032727,GUIDELINER 5.5FR V3       5570," 2,120.00 "," 1,484.00 "
7/1/2022,272,7240,C1887,675.033636,CATH GUIDE              LA6HSI, 214.00 , 149.80 
7/1/2022,272,6750,C1887,675.033638,CATH GUIDE              LA6RCB, 214.00 , 149.80 
7/1/2022,272,7240,C1887,675.033633,CATH GUIDE             LA6AR10, 214.00 , 149.80 
7/1/2022,272,7240,C1887,675.033795,GUIDE CATH            LA6IMAK, 556.00 , 389.20 
7/1/2022,272,6750,C1887,675.32272,CATH COBRA H-TQ H787107197085, 129.00 , 90.30 
7/1/2022,272,7240,C1887,675.030493,TRAILBLAZER ANG035 ASC-035-090, 903.00 , 632.10 
7/1/2022,272,6750,C1887,675.07046,CATH GLIDECATH 32-136/CG507, 188.00 , 131.60 
7/1/2022,272,7240,C1887,675.031867,CATH GUIDE           LA6EBU375, 238.00 , 166.60 
7/1/2022,272,7240,C1887,675.033619,CATH GUIDE             LA6JL40, 214.00 , 149.80 
7/1/2022,272,6750,C1887,675.30250,CATH GUIDE 7F JL4.5 39265-669, 188.00 , 131.60 
7/1/2022,272,7240,C1887,675.030488,TRAILBLAZER STR 035 SC-035-090, 691.00 , 483.70 
7/1/2022,272,7240,C1887,675.030494,TRAILBLAZER ANG035 ASC-035-135, 903.00 , 632.10 
7/1/2022,272,7240,C1887,675.033632,CATH GUIDE            LA6RBU35, 214.00 , 149.80 
7/1/2022,272,7240,C1887,675.030503,CATH INFUSION 180X10 41067-01, 877.00 , 613.90 
7/1/2022,272,7240,C1884,675.030460,WIRE FILTER    SPD2-US-040-320," 4,888.00 "," 3,421.60 "
7/1/2022,272,7240,C1884,675.30429,WIRE FILTER EZ 190CM 39071-190," 6,560.00 "," 4,592.00 "
7/1/2022,272,7240,C1884,675.030462,WIRE FILTER    SPD2-US-060-320," 4,888.00 "," 3,421.60 "
7/1/2022,272,7240,C1884,675.09294,WIRE FILTER  EZ 190 20100-190," 6,560.00 "," 4,592.00 "
7/1/2022,272,7240,C1884,675.030461,WIRE FILTER    SPD2-US-050-320," 4,888.00 "," 3,421.60 "
7/1/2022,272,7240,C1884,675.030463,WIRE FILTER    SPD2-US-070-320," 4,888.00 "," 3,421.60 "
7/1/2022,278,6730,C1883,675.035734,ADAPTER 8-CHANNEL 10CM   2321," 3,750.00 "," 2,625.00 "
7/1/2022,278,6730,C1883,675.034823,EXTENSION PERCUTANEOUS    9009, 344.00 , 240.80 
7/1/2022,272,6750,C1883,675.035922,APAPTOR LEADS 20CM EMBSNV20," 2,125.00 "," 1,487.50 "
7/1/2022,275,7240,C1882,675.034669,GALLANT SYSTEM       CDHFA500Q," 108,750.00 "," 76,125.00 "
7/1/2022,275,7240,C1882,675.034864,GENERATOR QUADRA    CD3369-40C," 82,500.00 "," 57,750.00 "
7/1/2022,278,7240,C1880,675.30494,FILTER FEMORAL DENALI DL900F," 6,281.00 "," 4,396.70 "
7/1/2022,278,7240,C1880,675.30493,FILTERJUG VENA CAVA DL900J," 4,125.00 "," 2,887.50 "
7/1/2022,278,6730,C1877,675.1985,STENT PERCUFLEX + 6X22 175-261, 419.00 , 293.30 
7/1/2022,278,6730,C1877,675.1987,STENT PERCUFLEX + 6X26 175-263, 300.00 , 210.00 
7/1/2022,278,6730,C1877,675.1984,STENT PERCUFLEX + 6X20 175-260, 300.00 , 210.00 
7/1/2022,278,6730,C1877,675.1991,STENT PERCUFLEX + 7X26 175-273, 300.00 , 210.00 
7/1/2022,278,6730,C1877,675.1989,STENT PERCUFLEX + 7X22 175-271, 300.00 , 210.00 
7/1/2022,278,6730,C1877,675.1988,STENT PERCUFLEX + 7X20 175-270, 300.00 , 210.00 
7/1/2022,278,6730,C1877,675.1986,STENT PERCUFLEX + 6X24 175-262, 300.00 , 210.00 
7/1/2022,278,6730,C1877,675.1990,STENT PERCUFLEX + 7X24 175-272, 300.00 , 210.00 
7/1/2022,278,6730,C1876,675.19949,STENT EXPRESS 37911/12," 4,856.00 "," 3,399.20 "
7/1/2022,278,7240,C1876,675.030541,STENT EVERFL EVD35-08-060-150," 3,750.00 "," 2,625.00 "
7/1/2022,278,7240,C1876,675.030508,STENT PRO GPS SERB65-10-20-120," 3,750.00 "," 2,625.00 "
7/1/2022,278,6730,C1876,675.030537,STENT EVERFL EVD35-07-100-150," 3,938.00 "," 2,756.60 "
7/1/2022,278,7240,C1876,675.29038,STENT EXP SD 6/14 37911-61490," 3,561.00 "," 2,492.70 "
7/1/2022,278,7240,C1876,675.033873,VISIPRO 7X27   PXB35-07-27-080," 2,569.00 "," 1,798.30 "
7/1/2022,278,7240,C1876,675.28920,STENT WALL 12/40/75 40211," 3,750.00 "," 2,625.00 "
7/1/2022,278,7240,C1876,675.030539,STENT EVERFL EVD35-07-150-150," 4,500.00 "," 3,150.00 "
7/1/2022,278,7240,C1876,675.030535,STENT EVERFL EVD35-07-060-150," 3,750.00 "," 2,625.00 "
7/1/2022,278,7240,C1876,675.29042,STENT EXP SD 7/19 37912-71990," 3,836.00 "," 2,685.20 "
7/1/2022,278,7240,C1876,675.030542,STENT EVERFL EVD35-08-080-150," 3,150.00 "," 2,205.00 "
7/1/2022,278,6730,C1876,675.030531,STENT EVERFL EVD35-06-100-150," 3,938.00 "," 2,756.60 "
7/1/2022,278,7240,C1876,675.030525,STENT PRO EVE PRB35-06-200-120," 9,375.00 "," 6,562.50 "
7/1/2022,278,7240,C1876,675.29039,STENT EXP SD 6/18 37912-61890," 3,561.00 "," 2,492.70 "
7/1/2022,278,7240,C1876,675.030529,STENT EVERFL EVD35-06-060-150," 3,750.00 "," 2,625.00 "
7/1/2022,278,6730,C1876,675.30924,STENT GENIS 6/12 PG1260BAX," 3,498.00 "," 2,448.60 "
7/1/2022,278,7240,C1876,675.033875,VISIPRO 7X57   PXB35-07-57-080," 2,569.00 "," 1,798.30 "
7/1/2022,278,7240,C1876,675.033871,VISIPRO 6X57   PXB35-06-57-080," 2,569.00 "," 1,798.30 "
7/1/2022,278,7240,C1876,675.033874,VISIPRO 7X37   PXB35-07-37-080," 2,569.00 "," 1,798.30 "
7/1/2022,278,7240,C1876,675.035308,LIFESTENT 5F        5F061003CS," 8,625.00 "," 6,037.50 "
7/1/2022,278,7240,C1876,675.030522,STENT PRO EVE PRB35-05-040-120," 3,750.00 "," 2,625.00 "
7/1/2022,278,7240,C1876,675.030534,STENT EVERFL EVD35-07-040-150," 3,750.00 "," 2,625.00 "
7/1/2022,278,7240,C1876,675.030507,STENT PRO GPS SERB65-09-80-120," 3,750.00 "," 2,625.00 "
7/1/2022,278,7240,C1876,675.033878,VISIPRO 8X27   PXB35-08-27-080," 2,569.00 "," 1,798.30 "
7/1/2022,278,7240,C1876,675.15026,STENT XPR SD 5/15 37911-51590," 3,561.00 "," 2,492.70 "
7/1/2022,278,7240,C1876,675.29037,STENT EXP SD 5/19 37912-51990," 3,561.00 "," 2,492.70 "
7/1/2022,278,7240,C1876,675.030520,STENT PRO EVE PRB35-05-020-120," 3,750.00 "," 2,625.00 "
7/1/2022,278,7240,C1876,675.035309,LIFESTENT 5F        5F061503CS," 12,356.00 "," 8,649.20 "
7/1/2022,278,6730,C1876,675.28924,STENT WALL 14/60/75 40312," 11,085.00 "," 7,759.50 "
7/1/2022,278,7240,C1876,675.030519,STENT PRO GPS SERB65-14-80-120," 3,750.00 "," 2,625.00 "
7/1/2022,278,7240,C1876,675.034361,VISIPRO 8X27   PXB35-08-27-135," 2,569.00 "," 1,798.30 "
7/1/2022,278,7240,C1876,675.034364,SHEATH 8FR W/ SIDE PORT   7462, 237.00 , 165.90 
7/1/2022,278,7240,C1876,675.030510,STENT PRO GPS SERB65-10-60-120," 3,750.00 "," 2,625.00 "
7/1/2022,278,7240,C1876,675.030509,STENT PRO GPS SERB65-10-40-120," 3,750.00 "," 2,625.00 "
7/1/2022,278,6730,C1876,675.033869,VISIPRO 6X27   PXB35-06-27-080," 2,569.00 "," 1,798.30 "
7/1/2022,278,6730,C1876,675.030538,STENT EVERFL EVD35-07-120-150," 3,938.00 "," 2,756.60 "
7/1/2022,278,6730,C1876,675.030511,STENT PRO GPS SERB65-10-80-120," 3,750.00 "," 2,625.00 "
7/1/2022,278,7240,C1876,675.033870,VISIPRO 6X37   PXB35-06-37-080," 2,569.00 "," 1,798.30 "
7/1/2022,278,7240,C1876,675.030533,STENT EVERFL EVD35-06-150-150," 4,500.00 "," 3,150.00 "
7/1/2022,278,7240,C1876,675.033879,VISIPRO 8X37   PXB35-08-37-080," 2,569.00 "," 1,798.30 "
7/1/2022,278,7240,C1876,675.030532,STENT EVERFL EVD35-06-120-150," 3,938.00 "," 2,756.60 "
7/1/2022,278,7240,C1876,675.033880,VISIPRO 8X57   PXB35-08-57-080," 2,569.00 "," 1,798.30 "
7/1/2022,278,7240,C1876,675.030536,STENT EVERFL EVD35-07-080-150," 3,750.00 "," 2,625.00 "
7/1/2022,278,7240,C1876,675.030521,STENT PTO EVE PRB35-05-030-120," 3,750.00 "," 2,625.00 "
7/1/2022,278,6730,C1874,675.032879,STENT RES 4.00X30 RONYX40030UX," 2,531.00 "," 1,771.70 "
7/1/2022,278,7240,C1874,675.032848,STENT RES 2.75X15 RONYX27515UX," 2,531.00 "," 1,771.70 "
7/1/2022,278,7240,C1874,675.032824,STENT RES 2.25X12 RONYX22512UX," 2,531.00 "," 1,771.70 "
7/1/2022,278,7240,C1874,675.034697,WIRE GDE 10FR 13X5 VBHR130502A," 13,410.00 "," 9,387.00 "
7/1/2022,278,7240,C1874,675.031882,STENT FR 2X30    ONYXNG20030UX," 2,531.00 "," 1,771.70 "
7/1/2022,278,6730,C1874,675.029603,ENDOPROSTHESIS VB VBJR070702A," 15,413.00 "," 10,789.10 "
7/1/2022,278,7240,C1874,675.034284,STENT ESOPH 18X119   M00517260," 13,016.00 "," 9,111.20 "
7/1/2022,278,6730,C1874,675.031887,STENT DES 4.5X26  RONYX45026UX," 4,838.00 "," 3,386.60 "
7/1/2022,278,7240,C1874,675.032828,STENT RES 2.25X26 RONYX22526UX," 2,531.00 "," 1,771.70 "
7/1/2022,278,7240,c1874,675.032843,STENT RES 2.50X30 RONYX25030UX," 2,531.00 "," 1,771.70 "
7/1/2022,278,7240,C1874,675.032871,STENT RES 3.50X34 RONYX35034UX," 2,531.00 "," 1,771.70 "
7/1/2022,278,7240,C1874,675.032861,STENT RES 3.00X30 RONYX30030UX," 2,531.00 "," 1,771.70 "
7/1/2022,278,6730,C1874,675.030137,ENT VIABAHN 8X10CM VBJR081002A," 14,100.00 "," 9,870.00 "
7/1/2022,278,6730,C1874,675.030136,STENT VIABAHN 8X7.5CM VBJR0807," 15,109.00 "," 10,576.30 "
7/1/2022,278,7240,C1874,675.035498,STENT VIABAHN 8X25 VBJR082502A," 28,230.00 "," 19,761.00 "
7/1/2022,278,7240,C1874,675.032855,STENT RES 3.00X08 RONYX30008UX," 2,531.00 "," 1,771.70 "
7/1/2022,278,7240,C1874,675.032870,STENT RES 3.50X30 RONYX35030UX," 2,531.00 "," 1,771.70 "
7/1/2022,278,7240,C1874,675.032862,STENT RES 3.00X34 RONYX30034UX," 2,531.00 "," 1,771.70 "
7/1/2022,278,7240,C1874,675.030132,STENT VIABAHN 6X10CM VBJR06100," 14,100.00 "," 9,870.00 "
7/1/2022,278,6730,C1874,675.030135,STENT VIABAHN 8X5CM VBJR080502," 13,811.00 "," 9,667.70 "
7/1/2022,278,7240,C1874,675.032854,STENT RES 2.75X38 RONYX27538UX," 2,531.00 "," 1,771.70 "
7/1/2022,278,6730,C1874,675.032847,STENT RES 2.75X12 RONYX27512UX," 2,531.00 "," 1,771.70 "
7/1/2022,278,7240,C1874,675.032876,STENT RES 4.00X18 RONYX40018UX," 2,531.00 "," 1,771.70 "
7/1/2022,278,7240,C1874,675.032849,STENT RES 2.75X18 RONYX27518UX," 2,531.00 "," 1,771.70 "
7/1/2022,278,6730,C1874,675.032829,STENT RES 2.25X30 RONYX22530UX," 2,531.00 "," 1,771.70 "
7/1/2022,278,7240,C1874,675.031880,STENT FR 2X22    ONYXNG20022UX," 2,531.00 "," 1,771.70 "
7/1/2022,278,7240,c1874,675.031876,STENT FR 2X8     ONYXNG20008UX," 2,625.00 "," 1,837.50 "
7/1/2022,278,7240,C1874,675.032851,STENT RES 2.75X26 RONYX27526UX," 2,531.00 "," 1,771.70 "
7/1/2022,278,7240,C1874,675.032852,STENT RES 2.75X30 RONYX27530UX," 2,531.00 "," 1,771.70 "
7/1/2022,278,6730,C1874,675.030131,STENT VIABAHN 6X7.5 VBJR060702," 14,100.00 "," 9,870.00 "
7/1/2022,278,7240,C1874,675.032853,STENT RES 2.75X34 RONYX27534UX," 2,531.00 "," 1,771.70 "
7/1/2022,278,6730,C1874,675.032830,STENT RES 2.25X34 RONYX22534UX," 25,831.00 "," 18,081.70 "
7/1/2022,278,7240,C1874,675.030133,STENT VIABAHN 6X15CM VBJR06150," 17,175.00 "," 12,022.50 "
7/1/2022,278,6730,C1874,675.031892,STENT DES 5X22    RONYX50022UX," 4,838.00 "," 3,386.60 "
7/1/2022,278,7240,C1874,675.031877,STENT FR 2X12    ONYXNG20012UX," 2,531.00 "," 1,771.70 "
7/1/2022,278,7240,C1874,675.031891,STENT FR 5X18    ONYXNG50018UX," 2,531.00 "," 1,771.70 "
7/1/2022,278,7240,C1874,675.032877,STENT RES 4.00X22 RONYX40022UX," 2,531.00 "," 1,771.70 "
7/1/2022,278,7240,C1874,675.032864,STENT RES 3.50X08 RONYX35008UX," 2,531.00 "," 1,771.70 "
7/1/2022,278,7240,C1874,675.032881,STENT RES 4.00X38 RONYX40038UX," 2,531.00 "," 1,771.70 "
7/1/2022,278,7240,C1874,675.032825,STENT RES 2.25X15 RONYX22515UX," 2,531.00 "," 1,771.70 "
7/1/2022,278,6730,C1874,675.031894,STENT DES 5X30    RONYX50030UX," 4,838.00 "," 3,386.60 "
7/1/2022,278,7240,C1874,675.031878,STENT FR 2X15    ONYXNG20015UX," 2,531.00 "," 1,771.70 "
7/1/2022,278,7240,C1874,675.032836,STENT RES 2.50X22 RONYX25022UX," 2,531.00 "," 1,771.70 "
7/1/2022,278,7240,C1874,675.032831,STENT RES 2.25X38 RONYX22538UX," 2,531.00 "," 1,771.70 "
7/1/2022,278,7240,C1874,675.032823,STENT RES 2.25X08 RONYX22508UX," 2,531.00 "," 1,771.70 "
7/1/2022,278,7240,C1874,675.032869,STENT RES 3.50X26 RONYX35026UX," 2,531.00 "," 1,771.70 "
7/1/2022,278,7240,C1874,675.031883,STENT FR 4.5X12  ONYXNG45012UX," 2,531.00 "," 1,771.70 "
7/1/2022,278,7240,C1874,675.032859,STENT RES 3.00X22 RONYX30022UX," 2,531.00 "," 1,771.70 "
7/1/2022,278,7240,C1874,675.031881,STENT FR 2X26    ONYXNG20026UX," 2,531.00 "," 1,771.70 "
7/1/2022,278,6730,C1874,675.031893,STENT DES 5X26    RONYX50026UX," 4,838.00 "," 3,386.60 "
7/1/2022,278,7240,C1874,675.032827,STENT RES 2.25X22 RONYX22522UX," 2,531.00 "," 1,771.70 "
7/1/2022,278,7240,C1874,675.032845,STENT RES 2.50X38 RONYX25038UX," 2,531.00 "," 1,771.70 "
7/1/2022,278,7240,C1874,675.032832,STENT RES 2.50X08 RONYX25008UX," 2,531.00 "," 1,771.70 "
7/1/2022,278,7240,C1874,675.032875,STENT RES 4.00X15 RONYX40015UX," 2,531.00 "," 1,771.70 "
7/1/2022,278,7240,C1874,675.032850,STENT RES 2.75X22 RONYX27522UX," 2,531.00 "," 1,771.70 "
7/1/2022,278,7240,C1874,675.032868,STENT RES 3.50X22 RONYX35022UX," 2,531.00 "," 1,771.70 "
7/1/2022,278,6730,C1874,675.031886,STENT FR 4.5X22  ONYXNG45022UX," 2,531.00 "," 1,771.70 "
7/1/2022,278,7240,C1874,675.032837,STENT RES 2.50X26 RONYX25026UX," 2,531.00 "," 1,771.70 "
7/1/2022,278,7240,C1874,675.032844,STENT RES 2.50X34 RONYX25034UX," 2,531.00 "," 1,771.70 "
7/1/2022,278,7240,C1874,675.030134,STENT VIABAHN 7X10CM VBJR07100," 15,413.00 "," 10,789.10 "
7/1/2022,278,7240,C1874,675.032846,STENT RES 2.75X08 RONYX27508UX," 2,531.00 "," 1,771.70 "
7/1/2022,278,7240,C1874,675.032878,STENT RES 4.00X26 RONYX40026UX," 2,531.00 "," 1,771.70 "
7/1/2022,278,6730,C1874,675.034237,STENT ESOPH 18X97    M00517250," 13,016.00 "," 9,111.20 "
7/1/2022,278,7240,C1874,675.032835,STENT RES 2.50X18 RONYX25018UX," 2,531.00 "," 1,771.70 "
7/1/2022,278,7240,C1874,675.032865,STENT RES 3.50X12 RONYX35012UX," 2,531.00 "," 1,771.70 "
7/1/2022,278,7240,C1874,675.030026,STENT VIABAHN ENDO VBJR071502A," 23,846.00 "," 16,692.20 "
7/1/2022,278,7240,C1874,675.029864,STENT VIABAHN 6X5  VBJR060502A," 12,889.00 "," 9,022.30 "
7/1/2022,278,7240,C1874,675.032826,STENT RES 2.25X18 RONYX22518UX," 2,531.00 "," 1,771.70 "
7/1/2022,278,7240,C1874,675.031879,STENT FR 2X18    ONYXNG20018UX," 2,531.00 "," 1,771.70 "
7/1/2022,278,7240,C1874,675.032866,STENT RES 3.50X15 RONYX35015UX," 2,531.00 "," 1,771.70 "
7/1/2022,278,7240,C1874,675.032867,STENT RES 3.50X18 RONYX35018UX," 2,531.00 "," 1,771.70 "
7/1/2022,278,7240,C1874,675.032834,STENT RES 2.50X15 RONYX25015UX," 2,531.00 "," 1,771.70 "
7/1/2022,278,7240,C1874,675.032856,STENT RES 3.00X12 RONYX30012UX," 2,531.00 "," 1,771.70 "
7/1/2022,278,7240,C1874,675.031885,STENT FR 4.5X18  ONYXNG45018UX," 2,531.00 "," 1,771.70 "
7/1/2022,278,7240,C1874,675.031890,STENT FR 5X15    ONYXNG50015UX," 2,531.00 "," 1,771.70 "
7/1/2022,278,7240,C1874,675.032860,STENT RES 3.00X26 RONYX30026UX," 2,531.00 "," 1,771.70 "
7/1/2022,278,6730,C1874,675.031884,STENT DES 4.5X15  RONYX45015UX," 4,838.00 "," 3,386.60 "
7/1/2022,278,7240,C1874,675.032857,STENT RES 3.00X15 RONYX30015UX," 2,531.00 "," 1,771.70 "
7/1/2022,278,7240,C1874,675.032833,STENT RES 2.50X12 RONYX25012UX," 2,531.00 "," 1,771.70 "
7/1/2022,278,7240,C1874,675.031889,STENT FR 5X12    ONYXNG50012UX," 2,531.00 "," 1,771.70 "
7/1/2022,278,6730,C1874,675.029839,STENT VIABAHN 7X5  VBJR070502A," 14,089.00 "," 9,862.30 "
7/1/2022,278,7240,C1874,675.032863,STENT RES 3.00X38 RONYX30038UX," 2,531.00 "," 1,771.70 "
7/1/2022,278,7240,C1874,675.032880,STENT RES 4.00X34 RONYX40034UX," 2,531.00 "," 1,771.70 "
7/1/2022,278,7240,C1874,675.032858,STENT RES 3.00X18 RONYX30018UX," 2,531.00 "," 1,771.70 "
7/1/2022,278,7240,C1874,675.031888,STENT FR 4.5X30  ONYXNG45030UX," 2,531.00 "," 1,771.70 "
7/1/2022,278,7240,C1874,675.032873,STENT RES 4.00X08 RONYX40008UX," 2,531.00 "," 1,771.70 "
7/1/2022,278,7240,C1874,675.032874,STENT RES 4.00X12 RONYX40012UX," 2,531.00 "," 1,771.70 "
7/1/2022,278,7240,C1874,675.032872,STENT RES 3.50X38 RONYX35038UX," 2,531.00 "," 1,771.70 "
7/1/2022,278,6730,C1820,675.034833,CHARGING SYSTEM           1401," 3,206.00 "," 2,244.20 "
7/1/2022,272,6750,C1820,675.035918,KIT INTELLIS MRI PERC 9771IP," 78,000.00 "," 54,600.00 "
7/1/2022,278,6730,C1820,675.034832,NEUROSTIMULATOR           1101," 39,304.00 "," 27,512.80 "
7/1/2022,272,6750,C1820,675.035921,KIT INTELLIS MRI SURG 9771IS," 85,500.00 "," 59,850.00 "
7/1/2022,278,6730,C1789,675.036150,BREAST HSC+ 590CC  10721-590HP," 4,106.00 "," 2,874.20 "
7/1/2022,278,6730,C1789,675.029042,IMPLANT BREAST         SCF-605," 5,063.00 "," 3,544.10 "
7/1/2022,278,6730,C1789,675.036017,EXPANDER BREAST   133S-SX-13-T," 5,606.00 "," 3,924.20 "
7/1/2022,278,6730,C1789,675.029044,IMPLANT BREAST         SCF-650," 5,063.00 "," 3,544.10 "
7/1/2022,278,6730,C1789,675.029040,IMPLANT BREAST         SCF-560," 5,062.50 "," 3,543.75 "
7/1/2022,278,6730,C1789,675.035350,BREAST HSC+ 650CC 10721-650MP," 4,106.00 "," 2,874.20 "
7/1/2022,278,6730,C1789,675.035583,BREAST MENTOR 700CC   350-7004," 3,938.00 "," 2,756.60 "
7/1/2022,278,6730,C1789,675.036100,BREAST HSC+        10721-535HP," 4,106.00 "," 2,874.20 "
7/1/2022,278,6730,C1789,675.036104,BREAST Memory Gel     SHPB-370," 3,938.00 "," 2,756.60 "
7/1/2022,278,6730,C1789,675.034409,BREAST IMPLANT     10712-510MP," 4,106.00 "," 2,874.20 "
7/1/2022,278,6730,C1789,675.035456,BREAST HSC+ 505CC 10721-505HP," 4,106.00 "," 2,874.20 "
7/1/2022,278,6730,C1789,675.31695,EXPANDER BREAST 375CC 133SV-14," 3,836.00 "," 2,685.20 "
7/1/2022,278,6730,C1789,675.036090,BREAST IMPLANT      350-7360MC," 3,938.00 "," 2,756.60 "
7/1/2022,278,6730,C1789,675.034804,BREAST IMPLANT 12.75   SSF-450," 5,063.00 "," 3,544.10 "
7/1/2022,278,7240,C1788,675.01742,PORTACATH 21-4453-01, 866.00 , 606.20 
7/1/2022,278,6730,C1788,675.034107,PORTACATH LP 6F TIT 21-4437-24," 1,949.00 "," 1,364.30 "
7/1/2022,278,6730,C1788,675.01740,PORTACATH 21-4483-24, 866.00 , 606.20 
7/1/2022,272,6750,C1787,675.035916,KIT VANTA REPL SYS AD 9770VRA," 69,750.00 "," 48,825.00 "
7/1/2022,270,6750,C1787,675.033484,REMOTE CONTROL SLEEP     2500N," 5,950.00 "," 4,165.00 "
7/1/2022,278,6730,C1787,675.036004,OCTRODE T7                3186," 8,250.00 "," 5,775.00 "
7/1/2022,270,6750,C1787,675.034834,REMOTE CONTROL PATIENT    2301," 3,506.00 "," 2,454.20 "
7/1/2022,272,6750,C1787,675.035920,KIT INTELLIS REPLMT AD 9771IRA," 69,375.00 "," 48,562.50 "
7/1/2022,272,6750,C1787,675.035915,KIT VANTA REPL SYS 9770VR," 66,000.00 "," 46,200.00 "
7/1/2022,272,6750,C1787,675.035919,KIT INTELLIS REPLMT 9771IR," 65,625.00 "," 45,937.50 "
7/1/2022,270,6750,C1787,675.034831,IMPLANT PACKAGE           1A01," 45,604.00 "," 31,922.80 "
7/1/2022,272,6750,C1787,675.034841,IMPLANT PACKAGE           1A01," 1,488.00 "," 1,041.60 "
7/1/2022,272,6750,C1787,675.035914,KIT VANTA PERC SYS 9770VP," 78,750.00 "," 55,125.00 "
7/1/2022,272,6750,C1787,675.035917,KIT VANTA SURG SYS 9770VS," 69,750.00 "," 48,825.00 "
7/1/2022,275,7240,C1786,675.031812,ASSURITY PACEMAKER PM1272," 17,840.00 "," 12,488.00 "
7/1/2022,275,7240,C1785,675.32113,PACEMAKER ACCOLADE MRI DR L311," 16,638.00 "," 11,646.60 "
7/1/2022,275,7240,C1785,675.033447,PACEMAKER ACCOLADE MRI EL L331," 20,625.00 "," 14,437.50 "
7/1/2022,275,7240,C1785,675.033377,PACEMAKER AZURE MRI IPG W1SR01," 16,027.00 "," 11,218.90 "
7/1/2022,275,7240,C1785,675.030054,PACEMAKER DUAL CAN PM2272," 23,581.00 "," 16,506.70 "
7/1/2022,275,7240,C1785,675.032285,PACEMAKER GEN AZURE IPG W1DR01," 23,853.00 "," 16,697.10 "
7/1/2022,278,6730,C1781,675.034351,MESH ANATOM 15X10 RT DXT1510AR, 576.00 , 403.20 
7/1/2022,278,6730,C1781,675.033802,MESH PARIETENE 25X20  PPDS2520," 4,669.00 "," 3,268.30 "
7/1/2022,278,6730,C1781,675.32079,MESH VENTRAL 4 PCO4VP," 1,166.00 ", 816.20 
7/1/2022,278,6730,C1781,675.032016,MESH VERSATEX  11X6  VTX1106X3, 305.00 , 213.50 
7/1/2022,278,6730,C1781,675.19737,MESH PARIETEX 15X10 TCM1510X3, 450.00 , 315.00 
7/1/2022,278,6730,C1781,675.034384,MESH ANATOM RT 16X12 DXT1612AR, 616.00 , 431.20 
7/1/2022,278,6730,C1781,675.19738,MESH PLUG PARIETEX 8X3 PNP8X3, 682.00 , 477.40 
7/1/2022,278,6730,C1781,675.19720,MESH PARIETEX PCO1510," 1,579.00 "," 1,105.30 "
7/1/2022,278,6730,C1781,675.033774,MESH PARIETENE 20X15  PPDS2015," 2,925.00 "," 2,047.50 "
7/1/2022,278,6730,C1781,675.19715,MESH HERNIA PROLENE LG PHSE," 1,824.00 "," 1,276.80 "
7/1/2022,278,6730,C1781,675.034239,MESH LAP 12X16 LEFT  LPG1612AL," 1,712.00 "," 1,198.40 "
7/1/2022,278,6730,C1781,675.32051,MESH VENTRAL 6.6 PCO6VP," 1,397.00 ", 977.90 
7/1/2022,278,6730,C1781,675.033804,MESH PARIETENE 15X10  PPDS1510," 1,824.00 "," 1,276.80 "
7/1/2022,278,6730,C1781,675.19726,MESH PARIETEX 3.6 ROUND PC09, 995.00 , 696.50 
7/1/2022,278,6730,C1781,675.034383,MESH ANATON 16X12    DXT1612AL, 616.00 , 431.20 
7/1/2022,278,6730,C1781,675.033466,MESH PARIETENE 12CM     PPDS12," 2,006.00 "," 1,404.20 "
7/1/2022,278,6730,C1781,675.033508,MESH ANTMCL LT 10X15 LPG1510AL," 1,899.00 "," 1,329.30 "
7/1/2022,278,6730,C1781,675.19724,MESH PARIETEX TEC1515, 316.00 , 221.20 
7/1/2022,278,6730,C1781,675.034240,MESH LAP 16X12 RIGHT LPG1612AR," 1,712.00 "," 1,198.40 "
7/1/2022,278,6730,C1781,675.035042,MESH VERSATEX 15X15    VTX1515, 915.00 , 640.50 
7/1/2022,278,6730,C1781,675.033805,MESH PARIETENE 15CM     PPDS15," 2,626.00 "," 1,838.20 "
7/1/2022,278,6730,C1781,675.19716,MESH HERNIA P3DPL," 1,228.00 ", 859.60 
7/1/2022,278,6730,C1781,675.033528,MESH ANATOM 15X10    DXT1510AL, 820.00 , 574.00 
7/1/2022,278,6730,C1781,675.033423,MESH POLYMER BIOA 7X10  HH0710," 1,965.00 "," 1,375.50 "
7/1/2022,278,6730,C1781,675.033507,MESH ANTMCL RT 10X15 LPG1510AR," 1,899.00 "," 1,329.30 "
7/1/2022,278,6730,C1781,675.28582,MESH PLUG 6x3 PARIETEX PNP6X3, 381.00 , 266.70 
7/1/2022,278,6730,C1781,675.036050,MESH PHASIX ST 10X15   1201015," 15,117.00 "," 10,581.90 "
7/1/2022,278,6750,C1778,675.034819,KIT TINED LEAD            1201," 14,625.00 "," 10,237.50 "
7/1/2022,278,6730,C1778,675.035925,LEAD SUBCOMPACT 3MM 977A160," 7,875.00 "," 5,512.50 "
7/1/2022,278,6730,C1778,675.035926,LEAD SUBCOMPACT 3MM 977A175," 7,875.00 "," 5,512.50 "
7/1/2022,278,6730,C1778,675.034820,KIT TINED LEAD            1201," 12,210.00 "," 8,547.00 "
7/1/2022,278,6730,C1778,675.035928,LEAD COMPACT 5MM 977A260," 7,875.00 "," 5,512.50 "
7/1/2022,278,6730,C1778,675.035927,LEAD SUBCOMPACT 3MM  977A190," 7,875.00 "," 5,512.50 "
7/1/2022,278,6730,C1778,675.035930,LEAD MRICS COMPACT 977A290," 7,875.00 "," 5,512.50 "
7/1/2022,278,6730,C1778,675.033483,LEAD RESPIRATORY SENSING  4340," 12,656.00 "," 8,859.20 "
7/1/2022,278,6730,C1778,675.035929,LEAD MRICS COMPACT  977A275," 7,875.00 "," 5,512.50 "
7/1/2022,278,6730,C1778,675.033482,LEAD STIMULATION          4063," 7,313.00 "," 5,119.10 "
7/1/2022,275,7240,C1777,675.034670,OPTISUREMRI LEADS   LDA210Q/65," 13,500.00 "," 9,450.00 "
7/1/2022,275,7240,C1777,675.034363,COIL SINGLE RELIANCE 64CM 0673," 18,750.00 "," 13,125.00 "
7/1/2022,278,6730,C1776,675.035256,PSN FEM POS AUG 42-5568-062-05," 5,981.00 "," 4,186.70 "
7/1/2022,278,6730,C1776,675.030764,MEDIAL FEM SZ3     AR-501-UFLE," 11,250.00 "," 7,875.00 "
7/1/2022,278,6730,C1776,675.30174,HEAD FEM 36mm 00-8775-036-02," 6,639.00 "," 4,647.30 "
7/1/2022,278,6730,C1776,675.83458,ARTI SURF CON Y 10 5976-30-10," 3,919.00 "," 2,743.30 "
7/1/2022,278,6730,C1776,675.034934,PSN ASF CPS     42-5126-004-12," 9,886.00 "," 6,920.20 "
7/1/2022,278,6730,C1776,675.035290,PSN FEM CEM 7 R 42-5046-062-12," 41,461.00 "," 29,022.70 "
7/1/2022,278,6730,C1776,675.30697,HEAD FEM 00-8775-032-01," 7,013.00 "," 4,909.10 "
7/1/2022,278,7240,C1776,675.031725,HEAD FEMORAL 32 00-8775-032-03," 4,809.00 "," 3,366.30 "
7/1/2022,278,6730,C1776,675.28583,STEM 17x235M 9982-17-23," 11,075.00 "," 7,752.50 "
7/1/2022,278,6730,C1776,675.031570,LINER ACET 40MM 00-8851-014-40," 13,688.00 "," 9,581.60 "
7/1/2022,278,6730,C1776,675.32355,SHELL ACE 60MM 00-8757-60-01," 7,176.00 "," 5,023.20 "
7/1/2022,278,6730,C1776,675.035288,PSN STEM EXT    42-5601-175-14," 9,380.00 "," 6,566.00 "
7/1/2022,278,6730,C1776,675.031169,STEM HUM 12        AR-9100-12S," 6,563.00 "," 4,594.10 "
7/1/2022,278,6730,C1776,675.031652,KNEE PER W/VIT E 42512100811," 13,763.00 "," 9,634.10 "
7/1/2022,278,6730,C1776,675.035627,PSN FEM STD 9R  42-5046-066-02," 38,742.00 "," 27,119.40 "
7/1/2022,278,6730,c1776,675.035626,PSN STEM 16x135 42-5601-135-16," 9,380.00 "," 6,566.00 "
7/1/2022,278,6730,C1776,675.034398,HEAD HUMERAL 54/23 AR-9154-23P," 6,566.00 "," 4,596.20 "
7/1/2022,278,7240,C1776,675.033889,ACETABULAR CUP       11-165210," 4,950.00 "," 3,465.00 "
7/1/2022,278,6730,C1776,675.031472,PERSONA TIB STM 5  42532007101," 13,988.00 "," 9,791.60 "
7/1/2022,278,6730,C1776,675.89401,FEMORAL STEM 9982-15-18," 15,527.00 "," 10,868.90 "
7/1/2022,278,6730,C1776,675.035377,PSN ASF CPS     42-5126-007-10," 9,886.00 "," 6,920.20 "
7/1/2022,278,6730,C1776,675.035376,LINER ACET 40MM G7 30104008," 9,000.00 "," 6,300.00 "
7/1/2022,278,6730,C1776,675.29558,FEMORAL HEAD MM24368," 7,013.00 "," 4,909.10 "
7/1/2022,278,6730,C1776,675.035901,TI GLENOSPHERE  AR-9564-T2436," 14,250.00 "," 9,975.00 "
7/1/2022,278,6730,C1776,675.035758,LINER NEUTRAL 40MM    30104009," 9,000.00 "," 6,300.00 "
7/1/2022,278,6730,C1776,675.030273,KNEE PERSONA       98000241500," 17,813.00 "," 12,469.10 "
7/1/2022,278,6730,C1776,675.030331,KNEE PERSONA       98000240000," 17,638.00 "," 12,346.60 "
7/1/2022,278,6730,C1776,675.031722,CONT VITE LINER 00-8851-012-32," 13,763.00 "," 9,634.10 "
7/1/2022,278,6730,C1776,675.034437,PSN STEM EXT    42-5606-175-12," 14,138.00 "," 9,896.60 "
7/1/2022,278,6730,C1776,675.034099,PLATE BASE 24MM   AR-9580-2410," 12,000.00 "," 8,400.00 "
7/1/2022,278,6730,C1776,675.035385,TRUNION ECLIP 41 AR-9301-41CPC," 16,875.00 "," 11,812.50 "
7/1/2022,278,6730,C1776,675.032385,PERSONA VITE 12 42-5121-004-12," 13,762.00 "," 9,633.40 "
7/1/2022,278,6600,C1776,675.011888,STEM FEMORAL REV.      5001-49," 18,492.00 "," 12,944.40 "
7/1/2022,278,6730,C1776,675.034775,PSN FEM STD 5 R 42-5046-058-02," 38,742.00 "," 27,119.40 "
7/1/2022,278,6730,C1776,675.29430,HIP CAP KIT YNG 98-0001-250-53," 16,500.00 "," 11,550.00 "
7/1/2022,278,6730,C1776,675.035287,PSN STEM EXT    42-5606-175-13," 14,138.00 "," 9,896.60 "
7/1/2022,278,6730,c1776,675.035585,TRUNION ECLIP 37 AR-9301-37CPC," 16,594.00 "," 11,615.80 "
7/1/2022,278,6730,C1776,675.035255,PSN FEM STD 7R  42-5046-062-02," 38,742.00 "," 27,119.40 "
7/1/2022,278,6730,C1776,675.035567,TRUNION ECLIP 47 AR-9301-47CPC," 16,875.00 "," 11,812.50 "
7/1/2022,278,6730,C1776,675.035374,SPOUT B BODY   00999701845," 22,571.00 "," 15,799.70 "
7/1/2022,278,6730,C1776,675.035261,PSN ASF CPS12MM 42-5226-005-12," 9,886.00 "," 6,920.20 "
7/1/2022,278,6730,C1776,675.031536,PERSONA TIB LT     42532006701," 13,988.00 "," 9,791.60 "
7/1/2022,278,6730,C1776,675.031539,PERSONA FEM LT     42502606601," 32,100.00 "," 22,470.00 "
7/1/2022,278,6730,C1776,675.28195,VERSYS DISTL CEMNT 11M 7859-11, 148.00 , 103.60 
7/1/2022,278,6730,C1776,675.035630,PSN REV TIB 10  42-5558-074-10," 5,981.00 "," 4,186.70 "
7/1/2022,278,6730,C1776,675.032193,CONTINUUM CLUST 00-8757-050-01," 14,362.00 "," 10,053.40 "
7/1/2022,278,6730,C1776,675.035260,PSN STEM 11X135 42-5601-135-11," 9,380.00 "," 6,566.00 "
7/1/2022,278,6730,C1776,675.034440,PSN STEM EXTENS 42-5601-175-11," 9,380.00 "," 6,566.00 "
7/1/2022,278,6730,C1776,675.034438,PSN FEMUR CEM   42-5046-058-11," 41,461.00 "," 29,022.70 "
7/1/2022,278,6730,C1776,675.033403,CUP REV UNV 42 AR-9502F-42RCPC," 6,694.00 "," 4,685.80 "
7/1/2022,278,6750,C1776,675.033146,PSN FEMUR 6 L   42-5026-060-01," 32,100.00 "," 22,470.00 "
7/1/2022,278,7240,C1776,675.032229,PSN VITE LT 10  42-5124-008-10," 13,762.00 "," 9,633.40 "
7/1/2022,278,6730,C1776,675.034931,PSN STEM 11X135 42-5603-135-11," 14,138.00 "," 9,896.60 "
7/1/2022,278,7240,C1776,675.031545,PERSONA W/ VIT-E   42522100910," 13,763.00 "," 9,634.10 "
7/1/2022,278,6730,C1776,675.031764,PSN VE ASF L 10 42-5121-004-10," 13,763.00 "," 9,634.10 "
7/1/2022,278,6730,C1776,675.035279,TRUNION ECLIP 45 AR-9301-45CPC," 16,875.00 "," 11,812.50 "
7/1/2022,278,6730,C1776,675.031602,FEM CR CMT SZ8 L 42502606401," 32,100.00 "," 22,470.00 "
7/1/2022,278,6730,C1776,675.031476,PERSONA PAT 38MM   42540000038," 5,963.00 "," 4,174.10 "
7/1/2022,278,6730,C1776,675.035589,HIP AVENIR CMPL 6  574201060," 11,089.00 "," 7,762.30 "
7/1/2022,278,6730,c1776,675.035584,SCREW CAGE S ECLI   AR-9337-16," 16,594.00 "," 11,615.80 "
7/1/2022,278,7240,C1776,675.035052,SHELL 4 HOLE OSSEO   110010247," 13,496.00 "," 9,447.20 "
7/1/2022,278,6730,C1776,675.27875,STEM FEM 17 7711-17-20," 13,195.00 "," 9,236.50 "
7/1/2022,278,6730,C1776,675.034175,PLATE BASE MODULR AR-9560-28-4," 8,250.00 "," 5,775.00 "
7/1/2022,278,6730,C1776,675.035631,PSN TIBIA FIXED 42-5420-079-02," 13,866.00 "," 9,706.20 "
7/1/2022,278,6730,C1776,675.31484,LINER BIPOLAR CUP 5001-47-28," 1,770.00 "," 1,239.00 "
7/1/2022,278,6730,C1776,675.034940,PSN FEM STD 5 L 42-5046-058-01," 38,742.00 "," 27,119.40 "
7/1/2022,278,6750,C1776,675.031717,ARTI SURF GR    00-5976-040-14," 3,919.00 "," 2,743.30 "
7/1/2022,278,6730,C1776,675.27861,STEM FEM 16x235 9982-16-23," 16,989.00 "," 11,892.30 "
7/1/2022,278,7240,C1776,675.034985,TIBIAL INSERT 9MM    2303-3641," 7,500.00 "," 5,250.00 "
7/1/2022,278,6730,C1776,675.034933,PSN REV TIB FXD 42-5420-067-01," 13,866.00 "," 9,706.20 "
7/1/2022,278,6730,C1776,675.034436,PSN FEM DIS AUG 42-5566-058-05," 5,981.00 "," 4,186.70 "
7/1/2022,278,6730,C1776,675.034714,HEAD FEM 40X7   00-8775-040-04," 5,344.00 "," 3,740.80 "
7/1/2022,278,6730,C1776,675.034397,GLENOID LARGE       AR-9106-04," 5,906.00 "," 4,134.20 "
7/1/2022,278,6730,C1776,675.035278,HEAD HUMERAL 45/17  AR-9345-17," 7,500.00 "," 5,250.00 "
7/1/2022,278,6730,C1776,675.034779,PSN ART SURF 14 42-5228-006-14," 13,594.00 "," 9,515.80 "
7/1/2022,278,6730,C1776,675.036140,PSN ARTIC SURF  42-5128-007-12," 12,188.00 "," 8,531.60 "
7/1/2022,278,6730,C1776,675.034790,PSN ART SURF 10 42-5226-007-10," 9,886.00 "," 6,920.20 "
7/1/2022,278,6730,C1776,675.034792,FEMORAL HEAD 32 00-8775-032-04," 4,809.00 "," 3,366.30 "
7/1/2022,278,6730,C1776,675.034674,LINER NEUTRA KK 00-8851-012-40," 6,413.00 "," 4,489.10 "
7/1/2022,278,6730,C1776,675.034519,PSN FEM 5 R     42-5000-058-02," 13,894.00 "," 9,725.80 "
7/1/2022,278,6730,C1776,675.035373,STEM TAPER  00-9982-020-23," 16,989.00 "," 11,892.30 "
7/1/2022,278,6730,C1776,675.28396,ARTI SURF ANT C 5976-30-12," 3,919.00 "," 2,743.30 "
7/1/2022,278,6730,C1776,675.034500,PSN ARTIC SURF  42-5221-003-11," 5,513.00 "," 3,859.10 "
7/1/2022,278,6730,C1776,675.035145,SHELL OSSEO 3 HOLE   110010242," 13,236.00 "," 9,265.20 "
7/1/2022,278,6730,C1776,675.035778,PSN STEM 14x135 42-5601-135-14," 9,380.00 "," 6,566.00 "
7/1/2022,278,6730,C1776,675.035147,STEM TAPERLOC 6X132  51-100060," 11,250.00 "," 7,875.00 "
7/1/2022,278,6730,C1776,675.035737,PSN FEM STD 6 L 42-5006-060-01," 13,894.00 "," 9,725.80 "
7/1/2022,278,6730,C1776,675.035776,PSN REV TIB FXD 42-5420-064-02," 13,866.00 "," 9,706.20 "
7/1/2022,278,6730,C1776,675.031723,CONT VITE LINER 00-8851-012-32," 5,700.00 "," 3,990.00 "
7/1/2022,278,6730,C1776,675.350610,PSN TIBIA CEM   42-5320-061-01," 5,250.00 "," 3,675.00 "
7/1/2022,278,6730,C1776,675.035028,STEM TAPERL 10X140   51-103100," 15,527.00 "," 10,868.90 "
7/1/2022,278,6730,C1776,675.035764,TRUNION ECLIP 39 AR-9301-39CPC," 16,875.00 "," 11,812.50 "
7/1/2022,278,6730,C1776,675.035779,PSN STEM 15x135 42-5601-135-15," 9,380.00 "," 6,566.00 "
7/1/2022,278,6730,C1776,675.031959,KNEE PSN 14X30 42-5570-001-14," 12,338.00 "," 8,636.60 "
7/1/2022,278,6730,C1776,675.034816,PSN ART SURF 11 42-5222-002-11," 6,234.00 "," 4,363.80 "
7/1/2022,278,6730,C1776,675.035131,KNEE PSN        98-0002-400-22," 16,500.00 "," 11,550.00 "
7/1/2022,278,6730,C1776,675.035025,SHELL OSSEO 4 HOLE   110010245," 15,990.00 "," 11,193.00 "
7/1/2022,278,6730,c1776,675.035687,INSERT HUM  L\42   AR-9503L-06," 3,806.00 "," 2,664.20 "
7/1/2022,278,6730,C1776,675.035672,HEAD HUMERAL        AR-9349-18," 7,500.00 "," 5,250.00 "
7/1/2022,278,6730,C1776,675.036098,TRUNION ECLIP 51 AR-9301-51CPC," 16,875.00 "," 11,812.50 "
7/1/2022,278,6730,C1776,675.035661,HEAD FEM CoCr        802202801," 2,316.00 "," 1,621.20 "
7/1/2022,278,6730,C1776,675.035541,HEAD FEM 22.2MM      802202203," 2,316.00 "," 1,621.20 "
7/1/2022,278,6730,C1776,675.035262,SHELL OSSEO 3 HOLE   110010243," 13,236.00 "," 9,265.20 "
7/1/2022,278,6730,C1776,675.035378,FEM STEM SZ 4        574201040," 11,091.00 "," 7,763.70 "
7/1/2022,278,6730,C1776,675.035990,PSN FEM 7L      42-5706-062-01," 14,250.00 "," 9,975.00 "
7/1/2022,278,6730,C1776,675.036078,PSN FEMUR LT 6  42-5720-056-01," 14,250.00 "," 9,975.00 "
7/1/2022,278,6730,C1776,675.034343,HEAD FEM ADAPTOR    7818-99-02, 356.00 , 249.20 
7/1/2022,278,6730,C1776,675.035293,SHELL OSSEO 4 HOLE   110010246," 15,990.00 "," 11,193.00 "
7/1/2022,278,6730,C1776,675.035356,FEM STEM SZ 7        574201070," 11,090.00 "," 7,763.00 "
7/1/2022,278,6730,C1776,675.035241,PSN FEMUR 9 LT  42-5726-066-01," 14,250.00 "," 9,975.00 "
7/1/2022,278,6730,C1776,675.035775,PSN ASF CPS 14  42-5226-004-14," 9,886.00 "," 6,920.20 "
7/1/2022,278,6730,C1776,675.034720,PSN FEMUR RT 5  42-5720-058-02," 14,250.00 "," 9,975.00 "
7/1/2022,278,6730,C1776,675.035062,KNEE PSN LEFT   42-5124-002-10," 6,084.00 "," 4,258.80 "
7/1/2022,278,6730,C1776,675.035326,JOINT DEVICE (IMPLANTABLE)," 32,100.00 "," 22,470.00 "
7/1/2022,278,6730,C1776,675.035422,HIP SYS AVEN COMP    574202050," 11,091.00 "," 7,763.70 "
7/1/2022,278,6730,C1776,675.034673,PSN ASF R 13    42-5221-008-13," 5,513.00 "," 3,859.10 "
7/1/2022,278,6730,C1776,675.035268,BIOMET HIP      98-B001-001-02," 13,699.00 "," 9,589.30 "
7/1/2022,278,6730,C1776,675.035985,HIP SYS AVEN COMP    574202030," 11,091.00 "," 7,763.70 "
7/1/2022,278,6730,C1776,675.036099,HEAD HUMERAL 51/19  AR-9351-19," 7,500.00 "," 5,250.00 "
7/1/2022,278,6730,C1776,675.035276,STEM REVERSE 13    AR-9501-13P," 9,319.00 "," 6,523.30 "
7/1/2022,278,6730,C1776,675.034787,PSN VIT-E EXT   98-0006-475-04," 16,500.00 "," 11,550.00 "
7/1/2022,278,6730,C1776,675.035469,SHELL OSSEO 4 HOLE   110010248," 13,236.00 "," 9,265.20 "
7/1/2022,278,6730,C1776,675.036138,PSN FEM STD 9L  42-5046-066-01," 34,734.00 "," 24,313.80 "
7/1/2022,278,6730,C1776,675.035007,MEDIAL FEM SZ6     AR-501-UFLF," 11,250.00 "," 7,875.00 "
7/1/2022,278,6730,C1776,675.034374,PERSONA FE RT 7 42-5726-062-02," 14,250.00 "," 9,975.00 "
7/1/2022,278,6730,C1776,675.035542,BIOMET HIP      98-B001-009-03," 22,125.00 "," 15,487.50 "
7/1/2022,278,6730,C1776,675.034922,PSN ASF VITE 12 42-5221-010-12," 5,513.00 "," 3,859.10 "
7/1/2022,278,6730,C1776,675.035669,BEARING VIVACIT-E    110031012," 10,125.00 "," 7,087.50 "
7/1/2022,278,6730,C1776,675.30796,HEAD FEM 40mm 00-8775-40-02," 6,512.00 "," 4,558.40 "
7/1/2022,278,6730,C1776,675.036072,HEAD FEM 22.2        802202202," 2,316.00 "," 1,621.20 "
7/1/2022,278,6730,C1776,675.035054,STEM TAPERLOC FEMOR  51-103130," 11,268.00 "," 7,887.60 "
7/1/2022,278,6730,C1776,675.035264,FEM STEM SZ 1        574201010," 11,091.00 "," 7,763.70 "
7/1/2022,278,6730,C1776,675.034399,PSN FEMUR LFT   42-5720-058-01," 14,250.00 "," 9,975.00 "
7/1/2022,278,6730,C1776,675.035294,LINER ACET G7 32MM F  30103206," 9,000.00 "," 6,300.00 "
7/1/2022,278,6730,C1776,675.035035,HEAD MODULAR CERAMIC 12-115114," 5,625.00 "," 3,937.50 "
7/1/2022,278,6730,C1776,675.035038,STEM TAPER 11X142    51-103110," 11,250.00 "," 7,875.00 "
7/1/2022,278,6730,C1776,675.035755,PSN ARTIC SURF 42-5221-003-12," 5,513.00 "," 3,859.10 "
7/1/2022,278,6730,C1776,675.035230,PSN FEMUR 5 L   42-5726-058-01," 13,500.00 "," 9,450.00 "
7/1/2022,278,6730,C1776,675.035574,FEM STEM SZ 5        574201050," 11,091.00 "," 7,763.70 "
7/1/2022,278,6730,C1776,675.034180,PSN FEMUR RT    42-5720-060-02," 14,250.00 "," 9,975.00 "
7/1/2022,278,6730,C1776,675.035027,LINER ACET G7 36MM F 30103606," 12,862.00 "," 9,003.40 "
7/1/2022,278,6730,C1776,675.034333,ACETUBULAR CUP       11-165206," 4,950.00 "," 3,465.00 "
7/1/2022,278,6730,C1776,675.036137,PSN STEM EXT    42-5601-175-15," 8,409.00 "," 5,886.30 "
7/1/2022,278,6730,C1776,675.035637,PSN FEM STD 6R  42-5726-060-02," 14,250.00 "," 9,975.00 "
7/1/2022,278,6730,C1776,675.035146,LINER ACET G7 32MM C  30103203," 9,000.00 "," 6,300.00 "
7/1/2022,278,6730,C1776,675.035161,PSN FEM CMT 12  42-5006-074-02," 13,894.00 "," 9,725.80 "
7/1/2022,278,6730,c1776,675.035679,PSN FEMUR 8L    42-5726-064-01," 14,250.00 "," 9,975.00 "
7/1/2022,278,6730,C1776,675.32391,CUP UNIV 39/+2 AR-9502-39LCPC," 6,694.00 "," 4,685.80 "
7/1/2022,278,6730,C1776,675.28198,VERSYS DISTL CEMNT 14M 7859-14, 260.00 , 182.00 
7/1/2022,278,6730,C1776,675.035812,PSN ART SURF 42-5222-002-10," 6,234.00 "," 4,363.80 "
7/1/2022,278,6730,C1776,675.035568,HEAD HUMERAL 47/18  AR-9347-18," 7,500.00 "," 5,250.00 "
7/1/2022,278,6730,C1776,675.036077,PSN ASF CR 10MM 42-5120-002-10," 6,234.00 "," 4,363.80 "
7/1/2022,278,6730,C1776,675.035263,LINER ACET G7 32MM D  30103204," 9,000.00 "," 6,300.00 "
7/1/2022,278,6730,C1776,675.035029,HEAD BIOLOX MOD CER   650-0661," 4,809.00 "," 3,366.30 "
7/1/2022,278,7240,C1776,675.035638,BEARING TIB 10X63/67   183520," 4,050.00 "," 2,835.00 "
7/1/2022,278,6730,c1776,675.036139,PSN REV TIB FXD 42-5420-075-01," 12,431.00 "," 8,701.70 "
7/1/2022,278,6730,C1776,675.035489,HIP SYS AVEN COMP   574202020," 11,090.00 "," 7,763.00 "
7/1/2022,278,6730,C1776,675.036091,HIP FEM STEM 14 00-7850-014-00," 10,331.00 "," 7,231.70 "
7/1/2022,278,6730,C1776,675.032531,HEAD FEM BIOLOX 28 8775-028-01," 4,809.00 "," 3,366.30 "
7/1/2022,278,6730,C1776,675.035036,SHELL OSSEO 3 HOLE   110010244," 15,990.00 "," 11,193.00 "
7/1/2022,278,6730,C1776,675.29532,HIP BIPOLAR 98-0001-006-00," 15,525.00 "," 10,867.50 "
7/1/2022,278,6730,C1776,675.035668,LINER G7 DUAL MOB    110024464," 9,068.00 "," 6,347.60 "
7/1/2022,278,6730,C1776,675.036011,HIP SYS AVENIR 6.5   574202060," 11,091.00 "," 7,763.70 "
7/1/2022,278,6730,C1776,675.035061,PSN TIBIA CEM   42-5320-061-01," 5,250.00 "," 3,675.00 "
7/1/2022,278,6730,c1776,675.036026,AVENIR CMPL 2        574203020," 11,091.00 "," 7,763.70 "
7/1/2022,278,7240,C1776,675.017676,ARTI SURF SZEF 10   5962-32-10," 6,094.00 "," 4,265.80 "
7/1/2022,278,6730,C1776,675.035754,HIP SYS AVEN COMP    574202010," 11,091.00 "," 7,763.70 "
7/1/2022,278,6730,C1776,675.035053,LINER ACET 36MM G     30103607," 9,000.00 "," 6,300.00 "
7/1/2022,278,6750,C1776,675.035837,HIP TOTAL 98-0005-000-05," 18,750.00 "," 13,125.00 "
7/1/2022,278,6730,C1776,675.032194,CONT VITE LINER 00-8851-009-32," 13,350.00 "," 9,345.00 "
7/1/2022,278,6730,C1776,675.030115,HEAD HUMER 50/19  AR-9150-19P," 6,563.00 "," 4,594.10 "
7/1/2022,278,6730,C1776,675.031598,PERSONA W/VIT-E 42522100710," 13,763.00 "," 9,634.10 "
7/1/2022,278,6730,C1776,675.30513,BODY FEM AA 35MM 9990-16-36," 22,571.00 "," 15,799.70 "
7/1/2022,278,6730,C1776,675.32403,STEM HUMERAL 8MM AR-9100-08S," 11,481.00 "," 8,036.70 "
7/1/2022,278,6730,C1776,675.030803,CUP REVERSE 39 AR-9502F-39LCPC," 6,694.00 "," 4,685.80 "
7/1/2022,278,6730,C1776,675.032749,GLENOSPHERE   AR-9564-2439-LAT," 8,625.00 "," 6,037.50 "
7/1/2022,278,7240,C1776,675.31480,LINER BIPOLAR CUP 5001-60-28," 1,069.00 ", 748.30 
7/1/2022,278,6730,C1776,675.031494,PERSONA FEM STD 10 42502606801," 32,100.00 "," 22,470.00 "
7/1/2022,278,6750,C1776,675.035125,GLENOSPHERE   AR-9564-2836-LAT," 8,625.00 "," 6,037.50 "
7/1/2022,278,6730,C1776,675.035051,HEAD FEM 28MM        802202802," 2,316.00 "," 1,621.20 "
7/1/2022,278,6730,C1776,675.035037,LINER ACET G7 32MM E  30103205," 9,000.00 "," 6,300.00 "
7/1/2022,278,6730,C1776,675.035777,PSN REV TIB FXD 42-5420-064-02," 5,981.00 "," 4,186.70 "
7/1/2022,278,6730,C1776,675.035295,FEM STEM SZ 6.5      574201065," 11,089.00 "," 7,762.30 "
7/1/2022,278,6730,C1776,675.032677,CUP REVERSE 42 AR-9502F-42LCPC," 6,693.00 "," 4,685.10 "
7/1/2022,278,6730,C1776,675.031651,PERSONA TIB L5 42532007501," 13,988.00 "," 9,791.60 "
7/1/2022,278,6730,C1776,675.83385,HEAD FEMORAL 00-8775-036-03," 8,223.00 "," 5,756.10 "
7/1/2022,278,6730,C1776,675.035816,HEAD HUMERAL 43/18  AR-9343-18," 7,500.00 "," 5,250.00 "
7/1/2022,278,6730,C1776,675.034441,PSN ARTIC SURF  42-5128-004-12," 13,594.00 "," 9,515.80 "
7/1/2022,278,6730,C1776,675.034932,PSN STEM 10X135 42-5601-135-10," 9,380.00 "," 6,566.00 "
7/1/2022,278,6730,C1776,675.035628,PSN FEM POS AUG 42-5568-066-10," 5,981.00 "," 4,186.70 "
7/1/2022,278,6730,C1776,675.8836,STEM FEM VERSYS 11 7833-11," 2,286.00 "," 1,600.20 "
7/1/2022,278,7240,C1776,675.31487,SHELL BIPOLAR CUP 5001-60, 959.00 , 671.30 
7/1/2022,278,6730,C1776,675.035671,TRUNION ECLIP 49 AR-9301-49CPC," 16,875.00 "," 11,812.50 "
7/1/2022,278,6730,C1776,675.035289,PSN ART SURF 16 42-5228-005-16," 13,594.00 "," 9,515.80 "
7/1/2022,278,6730,C1776,675.27878,STEM FEM SZ 9 7711-09," 13,195.00 "," 9,236.50 "
7/1/2022,278,6730,C1776,675.034442,PSN TIBIA FIXED 42-5420-064-01," 13,977.00 "," 9,783.90 "
7/1/2022,278,6730,C1776,675.033165,STEM FEMORAL 16.25 7711-016-20," 21,592.00 "," 15,114.40 "
7/1/2022,278,6730,C1776,675.033468,GLENOSPHERE   AR-9564-2839-LAT," 8,625.00 "," 6,037.50 "
7/1/2022,278,6730,C1776,675.034777,PSN TIB CMT RT  42-5420-071-02," 13,866.00 "," 9,706.20 "
7/1/2022,278,6730,C1776,675.034778,PSN STEM 12X135 42-5603-135-12," 14,138.00 "," 9,896.60 "
7/1/2022,278,6730,C1776,675.035375,SHELL 4HOLE OSSE    110010249," 13,236.00 "," 9,265.20 "
7/1/2022,278,6730,C1776,675.031654,PERSO FEM NRW LT 7 42502006201," 32,100.00 "," 22,470.00 "
7/1/2022,278,7240,C1776,675.034917,STABILIZER TIBIAL 5537-G-609-E," 17,944.00 "," 12,560.80 "
7/1/2022,278,6730,C1776,675.035629,PSN STEM EXT    42-5606-135-14," 14,138.00 "," 9,896.60 "
7/1/2022,278,6730,C1776,675.035222,HEAD BIOLOX MOD CER   650-0660," 4,809.00 "," 3,366.30 "
7/1/2022,278,6730,C1776,675.035423,HIP SYS AVEN COMP    574202065," 11,091.00 "," 7,763.70 "
7/1/2022,278,6730,C1776,675.031874,PSN VITE L 10MM 42-5121-005-10," 5,513.00 "," 3,859.10 "
7/1/2022,278,6730,C1776,675.035845,FEM STEM SZ 0   574201000," 11,091.00 "," 7,763.70 "
7/1/2022,278,6730,C1776,675.035709,LINER ACET G7 32 G    30103207," 9,000.00 "," 6,300.00 "
7/1/2022,278,6730,C1776,675.034373,PERSONA LT12    42-5124-005-12," 6,234.00 "," 4,363.80 "
7/1/2022,278,6730,C1776,675.033984,KNEE TOTAL PSN  98-0002-001-93," 21,938.00 "," 15,356.60 "
7/1/2022,278,6730,C1776,675.035765,HEAD HUMERAL ECLIP  AR-9339-16," 7,500.00 "," 5,250.00 "
7/1/2022,278,6730,C1776,675.035959,KNEE PERSONA 98-0002-0004-03," 17,813.00 "," 12,469.10 "
7/1/2022,278,6730,C1776,675.031724,PSN ASF RT 10   42-5221-006-10," 13,760.00 "," 9,632.00 "
7/1/2022,278,6730,C1776,675.035465,FEM STEM SZ 2        574201020," 11,091.00 "," 7,763.70 "
7/1/2022,278,6730,c1776,675.035575,HIP SYS AVEN COMP    574202040," 11,091.00 "," 7,763.70 "
7/1/2022,278,6730,C1776,675.035666,PSN BIPOLAR HIP 98-0001-506-00," 13,699.00 "," 9,589.30 "
7/1/2022,278,6730,C1776,675.034354,PSN VIV E 11M L 42-5121-004-11," 5,513.00 "," 3,859.10 "
7/1/2022,278,6730,C1776,675.034815,PSN TIBIA CEM   42-5320-061-02," 5,250.00 "," 3,675.00 "
7/1/2022,278,6730,C1776,675.035468,LINER ACETABULAR G7  010000851," 9,000.00 "," 6,300.00 "
7/1/2022,278,6730,C1776,675.035123,KNEE PERSONA    98-0002-407-00," 16,500.00 "," 11,550.00 "
7/1/2022,278,6730,C1776,675.035759,SHELL 4 HOLE OSSE    110010251," 13,236.00 "," 9,265.20 "
7/1/2022,278,6730,C1776,675.035844,LINER ACET G7 36MM 30103604," 12,863.00 "," 9,004.10 "
7/1/2022,278,6730,C1776,675.032676,STEM REVERSE 12    AR-9501-12P," 9,318.00 "," 6,522.60 "
7/1/2022,278,6730,C1776,675.035030,TOTAL HIP CAP   98-B001-024-18," 24,000.00 "," 16,800.00 "
7/1/2022,278,6730,C1776,675.029881,CUP HUM REV 42  AR-9502F-42CPC," 6,694.00 "," 4,685.80 "
7/1/2022,278,6730,C1776,675.035291,TRUNION ECLIP 43 AR-9301-43CPC," 16,875.00 "," 11,812.50 "
7/1/2022,278,6730,C1776,675.31456,STEM HUM 10 AR-9100-10S," 16,404.00 "," 11,482.80 "
7/1/2022,278,6730,C1776,675.032527,GLENOSPHERE 39-28 AR-9564-2839," 8,625.00 "," 6,037.50 "
7/1/2022,278,6730,C1776,675.030612,HUMERAL STEM 6 MM  AR-9100-06S," 15,656.00 "," 10,959.20 "
7/1/2022,278,6730,C1776,675.030740,PERSONA TIB RT E   42532007102," 13,688.00 "," 9,581.60 "
7/1/2022,278,6730,C1776,675.029370,STEM UNIV 7MM HUM AR-9100-07S," 11,481.00 "," 8,036.70 "
7/1/2022,278,6730,C1776,675.28130,STEM FEM VERSYS 12 7833-12," 4,988.00 "," 3,491.60 "
7/1/2022,278,6730,C1776,675.17315,CAP DVR ANATOMIC SET," 4,125.00 "," 2,887.50 "
7/1/2022,278,6730,C1776,675.033092,PLATE BASE MODULAR  AR-9560-24," 8,250.00 "," 5,775.00 "
7/1/2022,278,6730,C1776,675.031757,BASEPLATE MODULAR AR-9560-24-2," 8,251.00 "," 5,775.70 "
7/1/2022,278,6730,C1776,675.032128,GLENOSPHERE 36/24 AR-9564-2436," 15,525.00 "," 10,867.50 "
7/1/2022,278,6730,C1776,675.30778,HUMERAL INSERT MED AR-9503M-03," 2,791.00 "," 1,953.70 "
7/1/2022,278,6600,C1776,675.029209,CUP REV UNV 36 AR-9502F-36RCPC," 6,694.00 "," 4,685.80 "
7/1/2022,278,6730,C1776,675.84780,HIP TOTAL W/TM CUP," 21,188.00 "," 14,831.60 "
7/1/2022,278,6730,C1776,675.031770,GLENOSPHERE   AR-9564-2436-LAT," 8,625.00 "," 6,037.50 "
7/1/2022,278,6730,C1776,675.033163,CUP REVERSE 36 AR-9502F-36LCPC," 6,693.00 "," 4,685.10 "
7/1/2022,278,6730,C1776,675.035343,HEAD HUM TI 40/17  AR-9140-17T," 12,188.00 "," 8,531.60 "
7/1/2022,278,6730,C1776,675.032621,GLENOSPHERE 36/28 AR-9564-2836," 8,625.00 "," 6,037.50 "
7/1/2022,278,7240,C1776,675.035438,INSERT ARTICULAR 11 71453247," 21,600.00 "," 15,120.00 "
7/1/2022,278,6730,C1776,675.032678,GLENOSPHERE 42-28 AR-9564-2842," 8,625.00 "," 6,037.50 "
7/1/2022,278,6730,C1776,675.035389,HEAD HUMERAL 41/16  AR-9341-16," 7,500.00 "," 5,250.00 "
7/1/2022,278,7240,C1776,675.031601,PERSONA W/VIT-E 42512100310," 13,763.00 "," 9,634.10 "
7/1/2022,278,6730,C1776,675.034439,PSN FEM DIS AUG 42-5566-058-10," 5,981.00 "," 4,186.70 "
7/1/2022,278,6730,C1776,675.035632,PSN ART SURF 10 42-5228-009-10," 13,594.00 "," 9,515.80 "
7/1/2022,278,6730,C1776,675.031753,PSN FEM STD R   42-5026-062-02," 32,100.00 "," 22,470.00 "
7/1/2022,278,6730,C1776,675.30798,INSERT HUMERAL SML AR-9503S-03," 7,013.00 "," 4,909.10 "
7/1/2022,278,6730,C1776,675.030738,PERSONA PAT 35MM   42540000035," 5,813.00 "," 4,069.10 "
7/1/2022,278,6730,C1776,675.31454,HEAD HUMERAL 52/20 AR-9152-20P," 6,875.00 "," 4,812.50 "
7/1/2022,278,6730,C1776,675.30514,HEAD FEMORAL 00-8775-036-01," 7,119.00 "," 4,983.30 "
7/1/2022,278,6730,C1776,675.031826,MODULAR GELNOID SYS   AR-9607S," 1,500.00 "," 1,050.00 "
7/1/2022,278,6730,C1776,675.031786,STEM REVERSE 11    AR-9501-11P," 9,319.00 "," 6,523.30 "
7/1/2022,278,6730,C1776,675.030022,REV SUTURE CUP AR-9502F-39RCPC," 6,694.00 "," 4,685.80 "
7/1/2022,278,6730,C1776,675.035292,HEAD HUMERAL 43/16  AR-9343-16," 7,500.00 "," 5,250.00 "
7/1/2022,278,6730,C1776,675.32056,CUP 36 REV SHLD AR-9502F-38CPC," 4,909.00 "," 3,436.30 "
7/1/2022,278,6730,C1776,675.83695,BIPOLAR HIP 98-0001-010-00," 6,009.00 "," 4,206.30 "
7/1/2022,278,6730,C1776,675.035009,BEARING TIB SZ5    AR-521-TBE8," 3,375.00 "," 2,362.50 "
7/1/2022,278,6730,C1776,675.32120,CUP REVERSE 39 AR-9502F-39CPC," 5,801.00 "," 4,060.70 "
7/1/2022,278,6730,C1776,675.031493,PERSONA TIB STM 5  42532007901," 13,988.00 "," 9,791.60 "
7/1/2022,278,6730,C1776,675.031492,KNEE PER W/ VIT E  42512100910," 13,763.00 "," 9,634.10 "
7/1/2022,278,6730,C1776,675.033162,STEM HUMERAL 5MM   AR-9501-05P," 9,318.00 "," 6,522.60 "
7/1/2022,278,6730,C1776,675.31050,HEAD FEM 40x3.5 00-8775-040-01," 6,038.00 "," 4,226.60 "
7/1/2022,278,6730,C1776,675.031501,KNEE PER W/ VIT E  42512100810," 13,763.00 "," 9,634.10 "
7/1/2022,278,6730,C1776,675.035258,PSN REV TIB FXD 42-5420-067-02," 13,866.00 "," 9,706.20 "
7/1/2022,278,6730,C1776,675.30202,LINER ACET 36mm 00-8851-014-36," 9,433.00 "," 6,603.10 "
7/1/2022,278,6730,C1776,675.8837,BODY FEM SZ AA 9990-16-40," 22,571.00 "," 15,799.70 "
7/1/2022,278,6730,C1776,675.029838,STEM UNIVERSAL SZ7 AR-9501-07P," 9,319.00 "," 6,523.30 "
7/1/2022,278,6730,C1776,675.032910,GLENOSPHERE 39/24 AR-9564-2439," 8,625.00 "," 6,037.50 "
7/1/2022,278,6730,C1776,675.033763,PLATE BASE MODULAR  AR-9560-28," 8,625.00 "," 6,037.50 "
7/1/2022,278,6730,C1776,675.28131,STEM FEM VERSYS 14 7833-14," 2,941.00 "," 2,058.70 "
7/1/2022,278,6730,C1776,675.29433,STEM FEM 14x185 9982-14-18," 9,460.00 "," 6,622.00 "
7/1/2022,278,6730,C1776,675.31652,STEN HUM 9 AR-9100-09S," 11,482.00 "," 8,037.40 "
7/1/2022,278,6730,C1776,675.034119,HEAD FEM 28MM   00-8022-028-03," 2,315.00 "," 1,620.50 "
7/1/2022,278,6730,C1776,675.033762,PLATE BASE MODULAR  AR-9560-28," 8,250.00 "," 5,775.00 "
7/1/2022,278,6730,C1776,675.030613,GLENOID SMALL       AR-9106-01," 5,906.00 "," 4,134.20 "
7/1/2022,278,6730,C1776,675.030648,GLENOID LARGE       AR-9106-03," 5,906.00 "," 4,134.20 "
7/1/2022,278,6730,C1776,675.035265,BIOMET HIP      98-B001-024-24," 24,000.00 "," 16,800.00 "
7/1/2022,278,6730,C1776,675.029372,GLENOID MED W/CLEAT AR-9106-02," 4,331.00 "," 3,031.70 "
7/1/2022,278,6730,C1776,675.31437,INSERT HUMERAL 42 AR-9503L-03," 2,791.00 "," 1,953.70 "
7/1/2022,278,6730,C1776,675.030570,STEM UNIVERSAL SZ9 AR-9501-09P," 9,319.00 "," 6,523.30 "
7/1/2022,278,6750,C1776,675.029830,STEM UNIVERSAL SZ8 AR-9501-08P," 9,319.00 "," 6,523.30 "
7/1/2022,278,6750,C1776,675.030824,STEM UNIVERSAL SZ6 AR-9501-06P," 9,319.00 "," 6,523.30 "
7/1/2022,278,6730,C1776,675.29769,SHELL ACETAB KK 00-8757-156-01," 7,176.00 "," 5,023.20 "
7/1/2022,278,6730,C1776,675.32402,HEAD HUMERAL 48/19 AR-9148-19P," 4,813.00 "," 3,369.10 "
7/1/2022,278,6730,C1776,675.034776,PSN STEM 13X135 42-5601-135-13," 8,129.00 "," 5,690.30 "
7/1/2022,278,6730,C1776,675.31485,LINER BIPOLAR CUP 5001-44-28, 871.00 , 609.70 
7/1/2022,278,6730,C1776,675.034387,HEAD FEM 28MM +7     802202804," 2,316.00 "," 1,621.20 "
7/1/2022,278,6730,C1776,675.032526,BASELPLATE 28MM   AR-9560-28-2," 8,250.00 "," 5,775.00 "
7/1/2022,278,6730,C1776,675.030739,PERSONA PAT 32MM   42540000032," 5,813.00 "," 4,069.10 "
7/1/2022,278,6730,C1776,675.29768,LINER ACET KK 00-8851-012-36," 7,563.00 "," 5,294.10 "
7/1/2022,278,6730,C1776,675.83393,SHELL BIPOLAR CUP 5001-46," 1,189.00 ", 832.30 
7/1/2022,272,6750,C1773,675.1995,STONE BASKET SEGURA 380-102, 646.00 , 452.20 
7/1/2022,278,7240,C1773,675.30444,MICROSNARE 4x200 SK401," 2,226.00 "," 1,558.20 "
7/1/2022,272,6750,C1773,675.035615,SNARE 175 2-4MM EN1002004," 2,784.00 "," 1,948.80 "
7/1/2022,278,7240,C1773,675.30445,MICROSNARE 2x200 SK201," 2,226.00 "," 1,558.20 "
7/1/2022,278,6750,C1773,675.1996,STONE BASKET SEGURA 380-107, 646.00 , 452.20 
7/1/2022,278,6730,C1772,675.035910,PUMP SYNCHROMED II 8637-40," 37,125.00 "," 25,987.50 "
7/1/2022,278,6730,C1772,675.035909,PUMP SYNCHROMED II  8637-20," 37,125.00 "," 25,987.50 "
7/1/2022,278,6730,C1771,675.22033,TAPE OBTURATOR 93-4300/4400," 2,874.00 "," 2,011.80 "
7/1/2022,272,7240,C1769,675.032674,WIRE GUIDE PIL 3X190 1010480HJ, 562.00 , 393.40 
7/1/2022,272,6750,C1769,675.24070,WIRE SS 0.35/260 G31453," 3,251.00 "," 2,275.70 "
7/1/2022,272,6750,C1769,675.034684,TRANS/JUG LIVER ACCESS G29769," 2,175.00 "," 1,522.50 "
7/1/2022,272,6750,C1769,675.032805,GLIDEWIRE ADVANTAG .035 GA3502, 877.50 , 614.25 
7/1/2022,272,7240,C1769,675.035623,GLIDESHEATH SS KIT 6F  80-1060, 248.00 , 173.60 
7/1/2022,272,6750,C1769,675.031957,WIRE PRO12  180CM    AGH143091, 630.00 , 441.00 
7/1/2022,272,7240,C1769,675.031575,WIRE GUIDE PILOT 1010485-H, 563.00 , 394.10 
7/1/2022,272,6750,C1769,675.032041,WIRE GRD SLM .014X300 AG141302, 608.00 , 425.60 
7/1/2022,272,6750,C1769,675.81092,GLIDEWIRE 46-152/154, 152.00 , 106.40 
7/1/2022,272,7240,C1769,675.032484,WIRE DOC RUNTHROUGH    25-9092, 382.00 , 267.40 
7/1/2022,272,6750,c1769,675.035969,GLIDEWIRE ADVANTAG .014 GA1430," 1,013.00 ", 709.10 
7/1/2022,272,6730,C1769,675.27529,STENT GRAFT ETLW1616C156E," 24,000.00 "," 16,800.00 "
7/1/2022,272,7240,C1769,675.032675,WIRE GUIDE PIL 3X190 1010483-H, 562.00 , 393.40 
7/1/2022,272,7240,C1769,675.031177,GUIDE WIRE VERR +185 10185P," 3,081.00 "," 2,156.70 "
7/1/2022,272,6750,C1769,675.035954,ACCESS SET TRANSJUGULAR G06929," 1,971.00 "," 1,379.70 "
7/1/2022,272,6750,C1769,675.032067,WIRE GLD STIFF .035/260 GS3509, 242.00 , 169.40 
7/1/2022,272,6750,C1769,675.031547,WIRE START J            49-167, 387.00 , 270.90 
7/1/2022,272,6750,C1769,675.032066,WIRE GLD STIFF .035/180 GS3508, 230.00 , 161.00 
7/1/2022,272,7240,C1769,675.07080,CATH RENEGADE HI-FLO 18-454," 2,259.00 "," 1,581.30 "
7/1/2022,272,7240,C1769,675.032925,WIRE ADV CORFLX GWC-12325LG-FT, 877.00 , 613.90 
7/1/2022,272,6750,C1769,675.032409,OMNIWIRE STR TIP 185CM   89185," 2,954.00 "," 2,067.80 "
7/1/2022,272,7240,C1769,675.031262,WIRE CHOICE EXT SUPP  12135-01, 360.00 , 252.00 
7/1/2022,272,7240,C1769,675.031552,WHOLEY WG FLOPPH 260 WWFS35260, 461.00 , 322.70 
7/1/2022,272,6750,C1769,675.030674,WIRE GUIDE SAVARY   SGW-360-SD, 864.00 , 604.80 
7/1/2022,272,7240,C1769,675.031259,WIRE CHOICE FLOPPY    12132-01, 360.00 , 252.00 
7/1/2022,272,7240,C1769,675.031260,WIRE CHOICE PT XT SUP 12161-01, 360.00 , 252.00 
7/1/2022,272,7240,C1769,675.034793,WIRE GUIDE 0.014X90     22339H, 450.00 , 315.00 
7/1/2022,272,6750,C1769,675.02822,GUIDE WIRE 1.1X150 292.623, 106.00 , 74.20 
7/1/2022,272,7240,C1769,675.033696,WIRE GUIDE 190CM       1001740, 450.00 , 315.00 
7/1/2022,272,6750,C1769,675.02824,WIRE K THREAD TIP 900.722, 112.00 , 78.40 
7/1/2022,272,7240,C1769,675.031779,WIRE GUIDE .025X180 J   G01602, 63.00 , 44.10 
7/1/2022,272,7240,C1769,675.034676,WIRE GUIDE NITINOL  G10797, 406.00 , 284.20 
7/1/2022,272,6750,C1769,675.18021,DREAMTOME 4.4," 1,284.00 ", 898.80 
7/1/2022,272,7240,C1769,675.033697,WIRE GUIDE 300CM       1001741, 450.00 , 315.00 
7/1/2022,272,7240,C1769,675.031778,WIRE GUIDE .025X260 J   G00471, 79.00 , 55.30 
7/1/2022,272,7240,C1769,675.031553,WHOLEY WG FLOPPY 175 WWFS35175, 440.00 , 308.00 
7/1/2022,272,7240,C1769,675.032672,WIRE CHOICE .014X300  12119-01, 396.00 , 277.20 
7/1/2022,272,7240,C1769,675.031261,WIRE CHOICE PT FLOPPY 12160-01, 360.00 , 252.00 
7/1/2022,272,7240,C1769,675.07000,GLIDEWIRE 46-232/6, 142.00 , 99.40 
7/1/2022,272,7240,C1769,675.032673,WIRE GUIDE PILOT 50  1010484-H, 562.00 , 393.40 
7/1/2022,272,7240,C1769,675.033282,WIRE GUIDE PL+ .018X180 46-731, 359.00 , 251.30 
7/1/2022,272,6750,C1769,675.02823,WIRE GUIDE THREAD 1.25 292.622, 112.00 , 78.40 
7/1/2022,278,6730,C1768,675.83442,GRAFT BOVINE WH 6x45 48C AG645," 9,450.00 "," 6,615.00 "
7/1/2022,278,6730,C1768,675.030149,GRAFT VAS HEP 4-7X45 H470045A," 4,909.00 "," 3,436.30 "
7/1/2022,278,7240,C1768,675.034687,GRAFT KNIT 20X10 M002020852010," 3,126.00 "," 2,188.20 "
7/1/2022,278,6730,C1768,675.032046,GRAFT VAS HEP 8X60    H080060A," 6,180.00 "," 4,326.00 "
7/1/2022,278,6730,C1768,675.8344,GRAFT BOVINE AG640," 7,909.00 "," 5,536.30 "
7/1/2022,278,6730,C1768,675.030145,GRAFT  HEP RR T7X60CM HT076080," 10,849.00 "," 7,594.30 "
7/1/2022,278,6730,C1768,675.035536,GRAFT STRETCH THN 10X80 ST1008," 4,215.00 "," 2,950.50 "
7/1/2022,278,6730,C1768,675.31034,GRAFT FLEXIGRAFT 9x70 FGL," 6,041.00 "," 4,228.70 "
7/1/2022,278,6730,C1768,675.83441,GRAFT BOVINE AG740," 3,215.00 "," 2,250.50 "
7/1/2022,278,6730,C1768,675.034904,GRAFT VASCULAR 90X40    HAX01A," 14,516.00 "," 10,161.20 "
7/1/2022,278,6730,C1768,675.31019,GRAPH  HEP RR T6X60CM HT066080," 10,849.00 "," 7,594.30 "
7/1/2022,278,6730,C1768,675.29454,SHEATH SENSH1228W, 675.00 , 472.50 
7/1/2022,278,6730,C1768,675.28601,VEIN SAPHENOUS 73x3-5 80x4-6," 40,065.00 "," 28,045.50 "
7/1/2022,278,7240,C1768,675.029854,GRAFT ENDUR LIMB ETLW1613C124E," 18,656.00 "," 13,059.20 "
7/1/2022,278,6730,C1768,675.035535,GRAFT STRETCH 10X80     S1008," 3,679.00 "," 2,575.30 "
7/1/2022,278,7240,C1768,675.034690,GRAFT BIF 14X7  M00202166147P0," 3,127.00 "," 2,188.90 "
7/1/2022,278,7240,C1768,675.034916,VEIN FEMORAL CYRO 35CM    FV30," 29,261.00 "," 20,482.70 "
7/1/2022,278,6730,C1768,675.030084,GRAFT ACUSEAL       ECH470045A," 5,760.00 "," 4,032.00 "
7/1/2022,278,6730,C1768,675.031818,GRAFT GRAFTLINK 9X65  FGL09065," 6,041.00 "," 4,228.70 "
7/1/2022,278,6730,C1768,675.030734,PATCH PERICARDIAL .8X8 VG0108N, 743.00 , 520.10 
7/1/2022,278,6730,C1767,675.035796,NEUROSTIMULATOR           4101," 44,160.00 "," 30,912.00 "
7/1/2022,278,6730,C1767,675.033481,GENERATOR PULSE IV        3028," 64,125.00 "," 44,887.50 "
7/1/2022,278,6730,C1767,675.035689,PROCLAIM CONTROLLER       3660," 66,188.00 "," 46,331.60 "
7/1/2022,278,7240,C1764,675.034350,MONITOR CARDIAC LUX-DX    M301," 18,375.00 "," 12,862.50 "
7/1/2022,278,7240,C1764,675.033977,ICM LINQ22              LNQ 22," 17,419.00 "," 12,193.30 "
7/1/2022,278,6730,C1764,675.031908,LOOP RECORDER REVEAL   LNQ11," 19,856.00 "," 13,899.20 "
7/1/2022,272,6750,C1761,675.035832,CATH SHOCKWAVE C2IVL2512," 19,975.00 "," 13,982.50 "
7/1/2022,272,6750,C1761,675.035835,CATH SHOCKWAVE C2IVL4012," 19,975.00 "," 13,982.50 "
7/1/2022,272,6750,C1761,675.035834,CATH SHOCKWAVE C2IVL3512," 19,975.00 "," 13,982.50 "
7/1/2022,272,6750,C1761,675.035833,CATH SHOCKWAVE C2IVL3012," 19,975.00 "," 13,982.50 "
7/1/2022,278,7240,C1760,675.035033,CLOSURE VASCULAR 5FR    MX5060, 769.00 , 538.30 
7/1/2022,278,7240,C1760,675.035032,CLOSURE VASCULAR 6/7FR  MX6760, 769.00 , 538.30 
7/1/2022,278,6730,C1760,675.32267,VASCADE 5FR 700-5800DX-05U, 602.00 , 421.40 
7/1/2022,278,6750,C1760,675.27309,ANGIO SEAL VIP 6FR .035 610130," 1,361.00 ", 952.70 
7/1/2022,278,7240,C1760,675.32266,VASCADE 6/7FR 700-5801-05U, 602.00 , 421.40 
7/1/2022,278,7240,C1760,675.0434,ANGIO-SEAL 6-8FR 610106-08," 1,178.00 ", 824.60 
7/1/2022,278,7240,C1760,675.27310,SEAL ANGIO 8FR C610135, 619.00 , 433.30 
7/1/2022,278,7240,C1760,675.17828,PROGLIDE CLOSURE 12673-01-01, 823.00 , 576.10 
7/1/2022,272,6750,C1758,675.0081,CATH MALECOT 32FR 086032, 45.00 , 31.50 
7/1/2022,272,6750,C1758,675.2084,CATH FOLEY 16FR 5CC 0165L16, 10.00 , 7.00 
7/1/2022,272,6750,C1758,675.1919,CATH URET AXXCESS 6FR 400-116, 42.00 , 29.40 
7/1/2022,272,6750,C1758,675.2085,CATH FOLEY 18FR 5CC 0165V18, 10.00 , 7.00 
7/1/2022,272,6750,C1757,675.034165,CATH INDIGO    LITNG12HTORQ100," 25,388.00 "," 17,771.60 "
7/1/2022,272,6750,C1757,675.00596,CATH INF 12401815," 1,305.00 ", 913.50 
7/1/2022,272,7240,C1757,675.035496,SEPARATOR                 SEP7," 7,140.00 "," 4,998.00 "
7/1/2022,272,6750,C1757,675.034151,CATH INDIGO    CAT8XTORQ115KIT," 13,834.00 "," 9,683.80 "
7/1/2022,272,7240,C1757,675.033097,CATH ANGIOJET XMI   105041-001," 7,522.00 "," 5,265.40 "
7/1/2022,272,6750,C1757,675.034154,SEPARATOR                 SEP3," 2,933.00 "," 2,053.10 "
7/1/2022,272,7240,C1757,675.17852,CATH AVX 105039-001," 3,145.00 "," 2,201.50 "
7/1/2022,272,6750,C1757,675.034152,CATH INDIGO           CATRXKIT," 8,075.00 "," 5,652.50 "
7/1/2022,272,7240,C1757,675.21970,CATH UNIFUSE 12401811," 1,256.00 ", 879.20 
7/1/2022,272,6750,C1757,675.034147,CATH INDIGO            CAT5KIT," 6,494.00 "," 4,545.80 "
7/1/2022,272,6750,C1757,675.1898,CATH FOGAR EMB WHT 5F 12805F, 188.00 , 131.60 
7/1/2022,272,6750,C1757,675.034216,CATH CORKSCREW FOGAR 4F 140806," 1,058.00 ", 740.60 
7/1/2022,272,6750,C1757,675.034156,SEPARATOR                 SEP6," 4,484.00 "," 3,138.80 "
7/1/2022,272,6750,C1757,675.034217,CATH CORKSCREW FOGAR 5F 140808," 1,058.00 ", 740.60 
7/1/2022,272,7240,C1757,675.034318,CATH INDIGO     LITNG7XTORQ130," 21,038.00 "," 14,726.60 "
7/1/2022,272,6750,C1757,675.034164,CATH INDIGO    LITNG12XTORQ100," 25,388.00 "," 17,771.60 "
7/1/2022,272,6750,C1757,675.1897,CATH FOGARTY EMBOL 4FR 120804F, 188.00 , 131.60 
7/1/2022,272,6750,C1757,675.034166,CATH INDIO     LITNG12HTORQ115," 25,388.00 "," 17,771.60 "
7/1/2022,272,7240,C1757,675.30714,CATH EKOS INFUSION 500-55112," 9,734.00 "," 6,813.80 "
7/1/2022,272,6750,C1757,675.1896,CATH FOGARTY EMBOL 2FR 120602F, 304.00 , 212.80 
7/1/2022,272,6750,C1757,675.034157,SEPARATOR                 SEP8," 7,884.00 "," 5,518.80 "
7/1/2022,272,6750,C1757,675.034146,CATH INDIGO            CAT3KIT," 6,494.00 "," 4,545.80 "
7/1/2022,272,6750,C1757,675.034153,CATH INDIGO               CATD," 11,348.00 "," 7,943.60 "
7/1/2022,272,6750,C1757,675.034160,SEPARATOR                SEPC4," 3,634.00 "," 2,543.80 "
7/1/2022,272,6750,C1757,675.034150,CATH INDIGO       CAT8STR85KIT," 13,834.00 "," 9,683.80 "
7/1/2022,272,6750,C1757,675.034161,SEPARATOR                SEP12," 8,054.00 "," 5,637.80 "
7/1/2022,272,6750,C1757,675.034148,CATH INDIGO         CAT6KIT," 9,584.00 "," 6,708.80 "
7/1/2022,272,6750,C1757,675.034149,CATH INDIGO      CAT8TORQ85KIT," 13,834.00 "," 9,683.80 "
7/1/2022,272,6750,C1757,675.1894,CATH FOGARTY BIL 4FR 120404F, 221.00 , 154.70 
7/1/2022,272,7240,C1757,675.033465,CATH EXPORT AP 6F     EXPORTAP," 1,875.00 "," 1,312.50 "
7/1/2022,272,6750,C1757,675.30721,CATH EKOS INFUS 12 500-56112," 9,734.00 "," 6,813.80 "
7/1/2022,272,6750,C1757,675.0100,CATH FOGARTY EMBOL 3FR 120803F, 238.00 , 166.60 
7/1/2022,272,6750,C1757,675.034163,CATH INDIGO     LITNG8XTORQ115," 21,638.00 "," 15,146.60 "
7/1/2022,272,6750,C1757,675.034155,SEPARATOR                 SEP5," 2,933.00 "," 2,053.10 "
7/1/2022,272,6750,C1757,675.034159,SEPARATOR                 SEPD," 7,034.00 "," 4,923.80 "
7/1/2022,272,7240,C1757,675.031841,CATH 4F JR4/JL4/PIG     538493, 338.00 , 236.60 
7/1/2022,272,6750,C1755,675.035912,CATH ASCENDA INTRA 140CM 8781," 4,038.00 "," 2,826.60 "
7/1/2022,272,6750,C1755,675.035911,CATH ASCENDA INTRA 114CM  8780," 4,038.00 "," 2,826.60 "
7/1/2022,272,6750,C1753,675.035206,DRILL BIT CANN 2.0MM  DSDS0020," 1,073.00 ", 751.10 
7/1/2022,272,6750,C1753,675.034228,DRILL BIT FLUT 3.8 03.019.016S," 1,589.00 "," 1,112.30 "
7/1/2022,272,6750,C1753,675.032813,LIGATOR MULTIBAND       G34181, 270.00 , 189.00 
7/1/2022,272,7240,C1753,675.20692,CATH IVUS .014 EAGLE EYE 85900," 2,356.00 "," 1,649.20 "
7/1/2022,272,6750,C1753,675.034227,DRILL BIT HOL 10MM  03.019.003," 1,589.00 "," 1,112.30 "
7/1/2022,272,6750,C1753,675.034229,DRILL BIT FLUT 3.8 03.019.016S," 1,589.00 "," 1,112.30 "
7/1/2022,272,6750,C1753,675.035435,DRILL BIT CANN 2.2MM DSDS0022," 1,287.00 ", 900.90 
7/1/2022,272,7240,C1753,675.030841,CATH PIONEER 6X120    PPLUS120," 11,231.00 "," 7,861.70 "
7/1/2022,278,7240,C1751,675.034662,TRAY FULL PWRGLD PRO F118108PT, 413.00 , 289.10 
7/1/2022,278,6750,C1751,675.031225,PICC 4FR SNGL MIDLN H965460120, 360.00 , 252.00 
7/1/2022,278,6750,C1751,675.033174,PICC 5F TRIPLE LUMN S1395108D2," 1,118.00 ", 782.60 
7/1/2022,278,6750,C1751,675.0059,CATH COMBO 1635, 378.00 , 264.60 
7/1/2022,272,7240,C1751,675.30724,CATH EKOS INFUS 50 500-56150," 13,579.00 "," 9,505.30 "
7/1/2022,278,7240,C1751,675.0105,CATH BIPOLAR D97120F5, 401.00 , 280.70 
7/1/2022,278,7240,C1751,675.034422,SWAN GANZ C COMBO V 777F8," 2,063.00 "," 1,444.10 "
7/1/2022,278,6750,C1751,675.29776,CATH KIT 4FR x 12CM G04248, 543.00 , 380.10 
7/1/2022,278,6750,C1751,675.033172,PICC 4F SINGLE LUMEN 1194108D2, 908.00 , 635.60 
7/1/2022,278,6730,C1751,675.034663,KIT BASIC PWR GLD PRO F118107T, 255.00 , 178.50 
7/1/2022,278,6750,C1751,675.033173,PICC 4F DUAL LUMEN  S1294108D2," 1,049.00 ", 734.30 
7/1/2022,278,7240,C1751,675.034664,PICC MIDLINE 3F SGL  S4153108D, 523.00 , 366.10 
7/1/2022,278,6750,C1750,675.027941,HEAD HUMERAL 42/17 AR-9142-17P," 6,563.00 "," 4,594.10 "
7/1/2022,278,7240,C1750,675.31216,CATH HEMO 15FRx23cm CS15232VFM, 995.00 , 696.50 
7/1/2022,278,6750,C1750,675.31205,CATH TRI DIALYSIS 15C 5865150G, 828.00 , 579.60 
7/1/2022,278,6730,C1750,675.031715,HEAD HUMERAL 44/17 AR-9144-17P," 6,563.00 "," 4,594.10 "
7/1/2022,278,6750,C1750,675.031407,STEM HUMERAL 10MM  AR-9501-10P," 9,319.00 "," 6,523.30 "
7/1/2022,278,6750,C1750,675.03190,CATH HEMO'DYLS CS15242-15322SP, 760.00 , 532.00 
7/1/2022,278,6730,C1750,675.27395,CATH HEMODIAL 15/9.5 CS15242, 760.00 , 532.00 
7/1/2022,272,7240,C1729,675.034715,TRAY LOCK PERIC 8.3/40  G04507, 687.00 , 480.90 
7/1/2022,272,7240,C1729,675.034713,THORACIC VENT TRAY 13F TV13-10," 1,827.00 "," 1,278.90 "
7/1/2022,278,7240,C1729,675.83301,NEPHROSTOMY VTC 8X25 24-526, 231.00 , 161.70 
7/1/2022,272,6750,C1729,675.1007,CATH TROCAR 32FR DTRC-32S, 46.00 , 32.20 
7/1/2022,272,6750,C1729,675.034220,CATH THORACIC 32FR  8888561076, 68.00 , 47.60 
7/1/2022,272,7240,c1729,675.035590,CATH DRAIN              G51595, 360.00 , 252.00 
7/1/2022,272,6750,C1729,675.8076,CATH FOGARTY BIL 5FR 401405F, 215.00 , 150.50 
7/1/2022,272,7240,C1729,675.17623,CATH BILIARY 228700, 450.00 , 315.00 
7/1/2022,272,7240,C1729,675.034314,NEEDLE CATH CENTESIS 19 G10100, 105.00 , 73.50 
7/1/2022,272,6750,C1729,675.034218,CATH THORACIC 10FR  8888561019, 68.00 , 47.60 
7/1/2022,272,6750,C1729,675.036170,FLEXIMA CATH 10FR  27-135, 328.00 , 229.60 
7/1/2022,272,6750,C1729,675.1003,CATH TROCAR 28FR DTRC-28S, 44.00 , 30.80 
7/1/2022,272,6750,C1729,675.034219,CATH THORACIC 24FR  8888561050, 68.00 , 47.60 
7/1/2022,272,6750,C1726,675.32154,EUSTACHIAN BNL 6MMX 16M EU6165," 6,533.00 "," 4,573.10 "
7/1/2022,272,6750,C1726,675.033201,BALLOON DILATION 14X40 BC1440A," 2,953.75 "," 2,067.63 "
7/1/2022,272,6750,C1726,675.1230,DILATOR BALLOON 6-8MM 5845, 832.00 , 582.40 
7/1/2022,272,6750,C1726,675.1231,DILATOR BALLOON 8-10MM 5846, 770.00 , 539.00 
7/1/2022,272,6750,C1726,675.0090,ESOPH BL DILATOR 18-21MM/5838, 578.00 , 404.60 
7/1/2022,272,6750,C1726,675.1233,DILATOR BALLOON 12-15MM 5848, 770.00 , 539.00 
7/1/2022,272,6750,C1726,675.034838,BLN DILATION      BD-210N-0830," 1,170.00 ", 819.00 
7/1/2022,272,6750,C1726,675.034137,BLN NEPROMAX 24FR  M0062101600," 1,186.00 ", 830.20 
7/1/2022,272,6750,C1726,675.034837,BLN DILATION      BD-210N-0640," 1,170.00 ", 819.00 
7/1/2022,272,6750,C1726,675.0096,ESOPH BL DILATOR 10-12MM/5835, 683.00 , 478.10 
7/1/2022,272,6750,C1726,675.034836,BLN DILATION      BD-210N-0440," 1,170.00 ", 819.00 
7/1/2022,272,6750,C1726,675.0095,ESOPH BL DILATOR 12-15MM/5836, 683.00 , 478.10 
7/1/2022,272,6750,C1726,675.1232,DILATOR BALLOON 10-12MM 5847, 770.00 , 539.00 
7/1/2022,272,6750,C1726,675.18085,SYSTEM BIN DIL BC1640A," 2,711.00 "," 1,897.70 "
7/1/2022,272,6750,C1726,675.1909,CATH NEPHROMAX BALLOON 210-117," 1,185.00 ", 829.50 
7/1/2022,272,6750,C1726,675.1234,DILATOR BALLOON 15-18MM 5849, 770.00 , 539.00 
7/1/2022,272,6750,C1726,675.0716,DILATOR BLN WG 18-20/240 5850, 770.00 , 539.00 
7/1/2022,272,7240,C1725,675.033055,BLN NC 3.5X15       NCEUP3515X, 562.00 , 393.40 
7/1/2022,272,7240,C1725,675.032994,BLN SC 2.5X15MM       EUP2515X, 562.00 , 393.40 
7/1/2022,272,6750,C1725,675.034948,ANGIOSCULPT 2.5X06 2200-2506-B," 3,506.00 "," 2,454.20 "
7/1/2022,272,6750,C1725,675.035105,BLN ULTRASCORE       US1415068," 3,188.00 "," 2,231.60 "
7/1/2022,272,7240,C1725,675.033069,BLN NC 4.5X12       NCEUP4512X, 562.00 , 393.40 
7/1/2022,272,7240,C1725,675.032993,BLN SC 2.5X12MM       EUP2512X, 562.00 , 393.40 
7/1/2022,272,6750,C1725,675.035072,BLN ULTRASCORE      US35130510," 3,188.00 "," 2,231.60 "
7/1/2022,272,7240,C1725,675.033004,BLN SC 3.0X12MM       EUP3012X, 562.00 , 393.40 
7/1/2022,272,7240,C1725,675.030389,BLN NANO 2.5X210AB14W025210150," 1,736.00 "," 1,215.20 "
7/1/2022,272,7240,C1725,675.033035,BLN NC 2.5X15       NCEUP2515X, 562.00 , 393.40 
7/1/2022,272,6750,C1725,675.034963,ANGIOSCULPT 3.5X20 2200-3520-B," 3,506.00 "," 2,454.20 "
7/1/2022,272,6750,C1725,675.28872,BLN XXL 14-2/5.8/120 14-513, 960.00 , 672.00 
7/1/2022,272,6750,C1725,675.033858,FORTREX 7X100   A35HPV07100080, 581.00 , 406.70 
7/1/2022,272,6750,C1725,675.035088,BLN ULTRASCORE      US14150220," 3,188.00 "," 2,231.60 "
7/1/2022,272,7240,C1725,675.032990,BLN SC 2.25X15MM     EUP22515X, 562.00 , 393.40 
7/1/2022,272,6750,C1725,675.035102,BLN ULTRASCORE      US14150515," 3,188.00 "," 2,231.60 "
7/1/2022,272,6750,C1725,675.035096,BLN ULTRASCORE       US1415044," 3,188.00 "," 2,231.60 "
7/1/2022,272,6750,C1725,675.030466,BLN CHOC 2.5   CB1415025120OTW," 3,485.00 "," 2,439.50 "
7/1/2022,272,6750,C1725,675.035066,BLN ULTRASCORE       US3513048," 3,188.00 "," 2,231.60 "
7/1/2022,272,7240,C1725,675.033925,EVERCROSS 7X20   AB35W07020135, 400.00 , 280.00 
7/1/2022,272,6750,C1725,675.034370,BLN NC 3.0X6        NCEUP3006X, 495.00 , 346.50 
7/1/2022,272,6750,C1725,675.033023,BLN SC 4.0X15MM       EUP4015X, 562.50 , 393.75 
7/1/2022,272,6750,C1725,675.030464,BLN CHOC 2.5   CB1415025040OTW," 3,485.00 "," 2,439.50 "
7/1/2022,272,6750,C1725,675.035095,BLN ULTRASCORE      US14150315," 3,188.00 "," 2,231.60 "
7/1/2022,272,6750,C1725,675.035090,BLN ULTRASCORE      US141502H8," 3,188.00 "," 2,231.60 "
7/1/2022,272,7240,C1725,675.033059,BLN NC 3.75X12     NCEUP37512X, 562.00 , 393.40 
7/1/2022,272,6750,C1725,675.15179,BLN MUS 10/20/75 39171-10027, 683.00 , 478.10 
7/1/2022,272,6750,C1725,675.034953,ANGIOSCULPT 3.0X10 2200-3010-B," 3,506.00 "," 2,454.20 "
7/1/2022,272,7240,C1725,675.033036,BLN NC 2.5X20       NCEUP2520X, 562.00 , 393.40 
7/1/2022,272,7240,C1725,675.033909,EVERCROSS 3X100  AB35W03100135, 400.00 , 280.00 
7/1/2022,272,6750,C1725,675.035079,BLN ULTRASCORE      US35130620," 3,188.00 "," 2,231.60 "
7/1/2022,272,6750,C1725,675.033081,BLN NC 2.0X10         SPR2010W, 562.50 , 393.75 
7/1/2022,272,6750,C1725,675.033024,BLN SC 4.0X20MM       EUP4020X, 562.00 , 393.40 
7/1/2022,272,6750,C1725,675.035100,BLN ULTRASCORE       US1415054," 3,188.00 "," 2,231.60 "
7/1/2022,272,7240,C1725,675.15177,BLN MUS 9/20/75 39171-09027, 683.00 , 478.10 
7/1/2022,272,7240,C1725,675.033119,BLN SAPH   1.25X10 212-103-5UU, 450.00 , 315.00 
7/1/2022,272,7240,C1725,675.033861,FORTREX 8X100   A35HPV08100080, 581.00 , 406.70 
7/1/2022,272,7240,C1725,675.033028,BLN NC 2.0X20       NCEUP2020X, 562.00 , 393.40 
7/1/2022,272,7240,C1725,675.033933,EVERCROSS 9X30   AB35W09030080, 400.00 , 280.00 
7/1/2022,272,7240,C1725,675.033854,PACIFIC PLUS 7X80 PCP070080130, 806.00 , 564.20 
7/1/2022,272,7240,C1725,675.033856,FORTREX 7X40    A35HPV07040080, 581.00 , 406.70 
7/1/2022,272,7240,C1725,675.033911,EVERCROSS 4X60   AB35W04060135, 400.00 , 280.00 
7/1/2022,272,7240,C1725,675.033045,BLN NC 3.0X15       NCEUP3015X, 562.00 , 393.40 
7/1/2022,272,7240,C1725,675.033037,BLN NC 2.5X27       NCEUP2527X, 562.00 , 393.40 
7/1/2022,272,7240,C1725,675.033902,EVERCROSS 6X40   AB35W06040080, 400.00 , 280.00 
7/1/2022,272,7240,C1725,675.033006,BLN SC 3.0X20MM       EUP3020X, 562.00 , 393.40 
7/1/2022,272,6750,C1725,675.035086,BLN ULTRASCORE       US1415028," 3,188.00 "," 2,231.60 "
7/1/2022,272,7240,C1725,675.033058,BLN NC 3.75X8      NCEUP37508X, 562.00 , 393.40 
7/1/2022,272,6750,C1725,675.11281,CATH MARKER 13709701," 1,158.00 ", 810.60 
7/1/2022,272,7240,C1725,675.033071,BLN NC 4.5X20       NCEUP4520X, 562.00 , 393.40 
7/1/2022,272,6750,C1725,675.31278,BUTTON PASSPORT  AR-6592-10-30, 152.00 , 106.40 
7/1/2022,272,6750,C1725,675.033922,EVERCROSS 6X100  AB35W06100135, 401.00 , 280.70 
7/1/2022,272,6750,C1725,675.035091,BLN ULTRASCORE     US141502H15," 3,188.00 "," 2,231.60 "
7/1/2022,272,6750,C1725,675.035103,BLN ULTRASCORE      US14150520," 3,188.00 "," 2,231.60 "
7/1/2022,272,6750,C1725,675.034949,ANGIOSCULPT 3.0X06 2200-3006-B," 3,506.00 "," 2,454.20 "
7/1/2022,272,7240,C1725,675.033033,BLN NC 2.5X8        NCEUP2508X, 562.00 , 393.40 
7/1/2022,272,6750,C1725,675.034960,ANGIOSCULPT 2.5X20 2200-2520-B," 3,506.00 "," 2,454.20 "
7/1/2022,272,6750,C1725,675.034199,EUPHORA BALLOON RX US EUP2006X, 495.00 , 346.50 
7/1/2022,272,7240,C1725,675.030385,BLN NANO 1.5X40 AB14W015040150," 1,401.00 ", 980.70 
7/1/2022,272,6750,C1725,675.035089,BLN ULTRASCORE      US141502H4," 3,188.00 "," 2,231.60 "
7/1/2022,272,7240,C1725,675.033891,EVERCROSS 3X80   AB35W03080080, 400.00 , 280.00 
7/1/2022,272,6750,C1725,675.030411,BLN NANO 6X100  AB14W060100150," 1,401.00 ", 980.70 
7/1/2022,272,6750,C1725,675.035099,BLN ULTRASCORE      US14150420," 3,188.00 "," 2,231.60 "
7/1/2022,272,6750,C1725,675.034951,ANGIOSCULPT 2.0X10 2200-2010-B," 3,506.00 "," 2,454.20 "
7/1/2022,272,6750,C1725,675.031666,BLN CUT 15X2.25     3940115225," 3,804.00 "," 2,662.80 "
7/1/2022,272,6750,C1725,675.035092,BLN ULTRASCORE     US141502H20," 3,188.00 "," 2,231.60 "
7/1/2022,272,6750,C1725,675.035130,CATH SHOCKWAVE 5X60  M5IVL5060," 11,688.00 "," 8,181.60 "
7/1/2022,272,7240,C1725,675.033939,FORTREX 5X40    A35HPV05040080, 581.00 , 406.70 
7/1/2022,272,6750,C1725,675.034955,ANGIOSCULPT 2.0X15 2200-2015-B," 3,506.00 "," 2,454.20 "
7/1/2022,272,7240,C1725,675.033066,BLN NC 4.0X20       NCEUP4020X, 562.00 , 393.40 
7/1/2022,272,7240,C1725,675.033910,EVERCROSS 4X20   AB35W04020135, 400.00 , 280.00 
7/1/2022,272,7240,C1725,675.033001,BLN SC 2.75X20MM     EUP27520X, 562.00 , 393.40 
7/1/2022,272,6750,C1725,675.035101,BLN ULTRASCORE       US1415058," 3,188.00 "," 2,231.60 "
7/1/2022,272,7240,C1725,675.032985,BLN SC 2.0X22MM       EUP2020X, 562.00 , 393.40 
7/1/2022,272,7240,C1725,675.033043,BLN NC 3.0X8        NCEUP3008X, 562.00 , 393.40 
7/1/2022,278,7240,C1725,675.033867,FORTREX 12X80   A35HPV12080080, 581.00 , 406.70 
7/1/2022,278,7240,C1725,675.033865,FORTREX 10X80   A35HPV10080080, 581.00 , 406.70 
7/1/2022,272,7240,C1725,675.033054,BLN NC 3.5X12       NCEUP3512X, 562.00 , 393.40 
7/1/2022,272,6750,C1725,675.035107,BLN ULTRASCORE      US14150620," 3,188.00 "," 2,231.60 "
7/1/2022,272,7240,C1725,675.035543,ULTRAVERSE 2X220      U4150222," 1,594.00 "," 1,115.80 "
7/1/2022,272,7240,C1725,675.033921,EVERCROSS 6X60   AB35W06060135, 400.00 , 280.00 
7/1/2022,272,7240,C1725,675.033899,EVERCROSS 5X100  AB35W05100080, 400.00 , 280.00 
7/1/2022,272,7240,C1725,675.032999,BLN SC 2.75X12MM     EUP27512X, 562.00 , 393.40 
7/1/2022,272,6750,C1725,675.17665,CATH BALLOON STENT REL46," 1,891.00 "," 1,323.70 "
7/1/2022,272,7240,C1725,675.31055,BLN EMERGE 1.2x20 39189-2012, 743.00 , 520.10 
7/1/2022,272,7240,C1725,675.031671,BLN CUT 15X3.5      3940115350," 3,804.00 "," 2,662.80 "
7/1/2022,272,7240,C1725,675.030416,BLN ADMIRAL 4X300 ADM040300130," 1,259.00 ", 881.30 
7/1/2022,272,7240,C1725,675.034989,BLN ULTRAVERSE O14    CMFQ0076," 1,594.00 "," 1,115.80 "
7/1/2022,272,7240,C1725,675.033034,BLN NC 2.5X12       NCEUP2512X, 562.00 , 393.40 
7/1/2022,272,7240,C1725,675.033930,EVERCROSS 8X20   AB35W08020135, 400.00 , 280.00 
7/1/2022,272,7240,C1725,675.029738,BLN NANO 1.5X20 AB14W015020150," 1,505.00 "," 1,053.50 "
7/1/2022,272,7240,C1725,675.033931,EVERCROSS 8X20   AB35W08020135, 400.00 , 280.00 
7/1/2022,272,7240,C1725,675.030387,BLN NANO 2X210  AB14W020210150," 1,401.00 ", 980.70 
7/1/2022,272,7240,C1725,675.033859,FORTREX 8X40    A35HPV08040080, 581.00 , 406.70 
7/1/2022,272,7240,C1725,675.033067,BLN NC 4.0X27       NCEUP4027X, 562.00 , 393.40 
7/1/2022,272,7240,C1725,675.032998,BLN SC 2.75X10MM     EUP27510X, 562.00 , 393.40 
7/1/2022,272,7240,C1725,675.031673,BLN CUT 15X4        3940115400," 3,459.00 "," 2,421.30 "
7/1/2022,272,7240,C1725,675.031670,BLN CUT 15X3.25     3940115325," 3,804.00 "," 2,662.80 "
7/1/2022,272,7240,C1725,675.033005,BLN SC 3.0X15MM       EUP3015X, 562.00 , 393.40 
7/1/2022,272,7240,C1725,675.033938,FORTREX 4X80    A35HPV04080080, 581.00 , 406.70 
7/1/2022,272,7240,C1725,675.033015,BLN SC 3.5X20MM       EUP3520X, 562.00 , 393.40 
7/1/2022,272,7240,C1725,675.032924,BLN CATH SAP 1X15  210-153-5UU, 900.00 , 630.00 
7/1/2022,272,7240,C1725,675.035093,BLN ULTRASCORE       US1415034," 3,188.00 "," 2,231.60 "
7/1/2022,272,7240,C1725,675.033860,FORTREX 8X80    A35HPV08080080, 581.00 , 406.70 
7/1/2022,272,6750,C1725,675.035084,BLN ULTRASCORE      US35130720," 3,188.00 "," 2,231.60 "
7/1/2022,272,6750,C1725,675.035083,BLN ULTRASCORE      US35130715," 3,188.00 "," 2,231.60 "
7/1/2022,272,7240,C1725,675.033064,BLN NC 4.0X12       NCEUP4012X, 562.00 , 393.40 
7/1/2022,272,7240,C1725,675.030397,BLN NANO 5X40   AB14W050040150," 1,401.00 ", 980.70 
7/1/2022,272,6750,C1725,675.034476,FORTREX 6X20  A35HPV06020080, 581.00 , 406.70 
7/1/2022,272,7240,C1725,675.033057,BLN NC 3.5X27       NCEUP3527X, 562.00 , 393.40 
7/1/2022,272,7240,C1725,675.033038,BLN NC 2.75X8      NCEUP27508X, 562.00 , 393.40 
7/1/2022,272,6750,C1725,675.035104,BLN ULTRASCORE       US1415064," 3,188.00 "," 2,231.60 "
7/1/2022,272,7240,C1725,675.033050,BLN NC 3.25X15     NCEUP32515X, 562.00 , 393.40 
7/1/2022,272,6750,C1725,675.034475,FORTREX 5X20  A35HPV05020080, 581.00 , 406.70 
7/1/2022,272,6750,C1725,675.035074,BLN ULTRASCORE      US35130520," 3,188.00 "," 2,231.60 "
7/1/2022,278,6750,C1725,675.033866,FORTREX 12X40   A35HPV12040080, 581.00 , 406.70 
7/1/2022,272,7240,C1725,675.033025,BLN NC 2.0X8        NCEUP2008X, 562.00 , 393.40 
7/1/2022,272,6750,C1725,675.033002,BLN SC 2.75X25MM     EUP27525X, 562.50 , 393.75 
7/1/2022,272,6750,C1725,675.030410,BLN NANO 6X80   AB14W060080150," 1,401.00 ", 980.70 
7/1/2022,272,7240,C1725,675.032995,BLN SC 2.5X20MM       EUP2520X, 562.00 , 393.40 
7/1/2022,272,7240,C1725,675.030388,BLN NANO 2.5X150AB14W025150150," 1,736.00 "," 1,215.20 "
7/1/2022,272,7240,C1725,675.033031,BLN NC 2.25X15     NCEUP22515X, 562.00 , 393.40 
7/1/2022,272,7240,C1725,675.033839,PACIFIC PLS 4X120 PCP040120130, 806.00 , 564.20 
7/1/2022,272,7240,C1725,675.033022,BLN SC 4.0X12MM       EUP4012X, 562.00 , 393.40 
7/1/2022,272,6750,C1725,675.29917,BLN CQ .035 CQ-7584, 928.00 , 649.60 
7/1/2022,272,7240,C1725,675.033906,EVERCROSS 7X40   AB35W07040080, 400.00 , 280.00 
7/1/2022,272,6750,C1725,675.035081,BLN ULTRASCORE       US3513078," 3,188.00 "," 2,231.60 "
7/1/2022,272,7240,C1725,675.033070,BLN NC 4.5X15       NCEUP4515X, 562.00 , 393.40 
7/1/2022,272,7240,C1725,675.031672,BLN CUT 15X3.75     3940115375," 3,804.00 "," 2,662.80 "
7/1/2022,272,6750,C1725,675.033900,EVERCROSS 5X150  AB35W05150080, 400.00 , 280.00 
7/1/2022,272,6750,C1725,675.033927,EVERCROSS 7X100  AB35W07100135, 400.00 , 280.00 
7/1/2022,272,7240,C1725,675.033039,BLN NC 2.75X12     NCEUP27512X, 562.00 , 393.40 
7/1/2022,272,7240,C1725,675.033914,EVERCROSS 4X200  AB35W04200135, 400.00 , 280.00 
7/1/2022,272,7240,C1725,675.030406,BLN NANO 5X200  AB14W050200150," 1,736.00 "," 1,215.20 "
7/1/2022,272,7240,C1725,675.033904,EVERCROSS 6X150  AB35W06150080, 400.00 , 280.00 
7/1/2022,272,6750,C1725,675.27585,BLN STR 5/30/135 39032-50301," 1,275.00 ", 892.50 
7/1/2022,272,7240,C1725,675.033912,EVERCROSS 4X100  AB35W04100135, 400.00 , 280.00 
7/1/2022,272,7240,C1725,675.032988,BLN SC 2.25X10MM     EUP22510X, 562.00 , 393.40 
7/1/2022,272,7240,C1725,675.029742,BLN NANO 2.5X40 AB14W025040150," 1,505.00 "," 1,053.50 "
7/1/2022,272,6750,C1725,675.034952,ANGIOSCULPT 2.5X10 2200-2510-B," 3,506.00 "," 2,454.20 "
7/1/2022,272,7240,C1725,675.033047,BLN NC 3.0X27       NCEUP3027X, 562.00 , 393.40 
7/1/2022,272,7240,C1725,675.033061,BLN NC 3.75X20     NCEUP37520X, 562.00 , 393.40 
7/1/2022,272,7240,C1725,675.034958,ANGIOSCULPT 3.5X15 2200-3515-B," 3,506.00 "," 2,454.20 "
7/1/2022,272,7240,C1725,675.033060,BLN NC 3.75X15     NCEUP37515X, 562.00 , 393.40 
7/1/2022,272,6750,C1725,675.033042,BLN NC 2.75X27     NCEUP27527X, 562.50 , 393.75 
7/1/2022,272,6750,C1725,675.035109,BLN ULTRASCORE       US1415078," 3,188.00 "," 2,231.60 "
7/1/2022,272,7240,C1725,675.033027,BLN NC 2.0X15       NCEUP2015X, 562.00 , 393.40 
7/1/2022,272,7240,C1725,675.032980,BLN SC 1.5X15MM       EUP1515X, 562.00 , 393.40 
7/1/2022,272,7240,C1725,675.032992,BLN SC 2.5X10MM       EUP2510X, 562.00 , 393.40 
7/1/2022,272,7240,C1725,675.033008,BLN SC 3.0X30MM       EUP3030X, 562.00 , 393.40 
7/1/2022,272,6750,C1725,675.035073,BLN ULTRASCORE      US35130515," 3,188.00 "," 2,231.60 "
7/1/2022,272,7240,C1725,675.033046,BLN NC 3.0X20       NCEUP3020X, 562.00 , 393.40 
7/1/2022,272,6750,C1725,675.034682,BLN ATLAS 20/16/80  ATG80204," 3,506.00 "," 2,454.20 "
7/1/2022,272,6750,C1725,675.16502,BALLOON ATLAS 16/4/75 AT-75164," 1,264.00 ", 884.80 
7/1/2022,272,7240,C1725,675.031669,BLN CUT 15X3        3940115300," 3,459.00 "," 2,421.30 "
7/1/2022,272,7240,C1725,675.029745,BLN NANO 3X40 AB14W030040150," 1,505.00 "," 1,053.50 "
7/1/2022,272,7240,C1725,675.030407,BLN NANO 6X20   AB14W060020150," 1,401.00 ", 980.70 
7/1/2022,272,7240,C1725,675.30425,BLN EMERGE 20X1.5 39190-2015, 578.00 , 404.60 
7/1/2022,272,7240,C1725,675.032983,BLN SC 2.0X12MM       EUP2012X, 562.00 , 393.40 
7/1/2022,272,7240,C1725,675.029750,BLN NANO 4X120 AB14W040120150," 1,505.00 "," 1,053.50 "
7/1/2022,272,7240,C1725,675.033934,EVERCROSS 9X60   AB35W09060080, 400.00 , 280.00 
7/1/2022,272,7240,C1725,675.033030,BLN NC 2.25X12     NCEUP22512X, 562.00 , 393.40 
7/1/2022,272,7240,C1725,675.033892,EVERCROSS 3X100  AB35W03100080, 400.00 , 280.00 
7/1/2022,272,7240,C1725,675.031668,BLN CUT 15X2.75     3940115275," 3,805.00 "," 2,663.50 "
7/1/2022,272,7240,C1725,675.031658,BLN CUT 10X2.5      3940110250," 3,459.00 "," 2,421.30 "
7/1/2022,272,7240,C1725,675.033082,BLN SP 2.0X12         SPR2012W, 562.00 , 393.40 
7/1/2022,272,7240,C1725,675.033013,BLN SC 3.5X15MM       EUP3515X, 562.00 , 393.40 
7/1/2022,272,7240,C1725,675.033897,EVERCROSS 5X20   AB35W05020080, 400.00 , 280.00 
7/1/2022,272,7240,C1725,675.031661,BLN CUT 10X3.25     3940110325," 3,804.00 "," 2,662.80 "
7/1/2022,272,7240,C1725,675.032996,BLN SC 2.5X25MM       EUP2525X, 562.00 , 393.40 
7/1/2022,272,7240,C1725,675.031665,BLN CUT 15X2        3940115200," 3,804.00 "," 2,662.80 "
7/1/2022,272,7240,C1725,675.029744,BLN NANO 2.5X120 AB14W02512015," 1,505.00 "," 1,053.50 "
7/1/2022,272,7240,C1725,675.033937,FORTREX 4X40    A35HPV04040080, 581.00 , 406.70 
7/1/2022,272,7240,C1725,675.031667,BLN CUT 15X2.5      3940115250," 3,459.00 "," 2,421.30 "
7/1/2022,272,7240,C1725,675.034477,FORTREX 7X20  A35HPV07020080, 581.00 , 406.70 
7/1/2022,272,7240,C1725,675.033917,EVERCROSS 5X100  AB35W05100135, 400.00 , 280.00 
7/1/2022,272,7240,C1725,675.033913,EVERCROSS 4X150  AB35W04150135, 400.00 , 280.00 
7/1/2022,272,7240,C1725,675.031664,BLN CUT 10X4        3940110400," 3,804.00 "," 2,662.80 "
7/1/2022,272,6750,C1725,675.035065,BLN ULTRASCORE       US3513044," 3,188.00 "," 2,231.60 "
7/1/2022,272,6750,C1725,675.035098,BLN ULTRASCORE      US14150415," 3,188.00 "," 2,231.60 "
7/1/2022,272,7240,C1725,675.033941,FORTREX 6X40   A35HPV06040080, 581.00 , 406.70 
7/1/2022,272,7240,C1725,675.033026,BLN NC 2.0X12       NCEUP2012X, 562.00 , 393.40 
7/1/2022,272,7240,C1725,675.031660,BLN CUT 10X3        3940110300," 3,804.00 "," 2,662.80 "
7/1/2022,272,7240,C1725,675.033003,BLN SC 3.0X10MM       EUP3010X, 562.00 , 393.40 
7/1/2022,272,7240,C1725,675.032991,BLN SC 2.25X20MM     EUP22520X, 562.00 , 393.40 
7/1/2022,272,7240,C1725,675.033073,BLN NC 5.0X12       NCEUP5012X, 562.00 , 393.40 
7/1/2022,272,7240,C1725,675.035307,ULTRAVERSE 2.5X150   U41502H15," 1,594.00 "," 1,115.80 "
7/1/2022,272,7240,C1725,675.033048,BLN NC 3.25X8      NCEUP32508X, 562.00 , 393.40 
7/1/2022,272,7240,C1725,675.033063,BLN NC 4.0X8        NCEUP4008X, 562.00 , 393.40 
7/1/2022,272,7240,C1725,675.033029,BLN NC 2.25X8      NCEUP22508X, 562.00 , 393.40 
7/1/2022,272,6750,C1725,675.16500,BALLOON ATLAS 12/4/75 AT-75124," 1,167.00 ", 816.90 
7/1/2022,272,6750,C1725,675.15178,BLN MUS 9/40/75 39171-09047, 683.00 , 478.10 
7/1/2022,272,7240,C1725,675.030391,BLN NANO 3X210  AB14W030210150," 1,736.00 "," 1,215.20 "
7/1/2022,272,7240,C1725,675.033919,EVERCROSS 5X200  AB35W05200135, 400.00 , 280.00 
7/1/2022,272,7240,C1725,675.032986,BLN SC 2.0X25MM       EUP2025X, 562.00 , 393.40 
7/1/2022,272,7240,C1725,675.032997,BLN SC 2.5X30MM       EUP2530X, 562.00 , 393.40 
7/1/2022,272,6750,C1725,675.029739,BLN NANO 2X40  AB14W02004015," 1,505.00 "," 1,053.50 "
7/1/2022,272,7240,C1725,675.033010,BLN SC 3.25X15MM     EUP32515X, 562.00 , 393.40 
7/1/2022,272,7240,C1725,675.030396,BLN NANO 5X20   AB14W050020150," 1,401.00 ", 980.70 
7/1/2022,272,7240,C1725,675.033000,BLN SC 2.75X15       EUP27515X, 562.00 , 393.40 
7/1/2022,272,7240,C1725,675.30427,BLN Emerge 12X1.5  39190-1215, 578.00 , 404.60 
7/1/2022,272,7240,C1725,675.033908,EVERCROSS 7X150  AB35W07150080, 400.00 , 280.00 
7/1/2022,272,7240,C1725,675.033894,EVERCROSS 4X40   AB35W04040080, 400.00 , 280.00 
7/1/2022,272,6750,C1725,675.034947,ANGIOSCULPT 2.0X06 2200-2006-B," 3,506.00 "," 2,454.20 "
7/1/2022,272,6750,C1725,675.035082,BLN ULTRASCORE      US35130710," 3,188.00 "," 2,231.60 "
7/1/2022,272,6750,C1725,675.035106,BLN ULTRASCORE      US14150615," 3,188.00 "," 2,231.60 "
7/1/2022,272,6750,C1725,675.035070,BLN ULTRASCORE       US3513054," 3,188.00 "," 2,231.60 "
7/1/2022,272,6750,C1725,675.034956,ANGIOSCULPT 2.5X15 2200-2515-B," 3,506.00 "," 2,454.20 "
7/1/2022,272,7240,C1725,675.033074,BLN NC 5.0X15       NCEUP5015X, 562.00 , 393.40 
7/1/2022,272,7240,C1725,675.032984,BLN SC 2.0X15MM       EUP2015X, 562.00 , 393.40 
7/1/2022,272,6750,C1725,675.035111,BLN ULTRASCORE      US14150720," 3,188.00 "," 2,231.60 "
7/1/2022,272,7240,C1725,675.031662,BLN CUT 10X3.5      3940110350," 3,459.00 "," 2,421.30 "
7/1/2022,272,7240,C1725,675.035069,BLN ULTRASCORE     US351304820," 3,188.00 "," 2,231.60 "
7/1/2022,272,7240,C1725,675.032981,BLN SC 1.5X20MM       EUP1520X, 562.00 , 393.40 
7/1/2022,272,6750,C1725,675.035075,BLN ULTRASCORE      US3513064," 3,188.00 "," 2,231.60 "
7/1/2022,272,6750,C1725,675.035080,BLN ULTRASCORE       US3513074," 3,188.00 "," 2,231.60 "
7/1/2022,272,7240,C1725,675.030408,BLN NANO 6X40   AB14W060040150," 1,401.00 ", 980.70 
7/1/2022,272,6750,C1725,675.035087,BLN ULTRASCORE      US14150215," 3,188.00 "," 2,231.60 "
7/1/2022,272,6750,C1725,675.31057,BLN EMERGE 1.2x12 39189-1212, 578.00 , 404.60 
7/1/2022,272,7240,C1725,675.030395,BLN NANO 4X210  AB14W040210150," 1,736.00 "," 1,215.20 "
7/1/2022,272,7240,C1725,675.033044,BLN NC 3.0X12       NCEUP3012X, 562.00 , 393.40 
7/1/2022,272,6750,C1725,675.034959,ANGIOSCULPT 2.0X20 2200-2020-B," 3,506.00 "," 2,454.20 "
7/1/2022,272,7240,C1725,675.034957,ANGIOSCULPT 3.0X15 2200-3015-B," 3,506.00 "," 2,454.20 "
7/1/2022,272,7240,C1725,675.033053,BLN NC 3.5X8        NCEUP3508X, 562.00 , 393.40 
7/1/2022,272,7240,C1725,675.032978,BLN SC 1.5X10MM       EUP1510X, 562.00 , 393.40 
7/1/2022,272,6750,C1725,675.034473,EVERCROSS 8X20   AB35W08020080, 400.00 , 280.00 
7/1/2022,272,6750,C1725,675.035068,BLN ULTRASCORE     US351304815," 3,188.00 "," 2,231.60 "
7/1/2022,272,7240,C1725,675.033901,EVERCROSS 6X20   AB35W06020080, 400.00 , 280.00 
7/1/2022,272,7240,C1725,675.033326,SAPPHIRE II 1.5X20 215-203-5UU, 450.00 , 315.00 
7/1/2022,272,7240,C1725,675.032987,BLN SC 2.0X30MM       EUP2030X, 562.00 , 393.40 
7/1/2022,272,6750,C1725,675.1518,BLN MUS 10/40/75 39171-10047, 683.00 , 478.10 
7/1/2022,272,7240,C1725,675.033056,BLN NC 3.5X20       NCEUP3520X, 562.00 , 393.40 
7/1/2022,272,6750,C1725,675.035094,BLN ULTRASCORE       US1415038," 3,188.00 "," 2,231.60 "
7/1/2022,272,6750,C1725,675.035076,BLN ULTRASCORE       US3513068," 3,188.00 "," 2,231.60 "
7/1/2022,272,7240,C1725,675.033068,BLN NC 4.5X8        NCEUP4508X, 562.00 , 393.40 
7/1/2022,272,6750,C1725,675.033075,BLN SP 1.25X12      SPL12512WL, 562.50 , 393.75 
7/1/2022,272,7240,C1725,675.033920,EVERCROSS 6X20   AB35W06020135, 400.00 , 280.00 
7/1/2022,272,7240,C1725,675.035049,ULTRASCORE 3X200    US14150320," 3,188.00 "," 2,231.60 "
7/1/2022,272,7240,C1725,675.034474,FORTREX 4X20  A35HPV04020080, 581.00 , 406.70 
7/1/2022,272,7240,C1725,675.033903,EVERCROSS 6X100  AB35W06100080, 400.00 , 280.00 
7/1/2022,272,7240,C1725,675.030390,BLN NANO 3X150  AB14W030150150," 1,736.00 "," 1,215.20 "
7/1/2022,272,6750,C1725,675.033936,EVERCROSS 10X60  AB35W10060080, 400.00 , 280.00 
7/1/2022,272,7240,C1725,675.032979,BLN SC 1.5X12MM       EUP1512X, 562.00 , 393.40 
7/1/2022,272,7240,C1725,675.033041,BLN NC 2.75X20     NCEUP27520X, 562.00 , 393.40 
7/1/2022,272,7240,C1725,675.029746,BLN NANO 3X80 AB14W030080150," 1,505.00 "," 1,053.50 "
7/1/2022,272,7240,C1725,675.032982,BLN SC 2.0X10MM       EUP2010X, 562.00 , 393.40 
7/1/2022,272,7240,C1725,675.033012,BLN SC 3.5X12MM       EUP3512X, 562.00 , 393.40 
7/1/2022,272,7240,C1725,675.033942,FORTREX 6X80    A35HPV06080080, 581.00 , 406.70 
7/1/2022,272,7240,C1725,675.033276,BLN SAPH 1.25X15   212-153-5UU, 450.00 , 315.00 
7/1/2022,272,7240,C1725,675.07042,CATH COBRA2 NSH 32-145, 188.00 , 131.60 
7/1/2022,272,7240,C1725,675.029743,BLN NANO 2.5X80 AB14W205080150," 1,505.00 "," 1,053.50 "
7/1/2022,272,7240,C1725,675.029740,BLN NANO 2X120 AB14W020120150," 1,505.00 "," 1,053.50 "
7/1/2022,272,6750,C1725,675.035067,BLN ULTRASCORE     US351304810," 3,188.00 "," 2,231.60 "
7/1/2022,272,7240,C1725,675.033072,BLN NC 5.0X8        NCEUP5008X, 562.00 , 393.40 
7/1/2022,272,7240,C1725,675.033864,FORTREX 10X40   A35HPV10040080, 581.00 , 406.70 
7/1/2022,272,7240,C1725,675.033895,EVERCROSS 4X100  AB35W04100080, 400.00 , 280.00 
7/1/2022,272,6750,C1725,675.035071,BLN ULTRASCORE       US3513058," 3,188.00 "," 2,231.60 "
7/1/2022,272,6750,C1725,675.034950,ANGIOSCULPT 3.5X06 2200-3506-B," 3,506.00 "," 2,454.20 "
7/1/2022,272,6750,C1725,675.035110,BLN ULTRASCORE      US14150715," 3,188.00 "," 2,231.60 "
7/1/2022,272,6750,C1725,675.035085,BLN ULTRASCORE       US1415024," 3,188.00 "," 2,231.60 "
7/1/2022,272,6750,C1725,675.035077,BLN ULTRASCORE      US35130610," 3,188.00 "," 2,231.60 "
7/1/2022,272,7240,C1725,675.033065,BLN NC 4.0X15       NCEUP4015X, 562.00 , 393.40 
7/1/2022,272,6750,C1725,675.29916,BLN CQ 10/4/75 CQ75104, 928.00 , 649.60 
7/1/2022,272,6750,C1725,675.034954,ANGIOSCULPT 3.5X10 2200-3510-B," 3,506.00 "," 2,454.20 "
7/1/2022,272,7240,C1725,675.031659,BLN CUT 10X2.75     3940110275," 3,804.00 "," 2,662.80 "
7/1/2022,272,6750,C1725,675.034962,ANGIOSCULPT 3.0X20 2200-3020-B," 3,506.00 "," 2,454.20 "
7/1/2022,272,7240,C1725,675.033040,BLN NC 2.75X15     NCEUP27515X, 562.00 , 393.40 
7/1/2022,272,7240,C1725,675.033862,FORTREX 9X40    A35HPV09040080, 581.00 , 406.70 
7/1/2022,272,6750,C1725,675.035078,BLN ULTRASCORE      US35130615," 3,188.00 "," 2,231.60 "
7/1/2022,272,6750,c1724,675.035732,ROTAREX SET 6F 135CM     80237," 12,750.00 "," 8,925.00 "
7/1/2022,272,7240,C1724,675.035619,ROTAREX SET 6F 110CM 80236," 12,325.00 "," 8,627.50 "
7/1/2022,278,7240,C1724,675.31342,CORONARY DIAMOND 1.25 DBEC-125," 12,334.00 "," 8,633.80 "
7/1/2022,272,6750,c1724,675.035731,ROTAREX SET 8F 85CM      80238," 12,750.00 "," 8,925.00 "
7/1/2022,275,7240,C1722,675.034362,RESONATE EL ICD VR        D432," 65,625.00 "," 45,937.50 "
7/1/2022,272,6750,C1714,675.030565,ATHERECTOMY HAWKONE 6F  H1-S," 14,004.00 "," 9,802.80 "
7/1/2022,272,7240,C1714,675.31279,DIRECT ATHERECTOMY SYS H1-LX," 14,004.00 "," 9,802.80 "
7/1/2022,278,6730,C1713,675.027393,SCREW LOCK 2.7X48   02.211.048, 687.00 , 480.90 
7/1/2022,278,6730,C1713,675.4065,IMPLANT EZ CLIP 18X17X15 EZ," 9,818.00 "," 6,872.60 "
7/1/2022,278,6730,C1713,675.035554,SCREW CORT 3.5X40    8110-040, 731.00 , 511.70 
7/1/2022,278,6730,C1713,675.32078,SCREW VAL 2.4x22 AR-8724V-22, 443.00 , 310.10 
7/1/2022,278,6730,C1713,675.035550,SCREW CORTI 3.5X28   8110-028, 731.00 , 511.70 
7/1/2022,278,6730,C1713,675.31017,SCREW LOCK 5x50 02.231.250, 878.00 , 614.60 
7/1/2022,278,6730,C1713,675.82884,PLATE 446.612," 1,463.00 "," 1,024.10 "
7/1/2022,278,6730,C1713,675.85064,PLATE HUMERAL SUTURE AR14003," 4,727.00 "," 3,308.90 "
7/1/2022,278,6730,C1713,675.29606,SCREW LOCK 5.0x44 212.216, 465.00 , 325.50 
7/1/2022,278,6730,C1713,675.035523,PLATE STRAIGHT    AR-18720P-24," 2,981.00 "," 2,086.70 "
7/1/2022,278,6730,C1713,675.31902,SCREW CORTI 2.7 202.820, 191.00 , 133.70 
7/1/2022,278,6730,C1713,675.29593,SCREW LOCK 5.0x28 212.208, 348.00 , 243.60 
7/1/2022,278,6730,C1713,675.28649,SCREW CANN SMALL 44 214.544, 559.00 , 391.30 
7/1/2022,278,6730,C1713,675.32067,SCREW CANN 4x38 AR-5051-38, 558.00 , 390.60 
7/1/2022,278,6730,C1713,675.28459,SCREW CANN ST 4.0x32 207.632, 549.00 , 384.30 
7/1/2022,278,6730,C1713,675.033429,NAIL LONG 11M      04.037.159S," 11,340.00 "," 7,938.00 "
7/1/2022,278,6730,C1713,675.035476,SCREW WKHORSE 3.5x32  8100-032, 894.00 , 625.80 
7/1/2022,278,6730,C1713,675.033557,SCREW LO-PRO 3.5X10 AR-8935-10, 225.00 , 157.50 
7/1/2022,278,6730,C1713,675.035132,PACKING FOAM 5CC     2102-2205," 12,011.00 "," 8,407.70 "
7/1/2022,278,6730,C1713,675.035300,NAIL TROCH 12.5X33   1122-335," 11,231.00 "," 7,861.70 "
7/1/2022,278,6730,C1713,675.28465,SCREW CANC PT 4.0x55 206.055, 39.00 , 27.30 
7/1/2022,278,6730,C1713,675.28578,SCREW CANN ST 4.0x28 207.628, 658.00 , 460.60 
7/1/2022,278,6730,C1713,675.28453,SCREW CANN 5.0x80 02.205.080, 557.00 , 389.90 
7/1/2022,278,6730,C1713,675.29412,SCREW CORTI 5x70 02.03150.070, 677.00 , 473.90 
7/1/2022,278,6730,C1713,675.31823,SCREW CORTI 4.5x42 214.842, 111.00 , 77.70 
7/1/2022,278,6730,C1713,675.88034,SCREW 4.0X26 02.03155.026, 454.00 , 317.80 
7/1/2022,278,6730,c1713,675.035683,PLATE CURVED CON   02.001.300S," 7,651.00 "," 5,355.70 "
7/1/2022,278,6730,C1713,675.033487,SCREW 5.0 SELF-TPNG   412.214S," 1,023.00 ", 716.10 
7/1/2022,278,6730,C1713,675.035641,SCREW CAN LOCK 5X36 42.231.236," 1,188.00 ", 831.60 
7/1/2022,278,6750,C1713,675.016134,PLATE CON LCP 12H L 02.001.302," 5,060.00 "," 3,542.00 "
7/1/2022,278,6730,C1713,675.28816,SCREW CANN ST 4.0x20 207.620, 531.00 , 371.70 
7/1/2022,278,6730,C1713,675.036143,SCREW LOCK 2.7X16     58802716," 1,320.00 ", 924.00 
7/1/2022,278,6730,C1713,675.29594,SCREW LOCK 5.0x22 212.205, 707.00 , 494.90 
7/1/2022,278,6730,C1713,675.035773,SCREW LOCK 5.0X60   04.005.550, 768.00 , 537.60 
7/1/2022,278,6730,C1713,675.30753,SCREW LOCK 5.0 04.005.556S, 994.00 , 695.80 
7/1/2022,278,6730,C1713,675.29627,PLATE NARROW LT 02.02263.301," 4,144.00 "," 2,900.80 "
7/1/2022,278,7240,C1713,675.29638,SCREW CORT 5X80mm 02.03150.080, 677.00 , 473.90 
7/1/2022,278,6730,C1713,675.81550,PLATE 224.591," 2,425.00 "," 1,697.50 "
7/1/2022,278,6730,C1713,675.036038,BONE VOID FILLER 18ML A0210-11," 14,813.00 "," 10,369.10 "
7/1/2022,278,6730,C1713,675.036112,PLATE CLAV 2.7     02.112.620S," 5,550.00 "," 3,885.00 "
7/1/2022,278,6730,C1713,675.034247,NAIL FEM CAN10X380 04.033.070S," 10,013.00 "," 7,009.10 "
7/1/2022,278,6730,C1713,675.29546,SCREW LOCK 3.5x22 212.107, 346.00 , 242.20 
7/1/2022,278,6730,C1713,675.032474,NAIL LONG 14MM     04.037.459S," 11,340.00 "," 7,938.00 "
7/1/2022,278,6730,C1713,675.032738,SCREW CANN 36    AR-8740-36PTS, 618.00 , 432.60 
7/1/2022,278,6730,C1713,675.29122,SCREW LOCK 4.0X22 04.005.412S, 559.00 , 391.30 
7/1/2022,278,6730,C1713,675.036096,NAIL TROCH 12.5x36    1120-365," 11,231.00 "," 7,861.70 "
7/1/2022,278,6730,C1713,675.035639,PLATE 10 HOLE     02.124.411S," 8,927.00 "," 6,248.90 "
7/1/2022,278,6730,C1713,675.81894,PLATE 1/3 TUBULAR 241.401, 515.00 , 360.50 
7/1/2022,278,6730,C1713,675.034294,SCREW LP CORT 3.5X20  58813520, 477.00 , 333.90 
7/1/2022,278,7540,C1713,675.032012,LO-PRO SCREW 2.7X16 AR-8827-16, 169.00 , 118.30 
7/1/2022,278,6730,C1713,675.16219,NAIL TIB 11X330    04.034.546S," 7,507.00 "," 5,254.90 "
7/1/2022,278,6730,C1713,675.033766,NAIL TIBIAL 0MM    04.004.000S," 1,092.00 ", 764.40 
7/1/2022,278,6730,C1713,675.31634,ACHILLES IMPL SYS AR-8929BC-CP," 4,204.00 "," 2,942.80 "
7/1/2022,278,6730,C1713,675.31968,SCREW CANN FT 6.5x60 208.434, 724.00 , 506.80 
7/1/2022,278,6730,C1713,675.035551,SCREW CORT 3.5X30   8110-030, 731.00 , 511.70 
7/1/2022,278,6730,C1713,675.035114,PLATE 4 HOLE           239.935," 6,820.00 "," 4,774.00 "
7/1/2022,278,6730,C1713,675.034938,PLATE TUB 5H TI    AR-9943T-05, 881.00 , 616.70 
7/1/2022,278,6730,C1713,675.88025,SCREW LOCK AR-8835L-10, 316.00 , 221.20 
7/1/2022,278,6730,C1713,675.034850,SCREW LOW-PRO 3.5X24  58813524, 671.00 , 469.70 
7/1/2022,278,6730,C1713,675.32326,SCREW LOCK 2.7x16 AR-8827L-10, 317.00 , 221.90 
7/1/2022,278,6730,C1713,675.034681,NAIL LONG 11M      04.037.158S," 11,340.00 "," 7,938.00 "
7/1/2022,278,6730,C1713,675.28291,SCREW CANN ST 4.0x34 207.634, 952.00 , 666.40 
7/1/2022,278,6730,C1713,675.035204,SCREW HEADLESS 2.5X12 D2N25012," 1,504.00 "," 1,052.80 "
7/1/2022,278,6730,C1713,675.31824,SCREW CORTI 4.5x24 214.824, 56.00 , 39.20 
7/1/2022,278,6750,C1713,675.029698,DVR ANATOMIC SHORT LEFT DVRASL," 4,613.00 "," 3,229.10 "
7/1/2022,278,6730,C1713,675.28565,SCREW CANN 3.0x40 202.640, 958.00 , 670.60 
7/1/2022,278,6730,C1713,675.27544,SCREW LOCK 2.7x16 AR-8827L-16, 130.00 , 91.00 
7/1/2022,278,6730,C1713,675.28113,SCREW CORTI 44x5 02.03150.044, 507.00 , 354.90 
7/1/2022,278,6730,C1713,675.28457,SCREW LOCK 3.5x16 212.104, 610.00 , 427.00 
7/1/2022,278,6730,C1713,675.035189,SCRW VAL KRULOC  AR-8724VCL-18," 1,106.00 ", 774.20 
7/1/2022,278,6730,C1713,675.033718,PLATE DISTAL FIB  AR-9943BL-05," 2,625.00 "," 1,837.50 "
7/1/2022,278,6730,C1713,675.83887,SCREW BIO TEN AR-1580BC, 866.00 , 606.20 
7/1/2022,278,6730,C1713,675.31815,SCREW CORTEX 4.5x48 214.848, 111.00 , 77.70 
7/1/2022,278,6730,C1713,675.87041,SCREW 5.0X34 02.03150.034, 507.00 , 354.90 
7/1/2022,278,6730,C1713,675.031592,BLADE HELICAL 115 04.038.415S," 3,550.00 "," 2,485.00 "
7/1/2022,278,6730,C1713,675.81336,SCREW CANN 5.0X65 02.03152.065, 575.00 , 402.50 
7/1/2022,278,6730,C1713,675.034478,SCREW CORT 3.5X32     AR-14132, 420.00 , 294.00 
7/1/2022,278,6730,C1713,675.035556,SCREW CT DOUB 3.5X32 8114-032," 1,069.00 ", 748.30 
7/1/2022,278,6730,C1713,675.032471,NAIL LONG 14MM     04.037.455S," 11,340.00 "," 7,938.00 "
7/1/2022,278,6730,C1713,675.29628,SCREW LOCK 4x30 02.03155.030, 413.00 , 289.10 
7/1/2022,278,6730,C1713,675.035475,SCREW WKHORSE 3.5x24  8100-024, 894.00 , 625.80 
7/1/2022,278,6730,C1713,675.034702,2.0MM SCREW LAPIPASTY     SK21," 2,606.00 "," 1,824.20 "
7/1/2022,278,6730,C1713,675.034919,SCREW LOCK 4.5MM   04.019.034S," 1,527.00 "," 1,068.90 "
7/1/2022,278,6730,C1713,675.032751,SCREW LO-PRO 2.4X18 AR-8724-18, 412.00 , 288.40 
7/1/2022,278,6730,C1713,675.29544,SCREW LOCK 3.5x38 212.116, 398.00 , 278.60 
7/1/2022,278,6730,C1713,675.16212,NAIL TIBIA 10X315 04.034.443S," 7,507.00 "," 5,254.90 "
7/1/2022,278,6750,C1713,675.033222,SCREW LOCK 3.5 X 24MM 58803524," 1,320.00 ", 924.00 
7/1/2022,278,6730,C1713,675.31827,SCREW CORTEX 4.5x38 214.838, 86.00 , 60.20 
7/1/2022,278,6730,C1713,675.32412,PLATE DIST FIB 4H AR-8943BL-04," 1,513.00 "," 1,059.10 "
7/1/2022,278,6730,C1713,675.034903,INSERT HUMERAL 39  AR-9503M-06," 3,806.00 "," 2,664.20 "
7/1/2022,278,6730,C1713,675.28490,SCREW CANC FT 4.0x22 206.022, 51.00 , 35.70 
7/1/2022,278,6730,C1713,675.30027,SCREW CORT 4.0x42 02.03155.042, 454.00 , 317.80 
7/1/2022,278,6730,C1713,675.034694,STAPLE NITINOL 10X10  FFNS1010," 7,031.00 "," 4,921.70 "
7/1/2022,278,6730,C1713,675.032475,NAIL LONG 14MM     04.037.460S," 11,340.00 "," 7,938.00 "
7/1/2022,278,6730,C1713,675.032104,SCREW LOCK 5MM      04.005.524, 847.00 , 592.90 
7/1/2022,278,6730,C1713,675.30022,SCREW CORTI 2.7x24 202.824, 93.00 , 65.10 
7/1/2022,278,6730,C1713,675.17043,SCREW LOCK 3.5X80 212.128, 409.00 , 286.30 
7/1/2022,278,6730,C1713,675.29413,PLATE TUB 5H AR-8943T-05, 646.00 , 452.20 
7/1/2022,278,6730,C1713,675.034941,PLATE 2HOLE 1.5 TI AR-8959-02S," 3,188.00 "," 2,231.60 "
7/1/2022,278,6730,C1713,675.28837,SCREW CANN 3.0 202.615, 606.00 , 424.20 
7/1/2022,278,6730,C1713,675.035006,SCREW CANN 4.0      04.334.436," 2,129.00 "," 1,490.30 "
7/1/2022,278,6730,C1713,675.035459,TIGHTROPE ACL AR-1588RTT," 1,969.00 "," 1,378.30 "
7/1/2022,278,6730,C1713,675.88020,SCREW NBC 02.03150.020, 677.00 , 473.90 
7/1/2022,278,6730,C1713,675.31844,ROD CARBON FIBER 200MM 395.782, 712.00 , 498.40 
7/1/2022,278,6730,C1713,675.035724,SCREW VAL TI      AR-18716V-08, 525.00 , 367.50 
7/1/2022,278,6730,C1713,675.83904,WASHER 219.91, 122.00 , 85.40 
7/1/2022,278,6730,C1713,675.035774,SCREW LOCK 5.0X32   04.005.522, 768.00 , 537.60 
7/1/2022,278,6730,C1713,675.034232,SCREW MULTILOC 4.5 04.019.036S," 1,528.00 "," 1,069.60 "
7/1/2022,278,6730,C1713,675.035728,SCREW CORT         AR-18720-10, 413.00 , 289.10 
7/1/2022,278,6730,C1713,675.035034,SCREW LAG 3.5X22     5820X3522," 1,500.00 "," 1,050.00 "
7/1/2022,278,6730,C1713,675.015473,SCREW CORTI 2.7X18     202.878, 185.00 , 129.50 
7/1/2022,278,6730,C1713,675.28542,SCREW CORTEX 3.5x32 204.832, 62.00 , 43.40 
7/1/2022,278,6730,C1713,675.031902,NAIL LONG 12MM     04.037.253S," 10,412.00 "," 7,288.40 "
7/1/2022,278,6730,C1713,675.034274,SCREW LP 4X36     AR-8840CL-36, 619.00 , 433.30 
7/1/2022,278,6730,C1713,675.29414,WASHER AR-8870W, 83.00 , 58.10 
7/1/2022,278,6730,C1713,675.035998,SCRW VAL KREULOC AR-8724VCL-16," 1,106.00 ", 774.20 
7/1/2022,278,6730,C1713,675.036117,SCREW HI PITCH LOCK       SD22," 2,606.00 "," 1,824.20 "
7/1/2022,278,6730,C1713,675.81172,SCREW CANN 222.645/649, 670.00 , 469.00 
7/1/2022,278,6730,C1713,675.033253,DVR EXT ANATOMIC RT     DVRAXR," 2,125.00 "," 1,487.50 "
7/1/2022,278,6730,C1713,675.035750,PLATE TIBIA 3.5MM  02.127.211S," 7,558.00 "," 5,290.60 "
7/1/2022,278,6730,c1713,675.035714,SCREW LO-PRO 4.0x18 AR-8940-18, 225.00 , 157.50 
7/1/2022,278,6730,C1713,675.29609,SCREW CORTI 5x65 02.03150.065, 707.00 , 494.90 
7/1/2022,278,6750,C1713,675.033285,SCREW LOCK 2.7X12MM   58802712," 1,320.00 ", 924.00 
7/1/2022,278,6730,c1713,675.036118,LAPIPLASTY SYSTEM         SK39," 18,731.00 "," 13,111.70 "
7/1/2022,278,6730,C1713,675.28645,SCREW CANN SMALL 36 214.536, 880.00 , 616.00 
7/1/2022,278,6750,C1713,675.027392,PLATE HUM 2.7X5     02.117.901," 4,689.00 "," 3,282.30 "
7/1/2022,278,6730,C1713,675.032084,SCREW CONICAL 3.5MM    212.430, 664.00 , 464.80 
7/1/2022,278,6730,C1713,675.30010,SCREW CANN4.0x38 AR-8740-38PTS, 476.00 , 333.20 
7/1/2022,278,6730,C1713,675.031558,SCREW CORTI 5X16 02.03150.016, 707.00 , 494.90 
7/1/2022,278,6730,C1713,675.035727,SCREW VAL TI      AR-18716V-11, 525.00 , 367.50 
7/1/2022,278,6730,C1713,675.82262,PLATE LCP 224.621," 1,315.00 ", 920.50 
7/1/2022,278,6730,C1713,675.29550,SCREW LOCK 3.5x28 212.110, 476.00 , 333.20 
7/1/2022,278,6730,C1713,675.036164,NAIL TROCH 12.5MMX125 1121-395," 10,184.00 "," 7,128.80 "
7/1/2022,278,6730,C1713,675.28647,SCREW CANN SMALL 40 214.540, 880.00 , 616.00 
7/1/2022,278,6730,C1713,675.32371,PLATE FIB 5H AR-8943BL-05," 2,438.00 "," 1,706.60 "
7/1/2022,278,6730,C1713,675.036142,SCREW ORTHOLK 3.5X24 5820X3524," 1,500.00 "," 1,050.00 "
7/1/2022,278,6730,C1713,675.035419,PEG PAR TRED 2.5X14   TP14000, 360.00 , 252.00 
7/1/2022,278,6730,C1713,675.27536,SCREW LOCK 2.7x50 02.211.050, 438.00 , 306.60 
7/1/2022,278,6730,C1713,675.035780,SUTURE ANCHOR        AR-3653SP," 2,843.00 "," 1,990.10 "
7/1/2022,278,6730,C1713,675.035723,PLT STRT 1.6 10HL AR-18716P-07," 2,981.00 "," 2,086.70 "
7/1/2022,278,6730,C1713,675.29547,SCREW LOCK 3.5x20 212.106, 610.00 , 427.00 
7/1/2022,278,6750,C1713,675.033223,SCREW LOCK 3.2X28    858803528," 1,320.00 ", 924.00 
7/1/2022,278,6730,C1713,675.035643,SCREW LOCK 5X55    42.231.255, 877.00 , 613.90 
7/1/2022,278,6730,c1713,675.035688,PRO-TOE C2            45802013," 4,991.00 "," 3,493.70 "
7/1/2022,278,6730,c1713,675.035647,SCREW 2.5LGX10MM         SV10," 1,858.00 "," 1,300.60 "
7/1/2022,278,6730,C1713,675.036165,SCREW CORT 5.0X34     8001-034," 1,307.00 ", 914.90 
7/1/2022,278,6730,C1713,675.035284,SCREW CANN TI 4.0   04.333.432," 2,078.00 "," 1,454.60 "
7/1/2022,278,6730,C1713,675.036163,SCREW GALILEO 10X85   1099-085," 2,608.00 "," 1,825.60 "
7/1/2022,278,6730,C1713,675.033993,SCREW LOCK 3.5X20     58803520," 1,320.00 ", 924.00 
7/1/2022,278,6730,C1713,675.035640,SCREW CAN LOCK 5X75 42.231.675," 1,188.00 ", 831.60 
7/1/2022,278,6730,C1713,675.035417,SCREW PEG 2.5X14      SP14000, 360.00 , 252.00 
7/1/2022,278,6730,C1713,675.035019,SCREW PEG 2.5X16       SP16000, 360.00 , 252.00 
7/1/2022,278,6730,C1713,675.035644,SCREW LOCK 5X60    42.231.260, 877.00 , 613.90 
7/1/2022,278,6730,C1713,675.85076,PLATE LCP 3.5 5H 223.551," 1,139.00 ", 797.30 
7/1/2022,278,6730,C1713,675.32378,PLATE HUM 2.7/3.5 02.117.702S," 3,679.00 "," 2,575.30 "
7/1/2022,278,6730,C1713,675.032271,SCREW CORTICAL 3.5     CS16000, 600.00 , 420.00 
7/1/2022,278,6730,C1713,675.035436,SCREW HEADLESS 3X18  D2N30018," 1,504.00 "," 1,052.80 "
7/1/2022,278,6730,C1713,675.035534,BLADE HELIC TFNA   04.038.295S," 3,555.00 "," 2,488.50 "
7/1/2022,278,6730,C1713,675.032802,SCREW BIO COMPRESS AR-5025B-26," 2,119.00 "," 1,483.30 "
7/1/2022,278,6730,C1713,675.28800,SCREW CANN LT 4.0x44 207.744, 549.00 , 384.30 
7/1/2022,278,6730,C1713,675.014131,SCREW CANN FT 6.5X65   208.435, 709.00 , 496.30 
7/1/2022,278,6730,C1713,675.32091,SCREW 2.4x16 AR-8916VNC-16, 443.00 , 310.10 
7/1/2022,278,6730,C1713,675.034401,SCREW MUC 3.0X18MM   44110005," 1,493.00 "," 1,045.10 "
7/1/2022,278,6730,C1713,675.28533,SCREW CORTEX 3.5x38 204.838, 73.00 , 51.10 
7/1/2022,278,6730,C1713,675.28456,SCREW LOCK 3.5x10 212.101, 346.00 , 242.20 
7/1/2022,278,6730,C1713,675.033556,SCRW LOCK TI 5.0X42 04.005.532, 846.00 , 592.20 
7/1/2022,278,6730,C1713,675.034263,SCREW LO-PRO 3.5X20 02.206.020, 171.00 , 119.70 
7/1/2022,278,6730,C1713,675.32345,SCREW META 2.7x20 02.118.520, 202.00 , 141.40 
7/1/2022,278,6730,C1713,675.034252,SCREW PEG 2.5X12MM     SP12000, 360.00 , 252.00 
7/1/2022,278,6730,C1713,675.034226,NAIL HUMERAL 8.5MM 04.019.240S," 10,132.00 "," 7,092.40 "
7/1/2022,278,6730,C1713,675.27534,SCREW STAR 2.7x60 02.118.560, 188.00 , 131.60 
7/1/2022,278,6730,C1713,675.27786,SCREW LOCK 3.5x18 212.105, 346.00 , 242.20 
7/1/2022,278,6730,C1713,675.032473,NAIL LONG 14MM     04.037.458S," 11,340.50 "," 7,938.35 "
7/1/2022,278,6730,C1713,675.31321,SCREW VAL 2.4x24 AR-8724V-24, 550.00 , 385.00 
7/1/2022,278,6730,C1713,675.035462,TIGHTROPE AR-1288RTIB-FC3," 3,956.00 "," 2,769.20 "
7/1/2022,278,6730,C1713,675.29567,SCREW LOCK 2.7x36 02.211.036, 687.00 , 480.90 
7/1/2022,278,6730,C1713,675.83921,PLATE 1/3 TUBULAR 241.35, 109.31 , 76.52 
7/1/2022,278,6730,C1713,675.31916,SCREW CORTEX ST 2.7 202.880, 185.00 , 129.50 
7/1/2022,278,7240,C1713,675.30008,SCREW 3.5x10MM AR-8835-10, 99.00 , 69.30 
7/1/2022,278,6730,C1713,675.28804,SCREW CANN LT 4.0x36 207.736, 592.00 , 414.40 
7/1/2022,278,6730,C1713,675.035642,SCREW CAN LOCK 5X38 42.231.238, 877.00 , 613.90 
7/1/2022,278,6730,C1713,675.034249,SCREW LOCK 5X74    04.005.564S," 1,094.00 ", 765.80 
7/1/2022,278,6730,C1713,675.033101,SCREW 3.0X12        AR-8933-12, 412.50 , 288.75 
7/1/2022,278,6730,C1713,675.83926,PLATE TUB 1/3 7H 241.37, 208.00 , 145.60 
7/1/2022,278,6730,C1713,675.033787,PLATE OLEC 2.7X3.5  02.107.102," 4,751.00 "," 3,325.70 "
7/1/2022,278,6730,C1713,675.035720,SCREW LOPRO 1.6x9  AR-18716-09, 413.00 , 289.10 
7/1/2022,278,6730,c1713,675.035702,SCREW CORT 3.5  00-4935-022-01, 195.00 , 136.50 
7/1/2022,278,6730,C1713,675.8802,SCREW LOCK 2.4 02.210.118, 658.00 , 460.60 
7/1/2022,278,6730,C1713,675.31302,SCREW CANN COMP 3.5x14 CS14A," 1,858.00 "," 1,300.60 "
7/1/2022,278,6730,C1713,675.034279,PLATE LCP 8H 2.7X76    247.372," 1,998.00 "," 1,398.60 "
7/1/2022,278,6730,C1713,675.035670,SWIVELOCK           AR-2326BCC," 1,500.00 "," 1,050.00 "
7/1/2022,278,6730,C1713,675.034321,PLATE OLECR 2.7X3.5 02.107.304," 5,344.00 "," 3,740.80 "
7/1/2022,278,6730,C1713,675.29109,SCREW LOCK 5.0X28 04.005.518S," 1,094.00 ", 765.80 
7/1/2022,278,6730,C1713,675.034289,PLATE TUB 10H TI   AR-9943T-10," 1,050.00 ", 735.00 
7/1/2022,278,6730,C1713,675.29640,SCREW CORT 5x60MM 02.03150.060, 646.00 , 452.20 
7/1/2022,278,6730,C1713,675.31327,SCREW META 2.7x14 02.118.514, 188.00 , 131.60 
7/1/2022,278,6730,C1713,675.034223,PLATE RADIAL 2.4   02.111.671S," 8,533.00 "," 5,973.10 "
7/1/2022,278,6730,C1713,675.31952,PLATE CON 4.5 10H L 02.001.300," 4,574.00 "," 3,201.80 "
7/1/2022,278,6730,C1713,675.27999,SCREW BONE 6.5x15 6250-65-15, 540.00 , 378.00 
7/1/2022,278,6730,C1713,675.28793,SCREW CANN ST 4.0x38 207.638, 952.00 , 666.40 
7/1/2022,278,6730,C1713,675.035751,SCREW LOCK ANGLE 85 02.127.185, 662.00 , 463.40 
7/1/2022,278,6730,C1713,675.28534,SCREW CORTEX 3.5x36 204.836, 73.00 , 51.10 
7/1/2022,278,6730,C1713,675.034939,SCREW LO-PRO 3.5X28 AR-8935-28, 225.00 , 157.50 
7/1/2022,278,6730,C1713,675.27118,SCREW SNAP OFF 2.0x12 WS12," 1,524.00 "," 1,066.80 "
7/1/2022,278,6730,C1713,675.28493,SCREW CANC FT 4.0x10 206.010, 61.00 , 42.70 
7/1/2022,278,6730,C1713,675.82078,SCREW CONI 3.5X85 212.429, 380.00 , 266.00 
7/1/2022,278,6730,C1713,675.035470,PLATE PROX LAT TIB   3082-002," 8,981.00 "," 6,286.70 "
7/1/2022,278,6730,C1713,675.31043,SCREW LOCK 5.0x90 02.231.290, 878.00 , 614.60 
7/1/2022,278,6730,C1713,675.035319,SCREW KREU 2.7x14 AR-8827CL-14," 1,106.00 ", 774.20 
7/1/2022,278,6730,C1713,675.032947,BLADE HELICAL 120  04.038.420S," 3,555.00 "," 2,488.50 "
7/1/2022,278,6730,C1713,675.035520,SCREW CORT.        AR-18720-09, 413.00 , 289.10 
7/1/2022,278,6730,C1713,675.035527,SCREW LO PRO       AR-18724-07, 413.00 , 289.10 
7/1/2022,278,6730,C1713,675.034798,SCREW LOWPRO 3.5X28 02.206.228, 174.00 , 121.80 
7/1/2022,278,6730,C1713,675.27780,SCREW CANN 5.0x30 02.205.030, 626.00 , 438.20 
7/1/2022,278,6730,C1713,675.034292,STAPLE NITINOL 8X8   FFNS0808," 7,031.00 "," 4,921.70 "
7/1/2022,278,6730,C1713,675.035509,SCREW 2X10 HEADED   D1N20010S," 1,091.00 ", 763.70 
7/1/2022,278,6730,C1713,675.27543,SCREW LOCK 2.7x14 AR-8827L-14, 330.00 , 231.00 
7/1/2022,278,6730,c1713,675.035539,SCREW CORTEX 1.5MM    200.810, 191.00 , 133.70 
7/1/2022,278,6730,C1713,675.035549,PLATE ALPHA LEFT 16H 3024-016," 11,231.00 "," 7,861.70 "
7/1/2022,278,6750,C1713,675.033195,SCREW CORT 3.5X36MM   AR-14136, 420.00 , 294.00 
7/1/2022,278,6730,C1713,675.034331,SCREW CORT 5X100  02.02150.100, 683.00 , 478.10 
7/1/2022,278,6730,C1713,675.036051,PLATE HUM 2.7x3.5  02.117.901S," 5,672.00 "," 3,970.40 "
7/1/2022,278,6730,C1713,675.035521,SCREW CORT         AR-18720-11, 413.00 , 289.10 
7/1/2022,278,6730,C1713,675.030305,SUTURE ANCHOR AR-1938BC," 1,976.00 "," 1,383.20 "
7/1/2022,278,6730,C1713,675.033992,PLATE LAPIDUS LEFT    3814000L," 10,800.00 "," 7,560.00 "
7/1/2022,278,6730,C1713,675.82337,SCREW COVIER 3.5x75 212.127, 409.00 , 286.30 
7/1/2022,278,6730,C1713,675.031470,LP SCREW 3.5X13     AR-8935-13, 259.00 , 181.30 
7/1/2022,278,6730,C1713,675.035562,SCREW CN LOCK 4.0X38 8124-038," 1,069.00 ", 748.30 
7/1/2022,278,6730,C1713,675.035414,PLATE LOCK FIB 5 AR-9943BR-05," 2,625.00 "," 1,837.50 "
7/1/2022,278,6730,C1713,675.89503,WASHER 219.98, 123.00 , 86.10 
7/1/2022,278,6730,C1713,675.029924,PEG 2.5 18MM THREAD  131211118, 658.00 , 460.60 
7/1/2022,278,6730,C1713,675.035823,SCREW KREU 2.7X16 AR-8827CL-16," 1,106.00 ", 774.20 
7/1/2022,278,6730,C1713,675.036058,SCREW GALILEO 10.5X110 1099110," 3,356.00 "," 2,349.20 "
7/1/2022,278,6730,C1713,675.034794,NAIL MULTI HUM 8.5 04.018.225S," 10,132.00 "," 7,092.40 "
7/1/2022,278,6730,C1713,675.035416,DVR ANATOMIC EXT LEFT  DVRAXL," 2,993.00 "," 2,095.10 "
7/1/2022,278,6730,C1713,675.036045,SCREW VAL 3.0X18 AR-8933VCL-18," 1,106.00 ", 774.20 
7/1/2022,278,6730,C1713,675.035645,SCREW LOCK 5X75    42.231.275, 877.00 , 613.90 
7/1/2022,278,6730,C1713,675.27538,SCREW LOCK 2.7x56 02.211.056, 438.00 , 306.60 
7/1/2022,278,6730,C1713,675.29648,SCREW META 2.7x26MM 02.118.526, 141.00 , 98.70 
7/1/2022,278,6730,C1713,675.034234,SCREW MULTILOC 4.5 04.019.040S," 1,528.00 "," 1,069.60 "
7/1/2022,278,6730,C1713,675.030716,SCREW VAL 3.0X16   AR-8933V-16, 938.00 , 656.60 
7/1/2022,278,6730,C1713,675.32379,PLATE HUM 2.7/3.5 02.117.303S," 4,920.00 "," 3,444.00 "
7/1/2022,278,6730,C1713,675.035722,SCREW LOPRO 1.6x10 AR-18716-10, 413.00 , 289.10 
7/1/2022,278,6730,C1713,675.031766,MODULAR SCREW 20MM AR-9561-20S," 3,563.00 "," 2,494.10 "
7/1/2022,278,6730,C1713,675.032478,NAIL LONG 14MM     04.037.463S," 11,340.00 "," 7,938.00 "
7/1/2022,278,6730,C1713,675.28792,SCREW CANN ST 4.0x36 207.636, 616.00 , 431.20 
7/1/2022,278,6730,C1713,675.034851,SCREW CANN 4.0 MSD-010-40-375L," 1,091.00 ", 763.70 
7/1/2022,278,6730,C1713,675.035570,NAIL HUMERAL TI    04.019.255S," 9,199.00 "," 6,439.30 "
7/1/2022,278,6730,C1713,675.80082,NAIL HUMERAL  04.016.0395, 110.00 , 77.00 
7/1/2022,278,6730,C1713,675.32158,SCREW CANN 4x36 AR-5051-36, 619.00 , 433.30 
7/1/2022,278,6730,c1713,675.036031,NAIL TRO 12.5x39x130R 1123-390," 10,106.00 "," 7,074.20 "
7/1/2022,278,6730,C1713,675.036094,SCREW LOCK 2.7x14     58802714," 1,778.00 "," 1,244.60 "
7/1/2022,278,6730,C1713,675.88050,SCREW CORT 4.0X32 02.03155.032, 512.00 , 358.40 
7/1/2022,278,6730,C1713,675.28481,SCREW CANC FT 4.0x50 206.050, 39.08 , 27.36 
7/1/2022,278,6730,C1713,675.035499,TIGHTROPE MPFL  AR-1360TR-BC," 10,688.00 "," 7,481.60 "
7/1/2022,278,6730,C1713,675.27996,SCREW BONE 6.5x30 6250-65-30, 396.00 , 277.20 
7/1/2022,278,6730,C1713,675.008963,WIRE K .045        KM172-49-45, 12.00 , 8.40 
7/1/2022,278,6730,C1713,675.31316,SCREW 3.5x14 AR-8935-14, 237.00 , 165.90 
7/1/2022,278,6730,C1713,675.031509,BLADE HELICAL 95MM 04.038.395S," 6,550.00 "," 4,585.00 "
7/1/2022,278,6730,C1713,675.034828,SCREW KREU 3.5X14 AR-8935CL-14," 1,106.00 ", 774.20 
7/1/2022,278,6730,C1713,675.83877,BIO-SWIVELOCK 4.75 AR-2324BCC," 1,100.00 ", 770.00 
7/1/2022,278,6730,C1713,675.035552,SCREW CORT 3.5X32    8110-032, 731.00 , 511.70 
7/1/2022,278,6730,C1713,675.82336,SCREW AR1371-1402T, 356.00 , 249.20 
7/1/2022,278,6730,C1713,675.032548,PLATE LOCK FIB RT AR-9943BR-04," 2,250.00 "," 1,575.00 "
7/1/2022,278,6730,C1713,675.033103,BIO SWIV 4.75X19.1  AR-1593-BC," 2,718.00 "," 1,902.60 "
7/1/2022,278,6730,C1713,675.036108,PUTTY BG FIBERGRAFT   78000040," 9,053.00 "," 6,337.10 "
7/1/2022,278,6730,C1713,675.28628,SCREW CANN SMALL 52 214.552, 601.00 , 420.70 
7/1/2022,278,6730,C1713,675.030330,SCREW FEMALE 2.5MM 42509902525, 535.00 , 374.50 
7/1/2022,278,6730,C1713,675.032446,SCREW MODULAR 30MM AR-9561-30S," 3,562.00 "," 2,493.40 "
7/1/2022,278,6730,C1713,675.31433,SCREW 2.4x20 AR-8916VNC-20, 550.00 , 385.00 
7/1/2022,278,6730,C1713,675.28001,SCREW CORTEX 3.5x16 204.816, 62.00 , 43.40 
7/1/2022,278,6730,C1713,675.29986,SWIVEL LOCK AR-2600SBS-4," 4,785.00 "," 3,349.50 "
7/1/2022,278,6750,C1713,675.008964,WIRE K .062        KM172-49-62, 12.00 , 8.40 
7/1/2022,278,6730,C1713,675.17311,CAP LOCK 02.03150.300, 464.00 , 324.80 
7/1/2022,278,6730,C1713,675.31319,SCREW 2.4x22 AR8916VNC-22, 550.00 , 385.00 
7/1/2022,278,6730,C1713,675.83878,BIO-SWIVELOCK AR-2323BCC," 1,100.00 ", 770.00 
7/1/2022,278,6730,C1713,675.82186,ROD REAMING 351.706S, 317.00 , 221.90 
7/1/2022,278,6750,C1713,675.19775,FIBERLINK AR7235, 222.00 , 155.40 
7/1/2022,278,6730,C1713,675.031787,SCREW LOCK 5.5X28   AR-9563-28, 450.00 , 315.00 
7/1/2022,278,6730,C1713,675.28543,SCREW CORTEX 3.5x14 204.814, 62.00 , 43.40 
7/1/2022,278,6730,C1713,675.034271,SCREW CORT 3.5X30MM AR-14130NL, 169.00 , 118.30 
7/1/2022,278,6730,C1713,675.035721,SCREW LOPRO 1.6x9  AR-18716-09, 413.00 , 289.10 
7/1/2022,278,6730,C1713,675.81351,SCREW CORTEX 202.870-890, 176.00 , 123.20 
7/1/2022,278,6730,C1713,675.035134,EASYCLIP FIXATION   EZ20-20-20," 12,398.00 "," 8,678.60 "
7/1/2022,278,6730,C1713,675.29626,PLATE FEM 245MM 02.02263.109," 5,170.00 "," 3,619.00 "
7/1/2022,278,6730,C1713,675.032105,SCREW LOCK 5MM      04.005.526, 847.00 , 592.90 
7/1/2022,278,6730,C1713,675.82256,PLATE LCP 223.591," 1,400.00 ", 980.00 
7/1/2022,278,6730,C1713,675.017474,SCREW CONI 3.5X75      212.327, 664.00 , 464.80 
7/1/2022,278,6730,C1713,675.034330,SCREW CORT 5.0X95 02.02150.095, 683.00 , 478.10 
7/1/2022,278,6730,C1713,675.351200,PLATE FIBULA SYN   02.118.402S," 4,152.00 "," 2,906.40 "
7/1/2022,278,6730,C1713,675.035190,PEG SMOOTH DVR 2.0X14   P14000, 360.00 , 252.00 
7/1/2022,278,6730,C1713,675.88002,SCREW CANC 5.0x60 02.03152.060, 609.00 , 426.30 
7/1/2022,278,6730,C1713,675.034135,SCREW LOCK 3.5         323.053, 821.00 , 574.70 
7/1/2022,278,6730,C1713,675.035240,SCREW KREU 3.5X16 AR-8835CL-16," 1,106.00 ", 774.20 
7/1/2022,278,6750,C1713,675.033238,ORTHOLOC 3DI MTP RT  5820MPX1R," 11,141.00 "," 7,798.70 "
7/1/2022,278,6730,C1713,675.033655,SCREW CAN 4.0X48 AR-8740-48PTS, 619.00 , 433.30 
7/1/2022,278,6730,C1713,675.17216,SCREW STAR 5X26M   04.005.516S, 994.00 , 695.80 
7/1/2022,278,6730,C1713,675.31218,PLATE FEM 13H/324 02.03260.013," 5,972.00 "," 4,180.40 "
7/1/2022,278,6730,C1713,675.32105,SCREW CANN 4x40 AR-5051-40, 619.00 , 433.30 
7/1/2022,278,6730,C1713,675.034369,SCREW LOCK 5.0X 90  02.231.690," 1,188.00 ", 831.60 
7/1/2022,278,6730,C1713,675.17262,SCREW CAP SCHANZ 394.991, 16.00 , 11.20 
7/1/2022,278,6730,C1713,675.034256,SCREW COMPR 5.0X50 AR-8750-50H," 1,781.00 "," 1,246.70 "
7/1/2022,278,6730,C1713,675.82828,PLATE 226.581," 2,622.00 "," 1,835.40 "
7/1/2022,278,6730,C1713,675.034849,PLATE LAPIDUS 2MM     3814002R," 10,800.00 "," 7,560.00 "
7/1/2022,278,6730,C1713,675.034942,SCREW LO-PRO 3.5X24 AR-8935-24, 225.00 , 157.50 
7/1/2022,278,6730,C1713,675.013983,SCREW CANN FT 7.3X80," 1,133.00 ", 793.10 
7/1/2022,278,6730,C1713,675.31821,SCREW CORTI 4.5x44 214.844, 111.00 , 77.70 
7/1/2022,278,6730,C1713,675.035306,WASHER SPHERICAL LG  219.953S," 1,289.00 ", 902.30 
7/1/2022,278,6730,C1713,675.29130,SCREW LOCK 4.0X50 04.005.440S, 371.25 , 259.88 
7/1/2022,278,6730,C1713,675.87036,SCREW CORT 5.0X28 02.03150.028, 677.00 , 473.90 
7/1/2022,278,6730,C1713,675.80719,PLATE HUMERUS 241.901," 3,760.00 "," 2,632.00 "
7/1/2022,278,6730,C1713,675.035503,SCREW 3.0X16        AR-8933-16, 413.00 , 289.10 
7/1/2022,278,6730,C1713,675.035557,PLATE CLAVICLE 3.5 02.112.031," 4,269.00 "," 2,988.30 "
7/1/2022,278,6730,C1713,675.035545,SWIVELOCK 4.75    AR-2324KBCCT," 1,988.00 "," 1,391.60 "
7/1/2022,278,6730,C1713,675.28535,SCREW CORTEX 3.5x34 204.834, 78.00 , 54.60 
7/1/2022,278,6730,C1713,675.83902,SCREW CANC PT 4.0x60 206.060, 51.00 , 35.70 
7/1/2022,278,6730,C1713,675.28270,SCREW LOCK 2.7x42 02.211.042, 438.00 , 306.60 
7/1/2022,278,6730,C1713,675.29591,SCREW LOCK 5.0x40 212.214, 436.00 , 305.20 
7/1/2022,278,6730,C1713,675.28050,SCREW CORTEX 1.5x10 400.810.96, 139.00 , 97.30 
7/1/2022,278,6730,C1713,675.84116,PLATE LCP 223.571, 929.00 , 650.30 
7/1/2022,278,6730,C1713,675.032191,PLATE OLEC 2.7X3.5 02.107.302S," 5,879.00 "," 4,115.30 "
7/1/2022,278,6730,C1713,675.28838,SCREW CANN ST 3x14 202.614, 958.00 , 670.60 
7/1/2022,278,6730,C1713,675.034479,SCREW CORT 3.5X38     AR-14138, 420.00 , 294.00 
7/1/2022,278,6730,C1713,675.029878,SCREW LP TI 4X14    AR-8940-14, 323.00 , 226.10 
7/1/2022,278,6730,C1713,675.32002,SCREW CORT 3.5x24MM AR-14124NL, 178.00 , 124.60 
7/1/2022,278,6730,C1713,675.31323,SCREW VAL 2.4x18 AR-8724V-18, 550.00 , 385.00 
7/1/2022,278,6730,C1713,675.29551,SCREW LOCK 3.5x24 212.108, 371.00 , 259.70 
7/1/2022,278,6730,C1713,675.81160,SCREW SCHANZ SD 4x3 294.771, 402.00 , 281.40 
7/1/2022,278,6730,C1713,675.28536,SCREW CORTEX 3.5x30 204.830, 111.00 , 77.70 
7/1/2022,278,6730,c1713,675.035601,KIT SONICANCHOR     1910-1272S," 2,010.00 "," 1,407.00 "
7/1/2022,278,6730,C1713,675.034231,SCREW MULTILOC 4.5 04.019.032S," 1,528.00 "," 1,069.60 "
7/1/2022,278,6730,C1713,675.035199,NAIL LONG 11MM     04.037.157S," 11,340.00 "," 7,938.00 "
7/1/2022,278,6730,C1713,675.033443,PIN HAMMERTOE 0DEG 45301001," 5,527.00 "," 3,868.90 "
7/1/2022,278,6730,C1713,675.27776,SCREW CORTI ST 30 214.830, 63.00 , 44.10 
7/1/2022,278,6730,C1713,675.83021,BIO-COMPOSITE AR1934BCFT2," 1,075.00 ", 752.50 
7/1/2022,278,6730,C1713,675.035318,SCREW KREU 2.7x12 AR-8827CL-12," 1,106.00 ", 774.20 
7/1/2022,278,6730,C1713,675.035563,SCREW CN LOCK 4.0X40 8124-040," 1,069.00 ", 748.30 
7/1/2022,278,6730,C1713,675.035271,TIGHTROPE     AR-1288BTBIB-FC3," 4,256.00 "," 2,979.20 "
7/1/2022,278,6730,C1713,675.034802,SCREW BIO COMPRESS AR-5025B-26," 2,119.00 "," 1,483.30 "
7/1/2022,278,6730,C1713,675.28537,SCREW CORTEX 3.5x28 204.828, 62.00 , 43.40 
7/1/2022,278,6730,C1713,675.29545,SCREW LOCK 3.5x34 212.113, 371.00 , 259.70 
7/1/2022,278,6730,C1713,675.31829,SCREW CORTI 4.5x40 214.840, 63.00 , 44.10 
7/1/2022,278,6730,C1713,675.28497,SCREW CANC FT 4.0x14 206.014, 51.00 , 35.70 
7/1/2022,278,6730,C1713,675.31826,SCREW CORTI 4.5x26 214.826, 111.00 , 77.70 
7/1/2022,278,6730,c1713,675.035558,SCREW CT DOUB 3.5X36 8114-036," 1,069.00 ", 748.30 
7/1/2022,278,6730,C1713,675.035582,PLATE LCP 3.5MM        241.162," 1,902.00 "," 1,331.40 "
7/1/2022,278,6730,c1713,675.035538,SCREW CORTEX 1.5MM    200.809, 191.00 , 133.70 
7/1/2022,278,6730,C1713,675.29654,SCREW CONI 5.0x90 02.205.290, 835.00 , 584.50 
7/1/2022,278,6730,C1713,675.029762,DVR  DVRANSL    98-B012-002-03," 5,595.00 "," 3,916.50 "
7/1/2022,278,6730,C1713,675.035526,SCREW VAL TI      AR-18720V-16, 525.00 , 367.50 
7/1/2022,278,6730,C1713,675.035479,SCREW WKHORSE 3.5x75  8100-075, 894.00 , 625.80 
7/1/2022,278,6730,C1713,675.030243,SCREW CANC LOCK 4.0   AR-14248, 420.00 , 294.00 
7/1/2022,278,6730,C1713,675.034902,SCREW LOCK 3.5X20  AR-8935L-20, 563.00 , 394.10 
7/1/2022,278,6730,C1713,675.27532,SCREW LOCK 2.7x26 02.211.026, 438.00 , 306.60 
7/1/2022,278,6730,C1713,675.029387,SCREW 2.4x12 AR-8916VNC-12, 525.00 , 367.50 
7/1/2022,278,6730,C1713,675.035525,SCREW VAL TI      AR-18720V-11, 525.00 , 367.50 
7/1/2022,278,6730,C1713,675.032470,NAIL LONG 14MM     04.037.454S," 11,340.00 "," 7,938.00 "
7/1/2022,278,6730,C1713,675.032545,SCREW VAL 3.0X14   AR-8933V-14, 656.25 , 459.38 
7/1/2022,278,6730,C1713,675.035418,SCREW PEG 2.5X18      SP18000, 360.00 , 252.00 
7/1/2022,278,6730,C1713,675.28646,SCREW CANN SMALL 38 214.538, 880.00 , 616.00 
7/1/2022,278,6730,C1713,675.019630,SCREW ST T8 2.7X24     202.884, 185.00 , 129.50 
7/1/2022,278,6730,C1713,675.035726,SCREW VAL TI      AR-18716V-10, 525.00 , 367.50 
7/1/2022,278,6730,C1713,675.028204,SCREW LOCK 2.7x18 AR-8827L-18, 431.00 , 301.70 
7/1/2022,278,6730,C1713,675.035989,BOLT FEM NECK      04.168.295S," 1,708.00 "," 1,195.60 "
7/1/2022,278,6730,C1713,675.034277,PEG FULL THREAD 2.5X16    FP16, 360.00 , 252.00 
7/1/2022,278,6730,C1713,675.036116,SCREW HI PITCH LOCK       SD21," 2,606.00 "," 1,824.20 "
7/1/2022,278,6730,C1713,675.035997,SCRW VAL KREULOC AR-8724VCL-14," 1,106.00 ", 774.20 
7/1/2022,278,6730,C1713,675.32390,SCREW CANN 6.5x80 208.411, 864.00 , 604.80 
7/1/2022,278,6730,C1713,675.036172,FIBERSTITCH REVERSE   AR-4570R," 1,856.00 "," 1,299.20 "
7/1/2022,278,6730,c1713,675.035744,SCREW CORT 3.5x32   AR-14132NL, 169.00 , 118.30 
7/1/2022,278,6730,C1713,675.30099,PLATE FEM 9HX246 02.03260.009," 5,748.00 "," 4,023.60 "
7/1/2022,278,6730,C1713,675.035988,SCREW ANTIROT 95   04.168.495S," 1,151.00 ", 805.70 
7/1/2022,278,6730,C1713,675.034346,DVR ANATOMIC NARW RT    DVRANR," 2,993.00 "," 2,095.10 "
7/1/2022,278,6730,C1713,675.013985,SCREW CANN FT 7.3X90   209.890," 1,133.00 ", 793.10 
7/1/2022,278,6730,C1713,675.036157,SCREW VENTED       AR-4030C-10," 1,106.00 ", 774.20 
7/1/2022,278,6730,C1713,675.84117,PLATE LCP 245.071," 2,295.00 "," 1,606.50 "
7/1/2022,278,6730,C1713,675.036053,SCREW CANN 4x60  AR-8740-60PTS, 619.00 , 433.30 
7/1/2022,278,6730,C1713,675.035646,SCREW LOCK 5X80    42.231.280, 877.00 , 613.90 
7/1/2022,278,6730,C1713,675.034266,SCREW LO-PRO 3.5X16 02.206.016, 171.00 , 119.70 
7/1/2022,278,6730,C1713,675.035571,SCREW MULTILOC 4.5  04.019.042," 1,167.00 ", 816.90 
7/1/2022,278,6730,C1713,675.29693,SCREW LOCK 5.0x60 212.221, 416.00 , 291.20 
7/1/2022,278,6730,C1713,675.32000,SCREW CANC 4.0x28MM AR-14228, 420.00 , 294.00 
7/1/2022,278,6730,C1713,675.31814,SCREW CORTEX 4.5x50 214.850, 63.00 , 44.10 
7/1/2022,278,6730,C1713,675.31820,SCREW CORTEX 4.5x14 214.814, 76.00 , 53.20 
7/1/2022,278,6730,c1713,675.035745,SCREW CORT 3.5x34   AR-14134NL, 169.00 , 118.30 
7/1/2022,278,6730,C1713,675.29588,SCREW CANN LOCK 5.0x70 212.223, 415.80 , 291.06 
7/1/2022,278,6730,C1713,675.82297,PLATE STRAIGHT 446.032, 622.55 , 435.79 
7/1/2022,278,6730,C1713,675.035838,PEG FULL THREAD 2.5x12 FP12, 360.00 , 252.00 
7/1/2022,278,6730,C1713,675.8487,BUTTON 2232-02-35, 202.00 , 141.40 
7/1/2022,278,6730,C1713,675.04846,SCREW CORT 4.0X60 02.03155.060, 512.00 , 358.40 
7/1/2022,272,6750,C1713,675.82183,ROD CARBON FIBER 240MM 395.786, 960.00 , 672.00 
7/1/2022,278,6730,C1713,675.17040,SCREW LOCK 3.5X85 212.129, 409.00 , 286.30 
7/1/2022,278,6730,C1713,675.034349,PLATE TWO HOLE      AR-8958-02," 3,000.00 "," 2,100.00 "
7/1/2022,278,6730,C1713,675.035987,PLATE FEMORAL 1H   04.168.000S," 3,454.00 "," 2,417.80 "
7/1/2022,278,6730,C1713,675.035119,ACETABULAR CUP       11-165208," 4,950.00 "," 3,465.00 "
7/1/2022,278,6730,C1713,675.034248,NAIL FEM CAN10X380 04.033.068S," 10,013.00 "," 7,009.10 "
7/1/2022,278,6730,C1713,675.035725,SCREW VAL TI      AR-18716V-09, 525.00 , 367.50 
7/1/2022,278,6730,C1713,675.80061,SCREW CONI 3.5X80 212.328, 603.00 , 422.10 
7/1/2022,278,6750,C1713,675.4053,PLATE CLAVICLE FX CENTRAL," 3,188.00 "," 2,231.60 "
7/1/2022,278,6730,C1713,675.29411,SCREW CORTI 5x85 02.03150.085, 848.00 , 593.60 
7/1/2022,278,6730,C1713,675.035839,PEG FULL THREAD 2.5x14 FP14, 360.00 , 252.00 
7/1/2022,278,6730,C1713,675.31929,SCREW CANN FT 7.3x85 209.885," 1,133.00 ", 793.10 
7/1/2022,278,6730,C1713,675.031700,NAIL LONG 12MM     04.037.252S," 10,623.00 "," 7,436.10 "
7/1/2022,278,6730,C1713,675.035654,FIBERSTITCH 24DEG   AR-4570-24," 3,804.00 "," 2,662.80 "
7/1/2022,278,6730,c1713,675.035684,PLATE LCP CURVED   02.001.306S," 8,127.00 "," 5,688.90 "
7/1/2022,278,6730,C1713,675.28299,SCREW CORTEX 1.3X10    400.690, 287.00 , 200.90 
7/1/2022,278,6730,C1713,675.29107,SCREW STAR 5X56  04.005.546S," 1,094.00 ", 765.80 
7/1/2022,278,6730,C1713,675.034250,SCREW LOCK 5.0X70  04.005.560S," 1,094.00 ", 765.80 
7/1/2022,278,6730,C1713,675.035493,SCREW KREU 3.5x10 AR-8935CL-10," 1,106.00 ", 774.20 
7/1/2022,278,6750,C1713,675.033314,BLADE HELICAL 75MM 04.038.375S," 4,029.00 "," 2,820.30 "
7/1/2022,278,6750,C1713,675.033233,SCREW LOCK 3.5X12MM   58803512," 1,320.00 ", 924.00 
7/1/2022,278,6730,C1713,675.036158,PLATE HUM 2.7/3.5   02.117.303," 5,154.00 "," 3,607.80 "
7/1/2022,278,6730,C1713,675.28109,SCREW CANN 5.0x75 02.03152.075, 431.00 , 301.70 
7/1/2022,278,6730,C1713,675.28788,SCREW CANN ST 4.0x50 207.650, 549.00 , 384.30 
7/1/2022,278,6730,C1713,675.30009,SCREW CANN4.0x40 AR-8740-40PTS, 476.00 , 333.20 
7/1/2022,278,6730,C1713,675.29116,SCREW LOCK 5.0X44 04.005.54S, 615.00 , 430.50 
7/1/2022,278,6750,C1713,675.033284,ORTHOLOC 3DIG MTP    5820MPX1L," 11,141.00 "," 7,798.70 "
7/1/2022,278,6730,C1713,675.031153,NAIL LONG 12MM     04.037.260S," 10,412.00 "," 7,288.40 "
7/1/2022,278,6730,C1713,675.035226,SCREW KREU 3.5X14 AR-8835CL-14," 1,106.00 ", 774.20 
7/1/2022,278,6730,C1713,675.28003,SCREW LOCK 3.5x12 212.102, 346.00 , 242.20 
7/1/2022,278,6730,C1713,675.81358,SCREW CORT 3.5X18 AR8835-18, 96.00 , 67.20 
7/1/2022,278,6730,C1713,675.27773,SCREW CORTEX 4.5x28 214.828, 111.00 , 77.70 
7/1/2022,278,6730,C1713,675.035555,SCREW CT DOUB 3.5X28 8114-028," 1,069.00 ", 748.30 
7/1/2022,278,6730,C1713,675.035225,SCREW KREU 3.5X10 AR-8835CL-10," 1,106.00 ", 774.20 
7/1/2022,278,6730,C1713,675.28529,SCREW CORTEX 3.5x55 204.855, 62.00 , 43.40 
7/1/2022,278,6730,C1713,675.29548,SCREW LOCK 3.5x50 212.119, 404.00 , 282.80 
7/1/2022,278,6730,C1713,675.88023,SCREW CANC NBC 70 02.03152.070, 575.00 , 402.50 
7/1/2022,278,6730,C1713,675.28051,SCREW CORTI 1.5x6 400.806.96, 208.00 , 145.60 
7/1/2022,278,6730,C1713,675.29745,SCREW STAR 5       04.005.542S, 857.00 , 599.90 
7/1/2022,278,6730,C1713,675.035159,TIGHTROPE BTB-IB AR-1588BTB-IB," 2,419.00 "," 1,693.30 "
7/1/2022,278,6730,C1713,675.88003,SCREW CORTI 5x32 02.03150.032, 507.00 , 354.90 
7/1/2022,278,6730,C1713,675.031726,NAIL LONG 12MM     04.037.256S," 10,412.00 "," 7,288.40 "
7/1/2022,278,6730,C1713,675.29117,SCREW LOCK 5.0X34 04.005.524S, 615.00 , 430.50 
7/1/2022,278,6730,C1713,675.28292,SCREW CANN ST 4.0x40 207.640, 549.00 , 384.30 
7/1/2022,278,6730,C1713,675.035229,SCRW VAL KRULOC  AR-8724VCL-22," 1,106.00 ", 774.20 
7/1/2022,278,6730,C1713,675.29607,SCREW LOCK 5.0x14 212.201, 436.00 , 305.20 
7/1/2022,278,6730,C1713,675.033542,PIN HAMMERTOE MD CANN 45301003," 5,528.00 "," 3,869.60 "
7/1/2022,278,6730,C1713,675.28114,SCREW CORTI 38x5 02.03150.038, 507.00 , 354.90 
7/1/2022,278,6730,C1713,675.034914,NAIL LONG 12MM     04.037.242S," 8,097.00 "," 5,667.90 "
7/1/2022,278,6730,C1713,675.28311,SCREW CORTEX 3.5x20 204.820, 62.00 , 43.40 
7/1/2022,278,6730,C1713,675.29569,SCREW LOCK 2.7x32 02.211.032, 380.00 , 266.00 
7/1/2022,278,6730,C1713,675.29245,PLATE OCECR 2.7x3.6 02.107.202," 3,200.00 "," 2,240.00 "
7/1/2022,278,6730,C1713,675.87031,SCREW CORT 5.0X40 02.03150.040, 646.00 , 452.20 
7/1/2022,278,6730,C1713,675.032761,FIBERWIRE 2-0 CURVED   AR-4570," 2,655.00 "," 1,858.50 "
7/1/2022,278,6600,C1713,675.021204,SCREW CORT 3.5      AR-8835-16, 131.00 , 91.70 
7/1/2022,278,6750,C1713,675.033221,SCREW LOCK 3.5X22     58803522," 1,320.00 ", 924.00 
7/1/2022,278,6600,C1713,675.024354,SCREW CORTI 3.5X14     CS14000, 188.00 , 131.60 
7/1/2022,278,6730,C1713,675.31313,SCREW 3.5x18 AR-8935-18, 237.00 , 165.90 
7/1/2022,278,6730,C1713,675.035580,SCREW CORTEX 3.5MM  02.200.016, 111.00 , 77.70 
7/1/2022,278,6730,C1713,675.29539,SCREW LOCK 3.5x36 212.115, 398.00 , 278.60 
7/1/2022,278,6730,C1713,675.32347,SPEEDBRIDGE ACHI AR-8928BCJ-CP," 6,309.00 "," 4,416.30 "
7/1/2022,278,6730,C1713,675.31380,DISTAL BICEP IM AR-2260BC," 3,025.00 "," 2,117.50 "
7/1/2022,278,6750,C1713,675.17059,DRILL BIT CANN 2.7X160 310.67," 1,239.00 ", 867.30 
7/1/2022,278,6730,C1713,675.28577,SCREW LOCK 3.5x14 212.103, 346.00 , 242.20 
7/1/2022,278,6730,C1713,675.27967,SCREW LOCK 2.7x24 02.211.024, 518.00 , 362.60 
7/1/2022,278,6730,C1713,675.81892,PLATE 1/3 TUBULAR 241.381, 515.00 , 360.50 
7/1/2022,278,6730,C1713,675.035320,SCRW VAL 3.0X10 AR-8933VCL-10," 1,106.00 ", 774.20 
7/1/2022,278,6730,C1713,675.035948,SCRW VAL3.0X16  AR-8933VCL-16," 1,106.00 ", 774.20 
7/1/2022,278,6730,C1713,675.034899,SCREW 2.4X28     AR-8916VNC-28, 525.00 , 367.50 
7/1/2022,278,6730,C1713,675.034900,SCREW 2.4X30     AR-8916VNC-30, 525.00 , 367.50 
7/1/2022,278,6730,C1713,675.28491,SCREW CANC FT 4.0x18 206.018, 51.00 , 35.70 
7/1/2022,278,6730,C1713,675.27535,SCREW LOCK 2.7x28 02.211.028, 380.00 , 266.00 
7/1/2022,278,6730,C1713,675.32084,PLATE RAD RT 3H AR-8916VSR-03," 2,514.00 "," 1,759.80 "
7/1/2022,278,6730,C1713,675.82338,SCREW CONICAL 212.327/427, 421.00 , 294.70 
7/1/2022,278,6730,C1713,675.21080,WIRE BALL AR-14016B, 338.00 , 236.60 
7/1/2022,278,6730,c1713,675.036030,SCRW GALILEO 10.5x100 1099-100," 3,356.00 "," 2,349.20 "
7/1/2022,278,6730,C1713,675.32414,SCREW LOCK 2.7x12 AR-8827L-12, 317.00 , 221.90 
7/1/2022,278,6730,C1713,675.035242,SCREW KREU 3.5X16 AR-8935CL-16," 1,106.00 ", 774.20 
7/1/2022,278,6730,C1713,675.29118,SCREW LOCK 5.0X40 04.005.530S, 615.00 , 430.50 
7/1/2022,278,6730,C1713,675.29582,SCREW LOCK 2.7x18 202.218, 573.00 , 401.10 
7/1/2022,278,6730,C1713,675.32380,SCREW LOCK 3.5x18 AR-8935L-18," 1,856.00 "," 1,299.20 "
7/1/2022,278,6730,C1713,675.28540,SCREW COTEX 3.5x12 204.812, 62.00 , 43.40 
7/1/2022,278,6730,C1713,675.032739,SCREW LOCK 3.5X10  AR-8935L-10, 562.00 , 393.40 
7/1/2022,278,6730,C1713,675.031469,LP SCREW 2.4X22     AR-8724-22, 476.00 , 333.20 
7/1/2022,278,6730,C1713,675.035285,SCREW VAL KRULOC AR-8724VCL-20," 1,106.00 ", 774.20 
7/1/2022,278,6750,C1713,675.033239,ORTHOLOC 3DI 3.5X26  5820X3526," 1,500.00 "," 1,050.00 "
7/1/2022,278,6730,C1713,675.28538,SCREW CORTEX 3.5x26 204.826, 62.00 , 43.40 
7/1/2022,278,6730,C1713,675.032467,NAIL LONG 12MM     04.037.262S," 11,340.00 "," 7,938.00 "
7/1/2022,278,6730,C1713,675.28002,SCREW CORTEX 3.5x22 204.822, 62.00 , 43.40 
7/1/2022,278,6730,C1713,675.031728,NAIL LONG 12MM     04.037.261S," 10,412.00 "," 7,288.40 "
7/1/2022,278,6730,C1713,675.32005,SCREW CORT 3.5x20MM AR-14120, 440.00 , 308.00 
7/1/2022,278,6730,C1713,675.81913,PLATE 1/3 TUB AR8943T-06, 660.00 , 462.00 
7/1/2022,278,6730,C1713,675.31764,SCREW CORTEX 4.5x54 214.854, 111.00 , 77.70 
7/1/2022,278,6730,C1713,675.29542,SCREW LOCK 3.5x60 212.121, 371.00 , 259.70 
7/1/2022,278,6730,C1713,675.029879,PLATE TUBUL 7H TI  AR-9943T-07," 1,369.00 ", 958.30 
7/1/2022,278,6730,C1713,675.28539,SCREW CORTEX 3.5x24 204.824, 62.00 , 43.40 
7/1/2022,278,6730,C1713,675.27409,SCREW LOCK 5.0x30 212.209, 554.00 , 387.80 
7/1/2022,278,6730,C1713,675.034265,SCREW LO-PRO 3.5X14 02.206.014, 171.00 , 119.70 
7/1/2022,278,6730,C1713,675.034029,SCREW CANN 4.0X42 AR8740-42PTS, 619.00 , 433.30 
7/1/2022,278,6750,C1713,675.008082,WIRE K .062          186-03-79, 49.00 , 34.30 
7/1/2022,278,6730,C1713,675.035505,SWIVELOCK 4.75   AR-2324KBCCTT," 1,988.00 "," 1,391.60 "
7/1/2022,278,6730,C1713,675.032278,BLADE HELICAL 85MM 04.038.385S," 3,555.00 "," 2,488.50 "
7/1/2022,278,6730,C1713,675.034701,LAPIPLASTY SYSTEM 1       SK12," 16,106.00 "," 11,274.20 "
7/1/2022,278,6730,C1713,675.27783,SCREW LOCK 5.0x38 212.213, 407.00 , 284.90 
7/1/2022,278,6730,C1713,675.034275,SCREW LP 4X44     AR-8840CL-44, 619.00 , 433.30 
7/1/2022,278,6730,C1713,675.25283,SCREW LOCK 04.005/025516/570S, 615.00 , 430.50 
7/1/2022,278,6730,C1713,675.81371,SCREW CANC LOCK 4.0 AR-14230, 420.00 , 294.00 
7/1/2022,278,6730,C1713,675.034901,SCREW 2.4X32     AR-8916VNC-32, 525.00 , 367.50 
7/1/2022,278,6730,C1713,675.81365,SCREW CORT N/L 3.5 AR8835-20, 96.00 , 67.20 
7/1/2022,278,6730,C1713,675.32381,PLATE VOLAR RAD AR-8916VWL-03," 2,513.50 "," 1,759.45 "
7/1/2022,278,6730,C1713,675.81355,SCREW CORT AR-8835-12, 96.00 , 67.20 
7/1/2022,278,6750,C1713,675.031243,SCREW FX PLATE 3.5X22 AR-14122, 420.00 , 294.00 
7/1/2022,278,6730,C1713,675.32077,SCREW LOCK 3.5x16 AR-8935L-16, 270.00 , 189.00 
7/1/2022,278,6730,C1713,675.31932,SCREW CANN 7.3x85 208.885, 724.00 , 506.80 
7/1/2022,278,6730,C1713,675.31996,SCREW LOCK 3.5x12 AR-8935L-12, 270.00 , 189.00 
7/1/2022,278,6730,C1713,675.035740,SCREW CANN 4.0   04.334.442TS," 2,122.00 "," 1,485.40 "
7/1/2022,278,6730,C1713,675.31320,SCREW VAL 2.4x26 AR-8724V-26, 525.00 , 367.50 
7/1/2022,278,6730,C1713,675.013896,SCREW CANN 7.3X70      208.870," 1,050.00 ", 735.00 
7/1/2022,278,6730,C1713,675.31816,SCREW CORTEX 4.5x46 214.846, 111.00 , 77.70 
7/1/2022,278,6730,C1713,675.029966,PIN STEINMAN 4X22 47-262-03-04, 115.00 , 80.50 
7/1/2022,278,6730,C1713,675.035560,SCREW CN LOCK 4.0X28 8124-028," 1,069.00 ", 748.30 
7/1/2022,278,6730,C1713,675.25287,SCREW LOCK 3.5x26 212.109, 413.00 , 289.10 
7/1/2022,278,6730,C1713,675.27966,SCREW LOCK 2.7x22 02.211.022, 518.00 , 362.60 
7/1/2022,278,6750,C1713,675.033234,SCREW LOCK 3.5X16MM   58803516," 1,320.00 ", 924.00 
7/1/2022,278,6730,C1713,675.28281,SCREW LOCK 2.7x12 02.211.012, 687.00 , 480.90 
7/1/2022,278,6730,C1713,675.035970,PLT DIS HUM 3.5 6H 02.104.006S," 6,704.00 "," 4,692.80 "
7/1/2022,278,6730,C1713,675.81356,SCREW CORT AR-8835-14, 138.00 , 96.60 
7/1/2022,278,6730,C1713,675.034255,SCREW COMPR 5.0X40 AR-8750-40H," 1,781.00 "," 1,246.70 "
7/1/2022,278,6730,C1713,675.034808,SCREW LAG 3.5X28     5820X3528," 1,500.00 "," 1,050.00 "
7/1/2022,278,6730,C1713,675.031989,NAIL LONG 12X120 04.037.263," 10,412.00 "," 7,288.40 "
7/1/2022,278,6730,C1713,675.035528,SCREW LO PRO CORT  AR-18724-09, 413.00 , 289.10 
7/1/2022,278,6730,C1713,675.29555,SCREW LOCK 3.5x20 2369-20-35, 271.00 , 189.70 
7/1/2022,278,6730,C1713,675.27963,SCREW LOCK 2.7x14 02.211.014, 380.00 , 266.00 
7/1/2022,278,6730,C1713,675.29652,TIGHTROPE ACL RT AR-1588RT," 1,106.00 ", 774.20 
7/1/2022,278,6730,C1713,675.31434,SCREW 2.4x18 AR-8916VNC-18, 550.00 , 385.00 
7/1/2022,278,6730,C1713,675.031825,SCREW LOCK 5.5X20   AR-9563-20, 450.00 , 315.00 
7/1/2022,278,6730,C1713,675.28112,SCREW CANN 5.0x55 02.03152.055, 609.00 , 426.30 
7/1/2022,278,6730,C1713,675.029389,SCREW 3.5x12 AR-8935-12, 165.00 , 115.50 
7/1/2022,278,6730,C1713,675.29470,PIN STEINMAN 00-0262-001-04, 55.00 , 38.50 
7/1/2022,278,6730,C1713,675.31999,SCREW CANC 4.0x34MM AR-14234, 420.00 , 294.00 
7/1/2022,278,6730,C1713,675.27997,SCREW BONE 6.5x25 6250-65-25, 396.00 , 277.20 
7/1/2022,278,6600,C1713,675.029262,PEG SMOOTH 2.0X16 DVR   P16000, 525.00 , 367.50 
7/1/2022,278,6730,C1713,675.81372,SCREW CANC LOCK 4.0 AR-14240, 420.00 , 294.00 
7/1/2022,278,6730,C1713,675.81331,SCREW CANN 208.401-209.950," 1,248.00 ", 873.60 
7/1/2022,278,6730,C1713,675.80755,PLATE LCP TIB 6H/L 02.124.205," 4,027.00 "," 2,818.90 "
7/1/2022,278,6730,C1713,675.29129,SCREW LOCK 4.0X28 04.005.418," 1,094.00 ", 765.80 
7/1/2022,278,6730,C1713,675.033093,SCREW MODULAR 35MM AR-9561-35S," 3,562.00 "," 2,493.40 "
7/1/2022,278,6730,C1713,675.032737,BLADE HELICAL 80MM 04.038.380S," 3,555.00 "," 2,488.50 "
7/1/2022,278,6730,C1713,675.036122,PLATE SM FRAG LOCK  131217102," 2,183.00 "," 1,528.10 "
7/1/2022,278,6730,C1713,675.29110,SCREW STAR 5X48 04.005.538S, 615.00 , 430.50 
7/1/2022,278,6750,C1713,675.32033,SCREW CANC 4.0x18 AR-8840-18, 454.00 , 317.80 
7/1/2022,278,6730,C1713,675.31013,SCREW CORT 5x55mm 02.03150.055, 471.00 , 329.70 
7/1/2022,278,6730,C1713,675.024348,PEG SMOOTH 2.0x18 P18000, 138.00 , 96.60 
7/1/2022,278,6730,C1713,675.85181,SCREW CORTEX 1.5x14 400.814.96, 160.00 , 112.00 
7/1/2022,278,6730,C1713,675.035317,SCREW KREU 2.7x10 AR-8827CL-10," 1,106.00 ", 774.20 
7/1/2022,278,6730,C1713,675.034984,BONE VOID FILLER 10ML A0210-08," 8,063.00 "," 5,644.10 "
7/1/2022,278,6730,C1713,675.034921,SCREW MULTILOC 4.5 04.019.042S," 1,527.00 "," 1,068.90 "
7/1/2022,278,6730,C1713,675.31927,SCREW CANN 6.5x85 208.412, 724.00 , 506.80 
7/1/2022,278,6750,C1713,675.033235,SCREW LOCK 3.5X18MM   58803518," 1,320.00 ", 924.00 
7/1/2022,278,6730,C1713,675.035277,IMPLANT SYSTEM     AR-9400-SBK," 9,375.00 "," 6,562.50 "
7/1/2022,278,6730,C1713,675.28282,SCREW LOCK 2.7x10 02.211.010, 438.00 , 306.60 
7/1/2022,278,6730,C1713,675.28110,SCREW CANN 5.0x80 02.03152.080, 575.00 , 402.50 
7/1/2022,278,6730,C1713,675.29541,SCREW LOCK 60 212.124, 346.00 , 242.20 
7/1/2022,278,6750,C1713,675.033287,PIN HAMMERTOE 0DEG CA 45301002," 5,527.00 "," 3,868.90 "
7/1/2022,278,6730,C1713,675.29186,NAIL TIB 10X300    04.004.440S," 5,279.00 "," 3,695.30 "
7/1/2022,278,6730,C1713,675.029367,PLATE VOLAR RT3H AR-8916VNR-03," 2,981.00 "," 2,086.70 "
7/1/2022,278,6730,C1713,675.88043,SCREW LOCK 5.0X40 02.231.240, 525.00 , 367.50 
7/1/2022,278,6730,C1713,675.30500,ANCHOR BIO 2.9x12.5 AR-2923BC," 1,100.00 ", 770.00 
7/1/2022,278,6730,C1713,675.032547,SCREW LO-PRO 3.5X20 AR-8935-20, 225.00 , 157.50 
7/1/2022,278,6730,C1713,675.035682,TIGHTROPE       AR-1288RTT-FC3," 3,806.00 "," 2,664.20 "
7/1/2022,278,6730,C1713,675.035135,BIO SWIVEL 4.75    AR-1665BCSL," 3,000.00 "," 2,100.00 "
